Workbook

Sheet 1 年次別，出生数・率・性比・合計特殊出生率
A1: 第2章 出 生
A2: 1 年次別にみた出生数・出生率(人口千対)・出生性比及び合計特殊出生率
A4: 年次 | B4: 出生数 | E4: 出生率 | F4: 出生性比 | G4: 合計特殊出生率 2)
B5: 総 数 | C5: 男 | D5: 女
A6: 1950 昭和25年 | B6: 8178 | C6: 4205 | D6: 3973 | E6: 26.05703361 | F6: 105.8394161 | G6: … | I6: 313850
A7: 55 30 | B7: 7551 | C7: 3928 | D7: 3623 | E7: 17.69959214 | F7: 108.4184378 | G7: … | I7: 426620
A8: 60 35 | B8: 9392 | C8: 4911 | D8: 4481 | E8: 17.92917289 | F8: 109.5960723 | G8: 1.753469605 | I8: 523839
A9: 65 40 | B9: 16370 | C9: 8442 | D9: 7928 | E9: 20.59357812 | F9: 106.4833502 | G9: 1.927250369 | I9: 794908
A10: 70 45 | B10: 20411 | C10: 10502 | D10: 9909 | E10: 20.20645011 | F10: 105.9844586 | G10: 1.844091612 | I10: 1010123
A11: 72 47 4) | B11: =SUM(C11:D11) -> 22017 | C11: 11356 | D11: 10661 | E11: =B11/I11*1000 -> 20.03180778 | F11: =C11/D11*100 -> 106.5190883 | G11: … | I11: 1099102
A12: 73 48 | B12: =SUM(C12:D12) -> 23759 | C12: 12199 | D12: 11560 | E12: =B12/I12*1000 -> 20.61738476 | F12: =C12/D12*100 -> 105.5276817 | G12: … | I12: 1152377
A13: 74 49 | B13: =SUM(C13:D13) -> 24525 | C13: 12609 | D13: 11916 | E13: =B13/I13*1000 -> 20.412019 | F13: =C13/D13*100 -> 105.81571 | G13: 1.887631486 | I13: 1201498
A14: 75 50 | B14: 23404 | C14: 12101 | D14: 11303 | E14: 18.86486761 | F14: 107.0600725 | G14: 1.734737997 | I14: 1240613
A15: 76 51 | B15: 22910 | C15: 11891 | D15: 11019 | E15: 17.96090778 | F15: 107.9136038 | G15: 1.656318153 | I15: 1275548
A16: 77 52 | B16: 22286 | C16: 11372 | D16: 10914 | E16: 17.06834384 | F16: 104.1964449 | G16: 1.610099111 | I16: 1305692
A17: 78 53 | B17: 22251 | C17: 11423 | D17: 10828 | E17: 16.68349937 | F17: 105.4950129 | G17: 1.62773411 | I17: 1333713
A18: 79 54 | B18: 21577 | C18: 11050 | D18: 10527 | E18: 15.78276733 | F18: 104.9681771 | G18: 1.589614135 | I18: 1367124
A19: 80 55 | B19: 20931 | C19: 10870 | D19: 10061 | E19: 14.93197466 | F19: 108.0409502 | G19: 1.545565112 | I19: 1401757
A20: 81 56 | B20: 19944 | C20: 10181 | D20: 9763 | E20: 13.92354338 | F20: 104.2814709 | G20: 1.478991907 | I20: 1432394
A21: 82 57 | B21: 20727 | C21: 10584 | D21: 10143 | E21: 14.16672818 | F21: 104.3478261 | G21: 1.553815467 | I21: 1463076
A22: 83 58 | B22: 20608 | C22: 10566 | D22: 10042 | E22: 13.79968889 | F22: 105.218084 | G22: 1.563553735 | I22: 1493367
A23: 84 59 | B23: 20274 | C23: 10384 | D23: 9890 | E23: 13.34022914 | F23: 104.9949444 | G23: 1.553387103 | I23: 1519764
A24: 85 60 | B24: 19314 | C24: 9823 | D24: 9491 | E24: 12.54312226 | F24: 103.4980508 | G24: 1.489065683 | I24: 1539808
A25: 86 61 | B25: 19130 | C25: 9986 | D25: 9144 | E25: 12.20904593 | F25: 109.208224 | G25: 1.485578765 | I25: 1566871
A26: 87 62 | B26: 18533 | C26: 9655 | D26: 8878 | E26: 11.63252689 | F26: 108.7519712 | G26: 1.443451796 | I26: 1593205
A27: 88 63 | B27: 18216 | C27: 9339 | D27: 8877 | E27: 11.25235582 | F27: 105.204461 | G27: 1.409695333 | I27: 1618861
A28: 89 平成元年 | B28: 17479 | C28: 9039 | D28: 8440 | E28: 10.62491832 | F28: 107.0971564 | G28: 1.335961209 | I28: 1645095
A29: 90 2 | B29: 17425 | C29: 9023 | D29: 8402 | E29: 10.44674289 | F29: 107.3910974 | G29: 1.312021512 | I29: 1667984
A30: 91 3 | B30: 17458 | C30: 8936 | D30: 8522 | E30: 10.29977793 | F30: 104.8580146 | G30: 1.306059605 | I30: 1694988
A31: 92 4 | B31: 17325 | C31: 8811 | D31: 8514 | E31: 10.1050576 | F31: 103.4883721 | G31: 1.274450956 | I31: 1714488
A32: 93 5 | B32: 16371 | C32: 8419 | D32: 7952 | E32: 9.471404124 | F32: 105.8727364 | G32: 1.189568888 | I32: 1728466
A33: 94 6 | B33: 17057 | C33: 8730 | D33: 8327 | E33: 9.799866018 | F33: 104.8396782 | G33: 1.230510608 | I33: 1740534
A34: 95 7 | B34: 16227 | C34: 8215 | D34: 8012 | E34: 9.261938723 | F34: 102.5336995 | G34: 1.154775176 | I34: 1752009
A35: 96 8 | B35: 16339 | C35: 8389 | D35: 7950 | E35: 9.20745658 | F35: 105.5220126 | G35: 1.148573507 | I35: 1774540
A36: 97 9 | B36: 15873 | C36: 8082 | D36: 7791 | E36: 8.861553097 | F36: 103.7350789 | G36: 1.098106443 | I36: 1791221
A37: 98 10 | B37: 16165 | C37: 8280 | D37: 7885 | E37: 8.962898645 | F37: 105.0095117 | G37: 1.111647138 | I37: 1803546
A38: 99 11 | B38: 15358 | C38: 7814 | D38: 7544 | E38: 8.475581793 | F38: 103.5790032 | G38: 1.051790734 | I38: 1812029
A39: 2000 12 | B39: 15332 | C39: 7840 | D39: 7492 | E39: 8.439585023 | F39: 104.6449546 | G39: 1.047519652 | I39: 1816677
A40: 01 13 | B40: 15312 | C40: 7758 | D40: 7554 | E40: 8.345851384 | F40: 102.700556 | G40: 1.03969898 | I40: 1834684
A41: 02 14 | B41: 15577 | C41: 8046 | D41: 7531 | E41: 8.438084868 | F41: 106.8384013 | G41: 1.063228433 | I41: 1848276
A42: 03 15 | B42: 14999 | C42: 7658 | D42: 7341 | E42: 8.053755421 | F42: 104.3182128 | G42: 1.024159875 | I42: 1862361
A43: 04 16 | B43: 14749 | C43: 7524 | D43: 7225 | E43: 7.875781691 | F43: 104.1384083 | G43: 1.010520428 | I43: 1872703
A44: 05 17 | B44: 14184 | C44: 7208 | D44: 6976 | E44: 7.541219111 | F44: 103.3256881 | G44: 0.9807537753 | I44: 1880863
A45: 06 18 | B45: 14730 | C45: 7596 | D45: 7134 | E45: =B45/I45*1000 -> 7.795878187 | F45: 106.4760303 | G45: 1.025462153 | I45: 1889460
A46: 07 19 | B46: 14498 | C46: 7345 | D46: 7153 | E46: =B46/I46*1000 -> 7.647023763 | F46: 102.6841885 | G46: 1.024198126 | I46: 1895901
A47: 08 20 | B47: 14845 | C47: 7539 | D47: 7306 | E47: =B47/I47*1000 -> 7.809807898 | F47: 103.2 | G47: 1.07 | I47: 1900815
A48: 09 21 | B48: 14506 | C48: 7401 | D48: 7105 | E48: =B48/I48*1000 -> 7.605100964 | F48: 104.1660802 | G48: 1.06 | I48: 1907404
A49: 10 22 | B49: 14739 | C49: 7561 | D49: 7178 | E49: 7.730215024 | F49: 105.3357481 | G49: 1.09 | I49: 1906674
A50: 11 23 | B50: 14491 | C50: 7378 | D50: 7113 | E50: 7.539797132 | F50: 103.7255729 | G50: 1.092299936 | I50: 1921935
A51: 12 24 | B51: 14487 | C51: 7415 | D51: 7072 | E51: 7.510981057 | F51: 104.8501131 | G51: 1.107447083 | I51: 1928776
A52: 13 25 | B52: 14591 | C52: 7505 | D52: 7086 | E52: 7.535937866 | F52: 105.913068 | G52: 1.135048674 | I52: 1936189
A53: 14 26 | B53: 14568 | C53: 7492 | D53: 7076 | E53: 7.499042544 | F53: 105.8790277 | G53: 1.156937108 | I53: 1942648
A54: 15 27 | B54: 14589 | C54: 7543 | D54: 7046 | E54: 7.506456046 | F54: 107.0536475 | G54: 1.181722916 | I54: 1943527
A55: 16 28 | B55: 14021 | C55: 7144 | D55: 6877 | E55: 7.159397571 | F55: 103.8825069 | G55: 1.157407064 | I55: 1958405
A56: 17 29 | B56: 13821 | C56: 7204 | D56: 6617 | E56: 7.041048072 | F56: 108.8710896 | G56: 1.160807227 | I56: 1962918
A57: 18 30 | B57: =SUM(C57:D57) -> 13248 | C57: ='3 月・性別，区別出生数・出生率'!$C$6 -> 6744 | D57: ='3 月・性別，区別出生数・出生率'!$C$7 -> 6504 | E57: =B57/I57*1000 -> 6.738761102 | F57: =C57/D57*100 -> 103.6900369 | G57: ='11 出生順位別，母の年齢別出生率'!$C$4 -> 1.137415445 | I57: =[1]人口!$B$42 -> 1965940
A58: 1) 本市の集計による。
A59: 2) 昭和49年以降は住民基本台帳の人口により算出した率である。

Sheet 2 区別，年次別出生数・出生率
A1: 2 区別にみた年次別出生数及び出生率（人口千対）
A3: 年次 | B3: 総数 | C3: 中央区 | D3: 北区 | E3: 東区 | F3: 白石区 | G3: 厚別区 | H3: 豊平区 | I3: 清田区 | J3: 南区 | K3: 西区 | L3: 手稲区
B4: 出生数 | N4: =[1]年次別人口!C3 -> 総数 | O4: =[1]年次別人口!D3 -> 中央区 | P4: =[1]年次別人口!E3 -> 北区 | Q4: =[1]年次別人口!F3 -> 東区 | R4: =[1]年次別人口!G3 -> 白石区 | S4: =[1]年次別人口!H3 -> 厚別区 | T4: =[1]年次別人口!I3 -> 豊平区 | U4: =[1]年次別人口!J3 -> 清田区 | V4: =[1]年次別人口!K3 -> 南区 | W4: =[1]年次別人口!L3 -> 西区 | X4: =[1]年次別人口!M3 -> 手稲区
A5: 85 60 | B5: =SUM(C5:L5) -> 19314 | C5: 1919 | D5: 2426 | E5: 3145 | F5: 3665 | G5: … | H5: 3127 | I5: … | J5: 1708 | K5: 3324 | L5: … | N5: =[1]年次別人口!C4 -> 1539808 | O5: =[1]年次別人口!D4 -> 180845 | P5: =[1]年次別人口!E4 -> 212508 | Q5: =[1]年次別人口!F4 -> 224539 | R5: =[1]年次別人口!G4 -> 263938 | S5: =[1]年次別人口!H4 -> 0 | T5: =[1]年次別人口!I4 -> 249956 | U5: =[1]年次別人口!J4 -> 0 | V5: =[1]年次別人口!K4 -> 141743 | W5: =[1]年次別人口!L4 -> 269450 | X5: =[1]年次別人口!M4 -> 0
A6: 1986 昭和61年 | B6: =SUM(C6:L6) -> 19130 | C6: 1932 | D6: 2350 | E6: 3024 | F6: 3855 | G6: … | H6: 3137 | I6: … | J6: 1658 | K6: 3174 | L6: … | N6: =[1]年次別人口!C5 -> 1566871 | O6: =[1]年次別人口!D5 -> 182427 | P6: =[1]年次別人口!E5 -> 214728 | Q6: =[1]年次別人口!F5 -> 224730 | R6: =[1]年次別人口!G5 -> 272037 | S6: =[1]年次別人口!H5 -> 0 | T6: =[1]年次別人口!I5 -> 255105 | U6: =[1]年次別人口!J5 -> 0 | V6: =[1]年次別人口!K5 -> 142892 | W6: =[1]年次別人口!L5 -> 274952 | X6: =[1]年次別人口!M5 -> 0
A7: 1987 昭和62年 | B7: =SUM(C7:L7) -> 18533 | C7: 1851 | D7: 2207 | E7: 2824 | F7: 3715 | G7: … | H7: 3092 | I7: … | J7: 1555 | K7: 3289 | L7: … | N7: =[1]年次別人口!C6 -> 1593205 | O7: =[1]年次別人口!D6 -> 182818 | P7: =[1]年次別人口!E6 -> 217384 | Q7: =[1]年次別人口!F6 -> 225693 | R7: =[1]年次別人口!G6 -> 280378 | S7: =[1]年次別人口!H6 -> 0 | T7: =[1]年次別人口!I6 -> 260488 | U7: =[1]年次別人口!J6 -> 0 | V7: =[1]年次別人口!K6 -> 144547 | W7: =[1]年次別人口!L6 -> 281897 | X7: =[1]年次別人口!M6 -> 0
A8: 1988 昭和63年 | B8: 18216 | C8: 1785 | D8: 2148 | E8: 2770 | F8: 3741 | G8: … | H8: 3034 | I8: … | J8: 1615 | K8: 3123 | L8: … | N8: 1618861 | O8: 182735 | P8: 220308 | Q8: 227252 | R8: 287265 | S8: 0 | T8: 266739 | U8: 0 | V8: 145661 | W8: 288901 | X8: 0
A9: 89 平成元年 | B9: 17479 | C9: 1583 | D9: 1999 | E9: 2667 | F9: 3699 | G9: … | H9: 2929 | I9: … | J9: 1516 | K9: 3086 | L9: … | N9: 1645095 | O9: 181535 | P9: 224721 | Q9: 230623 | R9: 294751 | S9: 0 | T9: 272011 | U9: 0 | V9: 146535 | W9: 294919 | X9: 0
A10: 90 2 | B10: 17425 | C10: 1593 | D10: 1993 | E10: 2703 | F10: 2288 | G10: 1392 | H10: 2945 | I10: … | J10: 1521 | K10: 1917 | L10: 1073 | N10: 1667984 | O10: 179184 | P10: 230918 | Q10: 232999 | R10: 188043 | S10: 112623 | T10: 277801 | U10: 0 | V10: 148393 | W10: 190807 | X10: 110974
A11: 91 3 | B11: 17458 | C11: 1496 | D11: 2066 | E11: 2850 | F11: 2341 | G11: 1314 | H11: 2819 | I11: … | J11: 1461 | K11: 1992 | L11: 1119 | N11: 1694988 | O11: 177997 | P11: 234595 | Q11: 236454 | R11: 190543 | S11: 115650 | T11: 281463 | U11: 0 | V11: 150378 | W11: 192601 | X11: 115307
A12: 92 4 | B12: 17325 | C12: 1455 | D12: 2102 | E12: 2694 | F12: 2359 | G12: 1330 | H12: 2879 | I12: … | J12: 1380 | K12: 1949 | L12: 1177 | N12: 1714488 | O12: 176981 | P12: 239907 | Q12: 237749 | R12: 191928 | S12: 117351 | T12: 285597 | U12: 0 | V12: 152014 | W12: 193258 | X12: 119703
A13: 1993 平成5年 | B13: 16371 | C13: 1309 | D13: 2004 | E13: 2610 | F13: 2079 | G13: 1256 | H13: 2747 | I13: … | J13: 1383 | K13: 1826 | L13: 1157 | N13: 1728466 | O13: 174994 | P13: 243771 | Q13: 238168 | R13: 191918 | S13: 119386 | T13: 288941 | U13: 0 | V13: 153020 | W13: 194009 | X13: 124259
A14: 94 6 | B14: 17057 | C14: 1404 | D14: 2196 | E14: 2624 | F14: 2183 | G14: 1333 | H14: 2832 | I14: … | J14: 1399 | K14: 1892 | L14: 1194 | N14: 1740534 | O14: 173594 | P14: 247942 | Q14: 238547 | R14: 191099 | S14: 121427 | T14: 292470 | U14: 0 | V14: 154474 | W14: 193597 | X14: 127384
A15: 95 7 | B15: 16227 | C15: 1324 | D15: 2048 | E15: 2568 | F15: 2042 | G15: 1185 | H15: 2769 | I15: … | J15: 1379 | K15: 1826 | L15: 1086 | N15: 1752009 | O15: 173358 | P15: 251419 | Q15: 241319 | R15: 192102 | S15: 122738 | T15: 296647 | U15: 0 | V15: 155650 | W15: 194308 | X15: 129484
A16: 96 8 | B16: 16339 | C16: 1350 | D16: 2162 | E16: 2605 | F16: 2085 | G16: 1266 | H16: 2747 | I16: … | J16: 1325 | K16: 1749 | L16: 1050 | N16: 1774540 | O16: 175812 | P16: 253271 | Q16: 243767 | R16: 193494 | S16: 124213 | T16: 300609 | U16: 0 | V16: 156831 | W16: 194629 | X16: 131914
A17: 97 9 | B17: 15873 | C17: 1369 | D17: 2055 | E17: 2557 | F17: 1990 | G17: 1124 | H17: 2704 | I17: … | J17: 1264 | K17: 1704 | L17: 1106 | N17: 1791221 | O17: 178405 | P17: 255530 | Q17: 245544 | R17: 194555 | S17: 124531 | T17: 305192 | U17: 0 | V17: 157297 | W17: 196727 | X17: 133440
A18: 1998 平成10年 | B18: 16165 | C18: 1382 | D18: 2047 | E18: 2645 | F18: 2091 | G18: 1137 | H18: 1889 | I18: 808 | J18: 1219 | K18: 1859 | L18: 1088 | N18: 1803546 | O18: 179801 | P18: 257132 | Q18: 247420 | R18: 194903 | S18: 125679 | T18: 202316 | U18: 106984 | V18: 157438 | W18: 197627 | X18: 134246
A19: 99 11 | B19: 15358 | C19: 1336 | D19: 1979 | E19: 2463 | F19: 1951 | G19: 1100 | H19: 1869 | I19: 807 | J19: 1118 | K19: 1751 | L19: 984 | N19: 1812029 | O19: 180515 | P19: 258640 | Q19: 247756 | R19: 195162 | S19: 126780 | T19: 203514 | U19: 108731 | V19: 157152 | W19: 198486 | X19: 135293
A20: 2000 12 | B20: 15332 | C20: 1319 | D20: 1947 | E20: 2569 | F20: 1967 | G20: 1065 | H20: 1823 | I20: 784 | J20: 1109 | K20: 1724 | L20: 1025 | N20: 1816677 | O20: 180488 | P20: 259139 | Q20: 248140 | R20: 196793 | S20: 127325 | T20: 203918 | U20: 109635 | V20: 156441 | W20: 199013 | X20: 135785
A21: 01 13 | B21: 15312 | C21: 1380 | D21: 1982 | E21: 2494 | F21: 1997 | G21: 1034 | H21: 1773 | I21: 824 | J21: 1085 | K21: 1789 | L21: 954 | N21: 1834684 | O21: 185064 | P21: 262443 | Q21: 249707 | R21: 198580 | S21: 128443 | T21: 205066 | U21: 110759 | V21: 156589 | W21: 201453 | X21: 136580
A22: 02 14 | B22: 15577 | C22: 1463 | D22: 2094 | E22: 2457 | F22: 2013 | G22: 1024 | H22: 1898 | I22: 819 | J22: 1010 | K22: 1781 | L22: 1018 | N22: 1848276 | O22: 190254 | P22: 265023 | Q22: 251256 | R22: 199164 | S22: 129105 | T22: 205981 | U22: 111613 | V22: 155571 | W22: 203048 | X22: 137261
A23: 03 15 | B23: 14999 | C23: 1408 | D23: 2007 | E23: 2414 | F23: 1893 | G23: 945 | H23: 1770 | I23: 820 | J23: 1026 | K23: 1749 | L23: 967 | N23: 1862361 | O23: 194901 | P23: 268387 | Q23: 252494 | R23: 200077 | S23: 129660 | T23: 207859 | U23: 112333 | V23: 155234 | W23: 203782 | X23: 137634
A24: 04 16 | B24: 14749 | C24: 1475 | D24: 2028 | E24: 2295 | F24: 1884 | G24: 977 | H24: 1781 | I24: 724 | J24: 952 | K24: 1747 | L24: 886 | N24: 1872703 | O24: 198946 | P24: 271222 | Q24: 253520 | R24: 200856 | S24: 129645 | T24: 208605 | U24: 112473 | V24: 154348 | W24: 205526 | X24: 137562
A25: 05 17 | B25: 14184 | C25: 1405 | D25: 1962 | E25: 2263 | F25: 1868 | G25: 852 | H25: 1687 | I25: 698 | J25: 879 | K25: 1667 | L25: 903 | N25: 1874479 | O25: 201612 | P25: 271750 | Q25: 253138 | R25: 200866 | S25: 129346 | T25: 208576 | U25: 112398 | V25: 152505 | W25: 206905 | X25: 137383
A26: 06 18 | B26: 14730 | C26: 1552 | D26: 1995 | E26: 2312 | F26: 1907 | G26: 847 | H26: 1783 | I26: 789 | J26: 851 | K26: 1746 | L26: 948 | N26: 1889460 | O26: 206768 | P26: 273792 | Q26: 254899 | R26: 202638 | S26: 129500 | T26: 209102 | U26: 113572 | V26: 151858 | W26: 208975 | X26: 138356
A27: 07 19 | B27: 14498 | C27: 1523 | D27: 2016 | E27: 2245 | F27: 1850 | G27: 856 | H27: 1722 | I27: 729 | J27: 875 | K27: 1712 | L27: 970 | N27: 1895901 | O27: 210166 | P27: 276240 | Q27: 255210 | R27: 203006 | S27: 128963 | T27: 209334 | U27: 114646 | V27: 150261 | W27: 209532 | X27: 138543
A28: 08 20 | B28: 14845 | C28: 1638 | D28: 2101 | E28: 2297 | F28: 1933 | G28: 839 | H28: 1766 | I28: 807 | J28: 880 | K28: 1691 | L28: 893 | N28: 1900815 | O28: 213591 | P28: 276624 | Q28: 255365 | R28: 203180 | S28: 129034 | T28: 209789 | U28: 115606 | V28: 148867 | W28: 210231 | X28: 138528
A29: 09 21 | B29: 14506 | C29: 1580 | D29: 2052 | E29: 2221 | F29: 1831 | G29: 819 | H29: 1721 | I29: 773 | J29: 871 | K29: 1685 | L29: 953 | N29: 1907404 | O29: 216780 | P29: 278310 | Q29: 255376 | R29: 203764 | S29: 128668 | T29: 211014 | U29: 116022 | V29: 147757 | W29: 210564 | X29: 139149
A30: 10 22 | B30: 14739 | C30: 1751 | D30: 2006 | E30: 2237 | F30: 1955 | G30: 865 | H30: 1751 | I30: 752 | J30: 834 | K30: 1672 | L30: 916 | N30: 1906674 | O30: 218964 | P30: 277240 | Q30: 254909 | R30: 203771 | S30: 128133 | T30: 211221 | U30: 116261 | V30: 145958 | W30: 210771 | X30: 139446
A31: 11 23 | B31: 14491 | C31: 1706 | D31: 1920 | E31: 2141 | F31: 1887 | G31: 780 | H31: 1824 | I31: 763 | J31: 804 | K31: 1739 | L31: 927 | N31: 1921935 | O31: 223614 | P31: 280423 | Q31: 256523 | R31: 205395 | S31: 128630 | T31: 213788 | U31: 116589 | V31: 145217 | W31: 211671 | X31: 140085
A32: 12 24 | B32: 14487 | C32: 1750 | D32: 1933 | E32: 2151 | F32: 1921 | G32: 727 | H32: 1836 | I32: 754 | J32: 822 | K32: 1666 | L32: 927 | N32: 1928776 | O32: 226938 | P32: 281330 | Q32: 257367 | R32: 206800 | S32: 128739 | T32: 215694 | U32: 116655 | V32: 144080 | W32: 210751 | X32: 140422
A33: 13 25 | B33: 14591 | C33: 1897 | D33: 1979 | E33: 2110 | F33: 1872 | G33: 801 | H33: 1790 | I33: 705 | J33: 778 | K33: 1715 | L33: 944 | N33: 1936189 | O33: 230015 | P33: 281985 | Q33: 258747 | R33: 208404 | S33: 128663 | T33: 217208 | U33: 116279 | V33: 143100 | W33: 211268 | X33: 140520
A34: 14 26 | B34: 14568 | C34: 1845 | D34: 1952 | E34: 2171 | F34: 1939 | G34: 776 | H34: 1879 | I34: 660 | J34: 789 | K34: 1611 | L34: 946 | N34: 1942648 | O34: 233080 | P34: 283513 | Q34: 259508 | R34: 209064 | S34: 128133 | T34: 218136 | U34: 116199 | V34: 141960 | W34: 212322 | X34: 140733
A35: 15 27 | B35: 14589 | C35: 1874 | D35: 2041 | E35: 2128 | F35: 1891 | G35: 746 | H35: 1888 | I35: 645 | J35: 769 | K35: 1657 | L35: 950 | N35: 1943527 | O35: 235736 | P35: 283298 | Q35: 260791 | R35: 208989 | S35: 127359 | T35: 217532 | U35: 115326 | V35: 140753 | W35: 213012 | X35: 140740
A36: 16 28 | B36: 14021 | C36: 1722 | D36: 1848 | E36: 2204 | F36: 1849 | G36: 713 | H36: 1837 | I36: 655 | J36: 727 | K36: 1572 | L36: 894 | N36: 1958405 | O36: 239820 | P36: 286905 | Q36: 263476 | R36: 210171 | S36: 126906 | T36: 219660 | U36: 115905 | V36: 140184 | W36: 214169 | X36: 141209
A37: 17 29 | B37: 13821 | C37: 1772 | D37: 1877 | E37: 2137 | F37: 1737 | G37: 696 | H37: 1743 | I37: 621 | J37: 718 | K37: 1652 | L37: 868 | N37: 1962918 | O37: 241267 | P37: 287761 | Q37: 264312 | R37: 210686 | S37: 126421 | T37: 220905 | U37: 115746 | V37: 139157 | W37: 214973 | X37: 141690
A38: 18 30 | B38: =SUM(C38:L38) -> 13248 | C38: ='3 月・性別，区別出生数・出生率'!$C$8 -> 1744 | D38: ='3 月・性別，区別出生数・出生率'!$C$11 -> 1847 | E38: ='3 月・性別，区別出生数・出生率'!$C$14 -> 1978 | F38: ='3 月・性別，区別出生数・出生率'!$C$17 -> 1711 | G38: ='3 月・性別，区別出生数・出生率'!$C$20 -> 661 | H38: ='3 月・性別，区別出生数・出生率'!$C$23 -> 1682 | I38: ='3 月・性別，区別出生数・出生率'!$C$26 -> 644 | J38: ='3 月・性別，区別出生数・出生率'!$C$29 -> 642 | K38: ='3 月・性別，区別出生数・出生率'!$C$32 -> 1530 | L38: ='3 月・性別，区別出生数・出生率'!$C$35 -> 809 | N38: =[1]年次別人口!C37 -> 1965940 | O38: =[1]年次別人口!D37 -> 242916 | P38: =[1]年次別人口!E37 -> 288114 | Q38: =[1]年次別人口!F37 -> 264183 | R38: =[1]年次別人口!G37 -> 211496 | S38: =[1]年次別人口!H37 -> 126230 | T38: =[1]年次別人口!I37 -> 222042 | U38: =[1]年次別人口!J37 -> 115272 | V38: =[1]年次別人口!K37 -> 137851 | W38: =[1]年次別人口!L37 -> 215942 | X38: =[1]年次別人口!M37 -> 141894
B39: 出生率
A40: 85 60 | B40: =B5/N5*1000 -> 12.54312226 | C40: 10.61129697 | D40: 11.41604081 | E40: 14.00647549 | F40: 13.88583683 | G40: ・ | H40: =H5/T5*1000 -> 12.5102018 | I40: ・ | J40: =J5/V5*1000 -> 12.04997778 | K40: 12.33624049 | L40: ・
A41: 1986 昭和61年 | B41: 12.20904593 | C41: 10.59053758 | D41: 10.94407809 | E41: 13.45614738 | F41: 14.17086646 | G41: ・ | H41: =H6/T6*1000 -> 12.29689736 | I41: ・ | J41: 11.60316883 | K41: 11.54383311 | L41: ・
A42: 1987 昭和62年 | B42: 11.63252689 | C42: 10.1248236 | D42: 10.15254113 | E42: 12.51257239 | F42: 13.24996968 | G42: ・ | H42: =H7/T7*1000 -> 11.87002856 | I42: ・ | J42: 10.75774662 | K42: 11.66738206 | L42: ・
A43: 1988 昭和63年 | B43: 11.25235582 | C43: 9.768243631 | D43: 9.749986383 | E43: 12.18911165 | F43: 13.02281865 | G43: ・ | H43: 11.37441469 | I43: ・ | J43: 11.08738784 | K43: 10.80993143 | L43: ・
A44: 89 平成元年 | B44: 10.62491832 | C44: 8.720081527 | D44: 8.895474833 | E44: 11.56432793 | F44: 12.54957574 | G44: ・ | H44: 10.76794688 | I44: ・ | J44: 10.34565121 | K44: 10.46389009 | L44: ・
A45: 90 2 | B45: 10.44674289 | C45: 8.890302706 | D45: 8.630769364 | E45: 11.60090816 | F45: 12.16742979 | G45: 12.35981993 | H45: 10.60111375 | I45: ・ | J45: 10.24980963 | K45: 10.04680122 | L45: 9.668931461
A46: 91 3 | B46: 10.29977793 | C46: 8.404636033 | D46: 8.806666809 | E46: 12.05308432 | F46: 12.28594071 | G46: 11.3618677 | H46: 10.01552602 | I46: ・ | J46: 9.715516897 | K46: 10.34262543 | L46: 9.704527912
A47: 92 4 | B47: 10.1050576 | C47: 8.221221487 | D47: 8.761728503 | E47: 11.33127794 | F47: 12.29106748 | G47: 11.33352081 | H47: 10.0806381 | I47: ・ | J47: 9.078111227 | K47: 10.08496414 | L47: 9.83266919
A48: 1993 平成5年 | B48: 9.471404124 | C48: 7.480256466 | D48: 8.220830205 | E48: 10.95865104 | F48: 10.83275149 | G48: 10.52049654 | H48: 9.507131214 | I48: ・ | J48: 9.038034244 | K48: 9.411934498 | L48: 9.311196774
A49: 94 6 | B49: 9.799866018 | C49: 8.087837137 | D49: 8.856910084 | E49: 10.99992874 | F49: 11.42339834 | G49: 10.97778912 | H49: 9.683044415 | I49: ・ | J49: 9.056540259 | K49: 9.772878712 | L49: 9.373233687
A50: 95 7 | B50: 9.261938723 | C50: 7.637374681 | D50: 8.14576464 | E50: 10.641516 | F50: 10.6297696 | G50: 9.654711662 | H50: 9.334326658 | I50: ・ | J50: 8.859620944 | K50: 9.397451469 | L50: 8.387136635
A51: 96 8 | B51: 9.20745658 | C51: 7.678656747 | D51: 8.536310908 | E51: 10.68643418 | F51: 10.77552792 | G51: 10.1921699 | H51: 9.138116291 | I51: ・ | J51: 8.448584782 | K51: 8.986327834 | L51: 7.95973134
A52: 97 9 | B52: 8.861553097 | C52: 7.67355175 | D52: 8.042108559 | E52: 10.41361222 | F52: 10.2284701 | G52: 9.025865046 | H52: 8.85999633 | I52: ・ | J52: 8.035754019 | K52: 8.661749531 | L52: 8.288369305
A53: 1998 平成10年 | B53: 8.962898645 | C53: 7.686275382 | D53: 7.960891682 | E53: 10.69032415 | F53: 10.72841362 | G53: 9.04685747 | H53: 9.336878942 | I53: 7.55253122 | J53: 7.742730472 | K53: 9.406609421 | L53: 8.10452453
A54: 99 11 | B54: 8.475581793 | C54: 7.401047004 | D54: 7.651562017 | E54: 9.941232503 | F54: 9.996823152 | G54: 8.676447389 | H54: 9.183643386 | I54: 7.42198637 | J54: 7.114131541 | K54: 8.821780881 | L54: 7.27310356
A55: 2000 12 | B55: 8.439585023 | C55: 7.307965072 | D55: 7.51334226 | E55: 10.35302652 | F55: 9.995274222 | G55: 8.364421755 | H55: 8.939867986 | I55: 7.151001049 | J55: 7.088934486 | K55: 8.662750675 | L55: 7.54869831
A56: 01 13 | B56: 8.345851384 | C56: 7.456879782 | D56: 7.552116079 | E56: 9.987705591 | F56: 10.05640044 | G56: 8.050263541 | H56: 8.645996899 | I56: 7.439576016 | J56: 6.928966913 | K56: 8.880483289 | L56: 6.984917265
A57: 02 14 | B57: 8.427853849 | C57: 7.689720058 | D57: 7.901201028 | E57: 9.778870952 | F57: 10.1072483 | G57: 7.931528601 | H57: 9.214442109 | I57: 7.337854909 | J57: 6.492212559 | K57: 8.771325007 | L57: 7.416527637
A58: 03 15 | B58: 8.053755421 | C58: 7.224180481 | D58: 7.478007504 | E58: 9.560623223 | F58: 9.461357377 | G58: 7.288292457 | H58: 8.515387835 | I58: 7.299724925 | J58: 6.609376812 | K58: 8.582701122 | L58: 7.025880233
A59: 04 16 | B59: 7.875781691 | C59: 7.41407216 | D59: 7.477269543 | E59: 9.052540234 | F59: 9.379854224 | G59: 7.535963593 | H59: 8.537666882 | I59: 6.43710046 | J59: 6.167880374 | K59: 8.500141101 | L59: 6.440732179
A60: 05 17 | B60: 7.56690259 | C60: 6.96883122 | D60: 7.219871205 | E60: 8.939787784 | F60: 9.29973216 | G60: 6.586983749 | H60: 8.088178889 | I60: 6.210074912 | J60: 5.763745451 | K60: 8.056837679 | L60: 6.572865638
A61: 06 18 | B61: 7.795878187 | C61: 7.50599706 | D61: 7.286553296 | E61: 9.070259201 | F61: 9.410870617 | G61: 6.540540541 | H61: 8.526939006 | I61: 6.947134857 | J61: 5.603919451 | K61: 8.355066396 | L61: 6.851889329
A62: 07 19 | B62: 7.647023763 | C62: 7.246652646 | D62: 7.298001738 | E62: 8.796677246 | F62: 9.113031142 | G62: 6.637562712 | H62: 8.226088452 | I62: 6.358704185 | J62: 5.823200964 | K62: 8.170589695 | L62: 7.001436377
A63: 08 20 | B63: 7.809807898 | C63: 7.668862452 | D63: 7.595147203 | E63: 8.994967987 | F63: 9.513731667 | G63: 6.502162221 | H63: 8.417981877 | I63: 6.980606543 | J63: 5.911316813 | K63: 8.043533066 | L63: 6.446350196
A64: 09 21 | B64: 7.605100964 | C64: 7.288495249 | D64: 7.373073192 | E64: 8.696980139 | F64: 8.985885632 | G64: 6.365219013 | H64: 8.155856957 | I64: 6.66252952 | J64: 5.894813782 | K64: 8.002317585 | L64: 6.848773617
A65: 10 22 | B65: 7.730215024 | C65: 7.996748324 | D65: 7.235608137 | E65: 8.775680733 | F65: 9.594103184 | G65: 6.750797999 | H65: 8.289895418 | I65: 6.468205159 | J65: 5.713972513 | K65: 7.932780126 | L65: 6.568851025
A66: 11 23 | B66: 7.539797132 | C66: 7.629218206 | D66: 6.8467993 | E66: 8.346230163 | F66: 9.187175929 | G66: 6.063904221 | H66: 8.531816566 | I66: 6.544356672 | J66: 5.536541865 | K66: 8.215579839 | L66: 6.617410858
A67: 12 24 | B67: 7.510981057 | C67: 7.711357287 | D67: 6.87093449 | E67: 8.357714859 | F67: 9.289168279 | G67: 5.647084411 | H67: 8.51205875 | I67: 6.463503493 | J67: 5.705163798 | K67: 7.905063321 | L67: 6.601529675
A68: 13 25 | B68: 7.535937866 | C68: 8.24728822 | D68: 7.0181038 | E68: 8.154683919 | F68: 8.982553118 | G68: 6.225566014 | H68: 8.240948768 | I68: 6.063003638 | J68: 5.436757512 | K68: 8.117651514 | L68: 6.717904925
A69: 14 26 | B69: 7.499042544 | C69: 7.915737086 | D69: 6.885045836 | E69: 8.365830726 | F69: 9.274671871 | G69: 6.056207222 | H69: 8.613892251 | I69: 5.679911187 | J69: 5.557903635 | K69: 7.587532145 | L69: 6.721948655
A70: 15 2) 27 | B70: 7.506456046 | C70: 7.949570706 | D70: 7.204427846 | E70: 8.15979079 | F70: 9.048323117 | G70: 5.857458052 | H70: 8.679182833 | I70: 5.592841163 | J70: 5.463471471 | K70: 7.778904475 | L70: 6.750035527
A71: 16 28 | B71: 7.159397571 | C71: 7.180385289 | D71: 6.44115648 | E71: 8.365088281 | F71: 8.797598146 | G71: 5.618331679 | H71: 8.36292452 | I71: 5.651179846 | J71: 5.186041203 | K71: 7.339997852 | L71: 6.331041223
A72: 17 29 | B72: 7.041048072 | C72: 7.344560176 | D72: 6.522774108 | E72: 8.085141802 | F72: 8.244496549 | G72: 5.505414449 | H72: 7.890269573 | I72: 5.365196205 | J72: 5.159639831 | K72: 7.684685984 | L72: 6.126049827
A73: 18 30 | B73: =B38/N38*1000 -> 6.738761102 | C73: =C38/O38*1000 -> 7.179436513 | D73: =D38/P38*1000 -> 6.410656893 | E73: 7.487234228 | F73: 8.089987517 | G73: 5.236473105 | H73: 7.575143441 | I73: 5.586786037 | J73: 4.657202342 | K73: 7.08523585 | L73: 5.701439102
A74: 1) 分区後の清田区分を含む。

Sheet 3 月・性別，区別出生数・出生率
A1: 3 月・性別にみた区別出生数及び出生率（人口千対）
O2: 平成30年
A3: 区 ・ 性 | C3: 総数 | D3: 1 月 | E3: 2 月 | F3: 3 月 | G3: 4 月 | H3: 5 月 | I3: 6 月 | J3: 7 月 | K3: 8 月 | L3: 9 月 | M3: 10月 | N3: 11月 | O3: 12月
C4: 出生数
A5: 総数 | C5: =SUM(C8,C11,C14,C17,C20,C23,C26,C29,C32,C35) -> 13248 | D5: 1135 | E5: 1067 | F5: 1078 | G5: 1067 | H5: 1128 | I5: 1110 | J5: 1127 | K5: 1218 | L5: 1087 | M5: 1179 | N5: 1035 | O5: 1017
B6: 男 | C6: 6744 | D6: 597 | E6: 533 | F6: 525 | G6: 544 | H6: 602 | I6: 583 | J6: 575 | K6: 614 | L6: 526 | M6: 617 | N6: 525 | O6: 503
B7: 女 | C7: 6504 | D7: 538 | E7: 534 | F7: 553 | G7: 523 | H7: 526 | I7: 527 | J7: 552 | K7: 604 | L7: 561 | M7: 562 | N7: 510 | O7: 514
A8: 中央 | C8: =SUM(D8:O8) -> 1744 | D8: =SUM(D9:D10) -> 137 | E8: 152 | F8: 150 | G8: 133 | H8: 155 | I8: 145 | J8: 133 | K8: 167 | L8: 133 | M8: 165 | N8: 127 | O8: 147
B9: 男 | C9: =SUM(D9:O9) -> 918 | D9: 68 | E9: 79 | F9: 65 | G9: 77 | H9: 78 | I9: 79 | J9: 78 | K9: 76 | L9: 70 | M9: 95 | N9: 73 | O9: 80
B10: 女 | C10: 826 | D10: 69 | E10: 73 | F10: 85 | G10: 56 | H10: 77 | I10: 66 | J10: 55 | K10: 91 | L10: 63 | M10: 70 | N10: 54 | O10: 67
A11: 北 | C11: 1847 | D11: =SUM(D12:D13) -> 169 | E11: 139 | F11: 137 | G11: 137 | H11: 174 | I11: 164 | J11: 166 | K11: 183 | L11: 138 | M11: 168 | N11: 138 | O11: 134
B12: 男 | C12: 922 | D12: 90 | E12: 80 | F12: 71 | G12: 59 | H12: 95 | I12: 85 | J12: 78 | K12: 92 | L12: 58 | M12: 88 | N12: 66 | O12: 60
B13: 女 | C13: 925 | D13: 79 | E13: 59 | F13: 66 | G13: 78 | H13: 79 | I13: 79 | J13: 88 | K13: 91 | L13: 80 | M13: 80 | N13: 72 | O13: 74
A14: 東 | C14: 1978 | D14: =SUM(D15:D16) -> 167 | E14: 132 | F14: 161 | G14: 171 | H14: 162 | I14: 165 | J14: 179 | K14: 171 | L14: 191 | M14: 184 | N14: 149 | O14: 146
B15: 男 | C15: 995 | D15: 91 | E15: 61 | F15: 82 | G15: 90 | H15: 92 | I15: 85 | J15: 79 | K15: 86 | L15: 90 | M15: 92 | N15: 77 | O15: 70
B16: 女 | C16: 983 | D16: 76 | E16: 71 | F16: 79 | G16: 81 | H16: 70 | I16: 80 | J16: 100 | K16: 85 | L16: 101 | M16: 92 | N16: 72 | O16: 76
A17: 白石 | C17: 1711 | D17: =SUM(D18:D19) -> 144 | E17: 148 | F17: 123 | G17: 138 | H17: 139 | I17: 138 | J17: 143 | K17: 145 | L17: 138 | M17: 168 | N17: 155 | O17: 132
B18: 男 | C18: 882 | D18: 68 | E18: 79 | F18: 66 | G18: 72 | H18: 72 | I18: 71 | J18: 75 | K18: 72 | L18: 70 | M18: 84 | N18: 74 | O18: 79
B19: 女 | C19: 829 | D19: 76 | E19: 69 | F19: 57 | G19: 66 | H19: 67 | I19: 67 | J19: 68 | K19: 73 | L19: 68 | M19: 84 | N19: 81 | O19: 53
A20: 厚別 | C20: 661 | D20: =SUM(D21:D22) -> 53 | E20: 53 | F20: 50 | G20: 60 | H20: 41 | I20: 50 | J20: 48 | K20: 81 | L20: 67 | M20: 52 | N20: 52 | O20: 54
B21: 男 | C21: 360 | D21: 23 | E21: 19 | F21: 27 | G21: 39 | H21: 25 | I21: 31 | J21: 29 | K21: 43 | L21: 44 | M21: 26 | N21: 26 | O21: 28
B22: 女 | C22: 301 | D22: 30 | E22: 34 | F22: 23 | G22: 21 | H22: 16 | I22: 19 | J22: 19 | K22: 38 | L22: 23 | M22: 26 | N22: 26 | O22: 26
A23: 豊平 | C23: 1682 | D23: =SUM(D24:D25) -> 169 | E23: 154 | F23: 141 | G23: 134 | H23: 132 | I23: 142 | J23: 143 | K23: 153 | L23: 121 | M23: 142 | N23: 127 | O23: 124
B24: 男 | C24: 855 | D24: 84 | E24: 78 | F24: 61 | G24: 65 | H24: 63 | I24: 79 | J24: 66 | K24: 89 | L24: 60 | M24: 79 | N24: 63 | O24: 68
B25: 女 | C25: 827 | D25: 85 | E25: 76 | F25: 80 | G25: 69 | H25: 69 | I25: 63 | J25: 77 | K25: 64 | L25: 61 | M25: 63 | N25: 64 | O25: 56
A26: 清田 | C26: 644 | D26: =SUM(D27:D28) -> 52 | E26: 61 | F26: 57 | G26: 49 | H26: 56 | I26: 67 | J26: 42 | K26: 62 | L26: 40 | M26: 52 | N26: 52 | O26: 54
B27: 男 | C27: 319 | D27: 32 | E27: 28 | F27: 27 | G27: 24 | H27: 41 | I27: 28 | J27: 19 | K27: 28 | L27: 17 | M27: 27 | N27: 27 | O27: 21
B28: 女 | C28: 325 | D28: 20 | E28: 33 | F28: 30 | G28: 25 | H28: 15 | I28: 39 | J28: 23 | K28: 34 | L28: 23 | M28: 25 | N28: 25 | O28: 33
A29: 南 | C29: 642 | D29: =SUM(D30:D31) -> 44 | E29: 44 | F29: 62 | G29: 47 | H29: 53 | I29: 57 | J29: 64 | K29: 46 | L29: 61 | M29: 57 | N29: 46 | O29: 61
B30: 男 | C30: 326 | D30: 25 | E30: 20 | F30: 24 | G30: 22 | H30: 28 | I30: 30 | J30: 35 | K30: 22 | L30: 31 | M30: 36 | N30: 26 | O30: 27
B31: 女 | C31: 316 | D31: 19 | E31: 24 | F31: 38 | G31: 25 | H31: 25 | I31: 27 | J31: 29 | K31: 24 | L31: 30 | M31: 21 | N31: 20 | O31: 34
A32: 西 | C32: 1530 | D32: =SUM(D33:D34) -> 133 | E32: 113 | F32: 120 | G32: 123 | H32: 143 | I32: 134 | J32: 145 | K32: 133 | L32: 142 | M32: 119 | N32: 112 | O32: 113
B33: 男 | C33: 772 | D33: 79 | E33: 53 | F33: 70 | G33: 64 | H33: 70 | I33: 70 | J33: 76 | K33: 66 | L33: 63 | M33: 54 | N33: 59 | O33: 48
B34: 女 | C34: 758 | D34: 54 | E34: 60 | F34: 50 | G34: 59 | H34: 73 | I34: 64 | J34: 69 | K34: 67 | L34: 79 | M34: 65 | N34: 53 | O34: 65
A35: 手稲 | C35: 809 | D35: =SUM(D36:D37) -> 67 | E35: 71 | F35: 77 | G35: 75 | H35: 73 | I35: 48 | J35: 64 | K35: 77 | L35: 56 | M35: 72 | N35: 77 | O35: 52
B36: 男 | C36: 395 | D36: 37 | E36: 36 | F36: 32 | G36: 32 | H36: 38 | I36: 25 | J36: 40 | K36: 40 | L36: 23 | M36: 36 | N36: 34 | O36: 22
B37: 女 | C37: 414 | D37: 30 | E37: 35 | F37: 45 | G37: 43 | H37: 35 | I37: 23 | J37: 24 | K37: 37 | L37: 33 | M37: 36 | N37: 43 | O37: 30
C38: 出生率 | R38: =[1]人口!B9 -> (国調年)日本人推計人口 (国調年以外)国調ベース人口 | S38: =[1]人口!C9 -> １月 | T38: =[1]人口!D9 -> ２月 | U38: =[1]人口!E9 -> ３月 | V38: =[1]人口!F9 -> ４月 | W38: =[1]人口!G9 -> ５月 | X38: =[1]人口!H9 -> ６月 | Y38: =[1]人口!I9 -> ７月 | Z38: =[1]人口!J9 -> ８月 | AA38: =[1]人口!K9 -> ９月 | AB38: =[1]人口!L9 -> １０月 | AC38: =[1]人口!M9 -> １１月 | AD38: =[1]人口!N9 -> １２月
A39: 総数 | C39: =C5/R39*1000 -> 6.738761102 | D39: =D5/(S39/$R$50*S$50)*1000 -> 6.80562881 | E39: 7.085684797 | F39: 6.467326335 | G39: 6.619247324 | H39: 6.757746776 | I39: 6.869665581 | J39: 6.750241191 | K39: 7.294219361 | L39: 6.726346024 | M39: 7.061138282 | N39: 6.403433878 | O39: 6.088499178 | R39: =[1]人口!B10 -> 1965940 | S39: =[1]人口!C10 -> 1963626 | T39: =[1]人口!D10 -> 1962987 | U39: =[1]人口!E10 -> 1962570 | V39: =[1]人口!F10 -> 1961225 | W39: =[1]人口!G10 -> 1965343 | X39: =[1]人口!H10 -> 1965889 | Y39: =[1]人口!I10 -> 1965784 | Z39: =[1]人口!J10 -> 1966073 | AA39: =[1]人口!K10 -> 1966174 | AB39: =[1]人口!L10 -> 1965940 | AC39: =[1]人口!M10 -> 1966523 | AD39: =[1]人口!N10 -> 1966717
A40: 中央 | C40: =C8/R40*1000 -> 7.179436513 | D40: =D8/(S40/$R$50*S$50)*1000 -> 6.677282484 | E40: =E8/(T40/$R$50*T$50)*1000 -> 8.202601295 | F40: =F8/(U40/$R$50*U$50)*1000 -> 7.311892061 | G40: 6.701371058 | H40: 7.531021619 | I40: 7.272035263 | J40: 6.452729453 | K40: 8.094327902 | L40: 6.657642609 | M40: 7.997587378 | N40: 6.355964158 | O40: 7.11999396 | R40: =[1]人口!B11 -> 242916 | S40: =[1]人口!C11 -> 241575 | T40: =[1]人口!D11 -> 241561 | U40: =[1]人口!E11 -> 241542 | V40: =[1]人口!F11 -> 241468 | W40: =[1]人口!G11 -> 242331 | X40: =[1]人口!H11 -> 242596 | Y40: =[1]人口!I11 -> 242683 | Z40: =[1]人口!J11 -> 242922 | AA40: =[1]人口!K11 -> 243054 | AB40: =[1]人口!L11 -> 242916 | AC40: =[1]人口!M11 -> 243105 | AD40: =[1]人口!N11 -> 243091
A41: 北 | C41: =C11/R41*1000 -> 6.410656893 | D41: =D11/(S41/$R$50*S$50)*1000 -> 6.91235435 | E41: 6.293312653 | F41: 5.603486724 | G41: 5.805819404 | H41: 7.122205998 | I41: 6.934886674 | J41: 6.793189589 | K41: 7.483935505 | L41: 5.832412792 | M41: 6.865561952 | N41: 5.826239941 | O41: 5.47171595 | R41: =[1]人口!B12 -> 288114 | S41: =[1]人口!C12 -> 287867 | T41: =[1]人口!D12 -> 287919 | U41: =[1]人口!E12 -> 287868 | V41: =[1]人口!F12 -> 287097 | W41: =[1]人口!G12 -> 287651 | X41: =[1]人口!H12 -> 287724 | Y41: =[1]人口!I12 -> 287717 | Z41: =[1]人口!J12 -> 287907 | AA41: =[1]人口!K12 -> 287874 | AB41: =[1]人口!L12 -> 288114 | AC41: =[1]人口!M12 -> 288179 | AD41: =[1]人口!N12 -> 288345
A42: 東 | C42: =C14/R42*1000 -> 7.487234228 | D42: =D14/(S42/$R$50*S$50)*1000 -> 7.437307845 | E42: 6.51240547 | F42: 7.181616626 | G42: 7.885311452 | H42: 7.218237861 | I42: 7.594472208 | J42: 7.974771721 | K42: 7.61971244 | L42: 8.796135076 | M42: 8.200571622 | N42: 6.863543146 | O42: 6.508625975 | R42: =[1]人口!B13 -> 264183 | S42: =[1]人口!C13 -> 264382 | T42: =[1]人口!D13 -> 264221 | U42: =[1]人口!E13 -> 263958 | V42: =[1]人口!F13 -> 263845 | W42: =[1]人口!G13 -> 264250 | X42: =[1]人口!H13 -> 264337 | Y42: =[1]人口!I13 -> 264281 | Z42: =[1]人口!J13 -> 264234 | AA42: =[1]人口!K13 -> 264188 | AB42: =[1]人口!L13 -> 264183 | AC42: =[1]人口!M13 -> 264125 | AD42: =[1]人口!N13 -> 264116
A43: 白石 | C43: =C17/R43*1000 -> 8.089987517 | D43: =D17/(S43/$R$50*S$50)*1000 -> 8.044847884 | E43: 9.156161883 | F43: 6.872717036 | G43: 7.96905406 | H43: 7.754584926 | I43: 7.9505635 | J43: 7.971355352 | K43: 8.076686479 | L43: 7.938834566 | M43: 9.352727787 | N43: 8.908845543 | O43: 7.340658349 | R43: =[1]人口!B14 -> 211496 | S43: =[1]人口!C14 -> 210754 | T43: =[1]人口!D14 -> 210709 | U43: =[1]人口!E14 -> 210721 | V43: =[1]人口!F14 -> 210690 | W43: =[1]人口!G14 -> 211051 | X43: =[1]人口!H14 -> 211180 | Y43: =[1]人口!I14 -> 211220 | Z43: =[1]人口!J14 -> 211381 | AA43: =[1]人口!K14 -> 211492 | AB43: =[1]人口!L14 -> 211496 | AC43: =[1]人口!M14 -> 211681 | AD43: =[1]人口!N14 -> 211724
A44: 厚別 | C44: =C20/R44*1000 -> 5.236473105 | D44: =D20/(S44/$R$50*S$50)*1000 -> 4.938722315 | E44: 5.471638556 | F44: 4.661422375 | G44: 5.78332343 | H44: 3.819372398 | I44: 4.813182582 | J44: 4.474540325 | K44: 7.552939553 | L44: 6.457328295 | M44: 4.850337198 | N44: 5.012769621 | O44: 5.039683351 | R44: =[1]人口!B15 -> 126230 | S44: =[1]人口!C15 -> 126355 | T44: =[1]人口!D15 -> 126268 | U44: =[1]人口!E15 -> 126294 | V44: =[1]人口!F15 -> 126225 | W44: =[1]人口!G15 -> 126393 | X44: =[1]人口!H15 -> 126389 | Y44: =[1]人口!I15 -> 126306 | Z44: =[1]人口!J15 -> 126270 | AA44: =[1]人口!K15 -> 126239 | AB44: =[1]人口!L15 -> 126230 | AC44: =[1]人口!M15 -> 126211 | AD44: =[1]人口!N15 -> 126160
A45: 豊平 | C45: =C23/R45*1000 -> 7.575143441 | D45: =D23/(S45/$R$50*S$50)*1000 -> 8.992523894 | E45: 9.072626203 | F45: 7.508406746 | G45: 7.364377852 | H45: 7.005036997 | I45: 7.785192963 | J45: 7.58615728 | K45: 8.117462421 | L45: 6.633174131 | M45: 7.529816358 | N45: 6.957514957 | O45: 6.568587754 | R45: =[1]人口!B16 -> 222042 | S45: =[1]人口!C16 -> 221277 | T45: =[1]人口!D16 -> 221270 | U45: =[1]人口!E16 -> 221107 | V45: =[1]人口!F16 -> 221381 | W45: =[1]人口!G16 -> 221868 | X45: =[1]人口!H16 -> 221917 | Y45: =[1]人口!I16 -> 221945 | Z45: =[1]人口!J16 -> 221923 | AA45: =[1]人口!K16 -> 221940 | AB45: =[1]人口!L16 -> 222042 | AC45: =[1]人口!M16 -> 222086 | AD45: =[1]人口!N16 -> 222270
A46: 清田 | C46: =C26/R46*1000 -> 5.586786037 | D46: =D26/(S46/$R$50*S$50)*1000 -> 5.293053328 | E46: 6.87543618 | F46: 5.802301733 | G46: 5.162912477 | H46: 5.712904204 | I46: 7.067265455 | J46: 4.287538617 | K46: 6.327906936 | L46: 4.220360638 | M46: 5.311420506 | N46: 5.489515546 | O46: 5.519871959 | R46: =[1]人口!B17 -> 115272 | S46: =[1]人口!C17 -> 115672 | T46: =[1]人口!D17 -> 115655 | U46: =[1]人口!E17 -> 115666 | V46: =[1]人口!F17 -> 115471 | W46: =[1]人口!G17 -> 115415 | X46: =[1]人口!H17 -> 115344 | Y46: =[1]人口!I17 -> 115338 | Z46: =[1]人口!J17 -> 115362 | AA46: =[1]人口!K17 -> 115314 | AB46: =[1]人口!L17 -> 115272 | AC46: =[1]人口!M17 -> 115250 | AD46: =[1]人口!N17 -> 115185
A47: 南 | C47: =C29/R47*1000 -> 4.657202342 | D47: =D29/(S47/$R$50*S$50)*1000 -> 3.730706198 | E47: =E29/(T47/$R$50*T$50)*1000 -> 4.140652233 | F47: 5.273918666 | G47: 4.141379027 | H47: 4.493708112 | I47: 4.997297784 | J47: 5.430470566 | K47: 3.915962831 | L47: 5.370042087 | M47: 4.868510437 | N47: 4.06002747 | O47: 5.2133749 | R47: =[1]人口!B18 -> 137851 | S47: =[1]人口!C18 -> 138865 | T47: =[1]人口!D18 -> 138522 | U47: =[1]人口!E18 -> 138417 | V47: =[1]人口!F18 -> 138078 | W47: =[1]人口!G18 -> 138868 | X47: =[1]人口!H18 -> 138775 | Y47: =[1]人口!I18 -> 138763 | Z47: =[1]人口!J18 -> 138309 | AA47: =[1]人口!K18 -> 138205 | AB47: =[1]人口!L18 -> 137851 | AC47: =[1]人口!M18 -> 137848 | AD47: =[1]人口!N18 -> 137766
A48: 西 | C48: =C32/R48*1000 -> 7.08523585 | D48: =D32/(S48/$R$50*S$50)*1000 -> 7.285061789 | E48: =E32/(T48/$R$50*T$50)*1000 -> 6.851551977 | F48: 6.569504002 | G48: 6.953737779 | H48: 7.807784449 | I48: 7.556795708 | J48: 7.913791484 | K48: 7.254687115 | L48: 8.001197941 | M48: 6.488450752 | N48: 6.305022425 | O48: 6.156341367 | R48: =[1]人口!B19 -> 215942 | S48: =[1]人口!C19 -> 214956 | T48: =[1]人口!D19 -> 214993 | U48: =[1]人口!E19 -> 215070 | V48: =[1]人口!F19 -> 215208 | W48: =[1]人口!G19 -> 215645 | X48: =[1]人口!H19 -> 215744 | Y48: =[1]人口!I19 -> 215732 | Z48: =[1]人口!J19 -> 215856 | AA48: =[1]人口!K19 -> 215926 | AB48: =[1]人口!L19 -> 215942 | AC48: =[1]人口!M19 -> 216124 | AD48: =[1]人口!N19 -> 216116
A49: 手稲 | C49: =C35/R49*1000 -> 5.701439102 | D49: =D35/(S49/$R$50*S$50)*1000 -> 5.558443436 | E49: =E35/(T49/$R$50*T$50)*1000 -> 6.523875648 | F49: =F35/(U49/$R$50*U$50)*1000 -> 6.387881821 | G49: 6.436844853 | H49: 6.058434275 | I49: 4.116067464 | J49: 5.314200996 | K49: 6.388692072 | L49: 4.800082663 | M49: 5.974473448 | N49: 6.601415881 | O49: 4.313377561 | R49: =[1]人口!B20 -> 141894 | S49: =[1]人口!C20 -> 141923 | T49: =[1]人口!D20 -> 141869 | U49: =[1]人口!E20 -> 141927 | V49: =[1]人口!F20 -> 141762 | W49: =[1]人口!G20 -> 141871 | X49: =[1]人口!H20 -> 141883 | Y49: =[1]人口!I20 -> 141799 | Z49: =[1]人口!J20 -> 141909 | AA49: =[1]人口!K20 -> 141942 | AB49: =[1]人口!L20 -> 141894 | AC49: =[1]人口!M20 -> 141914 | AD49: =[1]人口!N20 -> 141944
R50: =[1]人口!B21 -> 365 | S50: =[1]人口!C21 -> 31 | T50: =[1]人口!D21 -> 28 | U50: =[1]人口!E21 -> 31 | V50: =[1]人口!F21 -> 30 | W50: =[1]人口!G21 -> 31 | X50: =[1]人口!H21 -> 30 | Y50: =[1]人口!I21 -> 31 | Z50: =[1]人口!J21 -> 31 | AA50: =[1]人口!K21 -> 30 | AB50: =[1]人口!L21 -> 31 | AC50: =[1]人口!M21 -> 30 | AD50: =[1]人口!N21 -> 31

Sheet 4 出生の場所別，年次別出生数・百分率
A1: 4 出生の場所別にみた年次別出生数及び百分率
A3: 年次 | B3: 総数 | C3: 施設内 | G3: 施設外
C4: 総 数 | D4: 病院 | E4: 診療所 | F4: 助産所 | G4: 総 数 | H4: 自宅 | I4: その他
B5: 出生数
A6: 85 60 | B6: =SUM(C6,G6) -> 19314 | C6: =SUM(D6:F6) -> 19238 | D6: 11970 | E6: 6993 | F6: 275 | G6: =SUM(H6:I6) -> 76 | H6: 62 | I6: 14
A7: 1986 昭和61年 | B7: =SUM(C7,G7) -> 19130 | C7: =SUM(D7:F7) -> 19060 | D7: 12102 | E7: 6720 | F7: 238 | G7: =SUM(H7:I7) -> 70 | H7: 60 | I7: 10
A8: 1987 昭和62年 | B8: =SUM(C8,G8) -> 18533 | C8: =SUM(D8:F8) -> 18465 | D8: 11818 | E8: 6439 | F8: 208 | G8: =SUM(H8:I8) -> 68 | H8: 63 | I8: 5
A9: 1988 昭和63年 | B9: 18216 | C9: 18165 | D9: 12235 | E9: 5779 | F9: 151 | G9: 51 | H9: 42 | I9: 9
A10: 89 平成元年 | B10: 17479 | C10: 17429 | D10: 12244 | E10: 5031 | F10: 154 | G10: 50 | H10: 45 | I10: 5
A11: 90 2 | B11: 17425 | C11: 17382 | D11: 12413 | E11: 4883 | F11: 86 | G11: 43 | H11: 39 | I11: 4
A12: 91 3 | B12: 17458 | C12: 17412 | D12: 12811 | E12: 4535 | F12: 66 | G12: 46 | H12: 41 | I12: 5
A13: 92 4 | B13: 17325 | C13: 17285 | D13: 12932 | E13: 4260 | F13: 93 | G13: 40 | H13: 33 | I13: 7
A14: 1993 平成5年 | B14: 16371 | C14: 16352 | D14: 12306 | E14: 3971 | F14: 75 | G14: 19 | H14: 18 | I14: 1
A15: 94 6 | B15: 17057 | C15: 17015 | D15: 12902 | E15: 4020 | F15: 93 | G15: 42 | H15: 37 | I15: 5
A16: 95 7 | B16: 16227 | C16: 16186 | D16: 11791 | E16: 4305 | F16: 90 | G16: 41 | H16: 36 | I16: 5
A17: 96 8 | B17: 16339 | C17: 16297 | D17: 11255 | E17: 4953 | F17: 89 | G17: 42 | H17: 40 | I17: 2
A18: 97 9 | B18: 15873 | C18: 15822 | D18: 10697 | E18: 5036 | F18: 89 | G18: 51 | H18: 48 | I18: 3
A19: 1998 平成10年 | B19: 16165 | C19: 16090 | D19: 10765 | E19: 5249 | F19: 76 | G19: 75 | H19: 70 | I19: 5
A20: 99 11 | B20: 15358 | C20: 15256 | D20: 10020 | E20: 5171 | F20: 65 | G20: 102 | H20: 92 | I20: 10
A21: 2000 12 | B21: 15332 | C21: 15236 | D21: 9868 | E21: 5307 | F21: 61 | G21: 96 | H21: 86 | I21: 10
A22: 01 13 | B22: 15312 | C22: 15228 | D22: 9971 | E22: 5205 | F22: 52 | G22: 84 | H22: 78 | I22: 6
A23: 02 14 | B23: 15577 | C23: 15487 | D23: 9866 | E23: 5575 | F23: 46 | G23: 90 | H23: 83 | I23: 7
A24: 03 15 | B24: 14999 | C24: 14903 | D24: 8954 | E24: 5889 | F24: 60 | G24: 96 | H24: 89 | I24: 7
A25: 04 16 | B25: 14749 | C25: 14662 | D25: 8568 | E25: 6046 | F25: 48 | G25: 87 | H25: 76 | I25: 11
A26: 05 17 | B26: 14184 | C26: 14091 | D26: 8076 | E26: 5979 | F26: 36 | G26: 93 | H26: 83 | I26: 10
A27: 06 18 | B27: 14730 | C27: 14655 | D27: 8119 | E27: 6495 | F27: 41 | G27: 75 | H27: 68 | I27: 7
A28: 07 19 | B28: 14498 | C28: 14435 | D28: 7691 | E28: 6715 | F28: 29 | G28: 63 | H28: 61 | I28: 2
A29: 08 20 | B29: 14845 | C29: 14778 | D29: 7821 | E29: 6923 | F29: 34 | G29: 67 | H29: 60 | I29: 7
A30: 09 21 | B30: 14506 | C30: 14444 | D30: 7887 | E30: 6525 | F30: 32 | G30: 62 | H30: 55 | I30: 7
A31: 10 22 | B31: 14739 | C31: 14681 | D31: 7940 | E31: 6714 | F31: 27 | G31: 58 | H31: 52 | I31: 6
A32: 11 23 | B32: 14491 | C32: 14442 | D32: 8108 | E32: 6300 | F32: 34 | G32: 49 | H32: 45 | I32: 4
A33: 12 24 | B33: 14487 | C33: 14446 | D33: 8381 | E33: 6025 | F33: 40 | G33: 41 | H33: 34 | I33: 7
A34: 13 25 | B34: 14591 | C34: 14547 | D34: 8628 | E34: 5876 | F34: 43 | G34: 44 | H34: 39 | I34: 5
A35: 14 26 | B35: 14568 | C35: 14538 | D35: 8842 | E35: 5660 | F35: 36 | G35: 30 | H35: 24 | I35: 6
A36: 15 27 | B36: 14589 | C36: 14564 | D36: 8942 | E36: 5582 | F36: 40 | G36: 25 | H36: 23 | I36: 2
A37: 16 28 | B37: 14021 | C37: 13991 | D37: 8563 | E37: 5403 | F37: 25 | G37: 30 | H37: 27 | I37: 3
A38: 17 29 | B38: 13821 | C38: 13798 | D38: 8325 | E38: 5440 | F38: 33 | G38: 23 | H38: 19 | I38: 4
A39: 18 30 | B39: =SUM(C39,G39) -> 13248 | C39: =SUM(D39:F39) -> 13214 | D39: ='5 出生の場所・出産時の立会者別，区別出生数 '!$F$6 -> 8305 | E39: ='5 出生の場所・出産時の立会者別，区別出生数 '!$I$6 -> 4884 | F39: ='5 出生の場所・出産時の立会者別，区別出生数 '!$L$6 -> 25 | G39: =SUM(H39:I39) -> 34 | H39: ='5 出生の場所・出産時の立会者別，区別出生数 '!$O$6 -> 26 | I39: ='5 出生の場所・出産時の立会者別，区別出生数 '!$S$6 -> 8
B40: 百分率
A41: 85 60 | B41: =SUM(C41,G41) -> 100 | C41: =C6/$B6*100 -> 99.60650305 | D41: 61.97576887 | E41: 36.20689655 | F41: 1.423837631 | G41: 0.3934969452 | H41: 0.3210106658 | I41: 0.07248627938
A42: 1986 昭和61年 | B42: =SUM(C42,G42) -> 100 | C42: 99.63408259 | D42: 63.26189232 | E42: 35.12807109 | F42: 1.244119185 | G42: 0.3659174072 | H42: 0.3136434919 | I42: 0.05227391532
A43: 1987 昭和62年 | B43: =SUM(C43,G43) -> 100 | C43: 99.63308693 | D43: 63.76733394 | E43: 34.74343064 | F43: 1.122322344 | G43: 0.366913074 | H43: 0.3399341715 | I43: 0.0269789025
A44: 1988 昭和63年 | B44: 100 | C44: 99.72002635 | D44: 67.16622749 | E44: 31.72485727 | F44: 0.8289415898 | G44: 0.2799736495 | H44: 0.2305665349 | I44: 0.04940711462
A45: 89 平成元年 | B45: 100 | C45: 99.71394245 | D45: 70.04977401 | E45: 28.78311116 | F45: 0.8810572687 | G45: 0.2860575548 | H45: 0.2574517993 | I45: 0.02860575548
A46: 90 2 | B46: 100 | C46: 99.75322812 | D46: 71.23672884 | E46: 28.02295552 | F46: 0.493543759 | G46: 0.2467718795 | H46: 0.2238163558 | I46: 0.02295552367
A47: 91 3 | B47: 100 | C47: 99.73651048 | D47: 73.38183068 | E47: 25.97662963 | F47: 0.3780501776 | G47: 0.2634895177 | H47: 0.2348493527 | I47: 0.02864016497
A48: 92 4 | B48: 100 | C48: 99.76911977 | D48: 74.64357864 | E48: 24.58874459 | F48: 0.5367965368 | G48: 0.2308802309 | H48: 0.1904761905 | I48: 0.0404040404
A49: 1993 平成5年 | B49: 100 | C49: 99.88394112 | D49: 75.16950706 | E49: 24.25630688 | F49: 0.4581271761 | G49: 0.1160588846 | H49: 0.1099505223 | I49: 0.006108362348
A50: 94 6 | B50: 100 | C50: 99.75376678 | D50: 75.6404995 | E50: 23.56803658 | F50: 0.5452306971 | G50: 0.246233218 | H50: 0.2169197397 | I50: 0.02931347834
A51: 95 7 | B51: 100 | C51: 99.74733469 | D51: 72.66284587 | E51: 26.52985764 | F51: 0.5546311703 | G51: 0.2526653109 | H51: 0.2218524681 | I51: 0.03081284279
A52: 96 8 | B52: 100 | C52: 99.74294632 | D52: 68.88426464 | E52: 30.3139727 | F52: 0.5447089785 | G52: 0.2570536753 | H52: 0.2448130241 | I52: 0.0122406512
A53: 97 9 | B53: 100 | C53: 99.67869968 | D53: 67.39116739 | E53: 31.72683173 | F53: 0.5607005607 | G53: 0.3213003213 | H53: 0.3024003024 | I53: 0.0189000189
A54: 1998 平成10年 | B54: 100 | C54: 99.53603464 | D54: 66.59449428 | E54: 32.4713888 | F54: 0.470151562 | G54: 0.4639653573 | H54: 0.4330343334 | I54: 0.03093102382
A55: 99 11 | B55: 100 | C55: 99.33585102 | D55: 65.24287017 | E55: 33.66974867 | F55: 0.4232321917 | G55: 0.6641489777 | H55: 0.5990363329 | I55: 0.06511264488
A56: 2000 12 | B56: 100 | C56: 99.3738586 | D56: 64.36211845 | E56: 34.61387947 | F56: 0.3978606835 | G56: 0.6261414036 | H56: 0.5609183407 | I56: 0.06522306288
A57: 01 13 | B57: 100 | C57: 99.45141066 | D57: 65.11886102 | E57: 33.99294671 | F57: 0.3396029258 | G57: 0.5485893417 | H57: 0.5094043887 | I57: 0.03918495298
A58: 02 14 | B58: 100 | C58: 99.42222508 | D58: 63.33697118 | E58: 35.78994672 | F58: 0.2953071837 | G58: 0.5777749246 | H58: 0.5328368749 | I58: 0.04493804969
A59: 03 15 | B59: 100 | C59: 99.35995733 | D59: 59.69731315 | E59: 39.26261751 | F59: 0.4000266684 | G59: 0.6400426695 | H59: 0.5933728915 | I59: 0.04666977799
A60: 04 16 | B60: 100 | C60: 99.4101295 | D60: 58.09207404 | E60: 40.99260967 | F60: 0.3254457929 | G60: 0.5898704997 | H60: 0.5152891721 | I60: 0.07458132755
A61: 05 17 | B61: 100 | C61: 99.34433164 | D61: 56.93739425 | E61: 42.15313029 | F61: 0.2538071066 | G61: 0.6556683587 | H61: 0.5851663847 | I61: 0.07050197406
A62: 06 18 | B62: 100 | C62: 99.49083503 | D62: 55.11880516 | E62: 44.09368635 | F62: 0.2783435166 | G62: 0.5091649695 | H62: 0.4616429056 | I62: 0.04752206382
A63: 07 19 | B63: 100 | C63: 99.5654573 | D63: 53.04869637 | E63: 46.31673334 | F63: 0.20002759 | G63: 0.4345426955 | H63: 0.4207476893 | I63: 0.01379500621
A64: 08 20 | B64: 100 | C64: 99.54866959 | D64: 52.68440552 | E64: 46.63523072 | F64: 0.2290333446 | G64: 0.4513304143 | H64: 0.4041764904 | I64: 0.04715392388
A65: 09 21 | B65: 100 | C65: 99.57259065 | D65: 54.37060527 | E65: 44.98138701 | F65: 0.2205983731 | G65: 0.4274093479 | H65: 0.3791534537 | I65: 0.04825589411
A66: 10 22 | B66: 100 | C66: 99.60648619 | D66: 53.87068322 | E66: 45.55261551 | F66: 0.1831874618 | G66: 0.3935138069 | H66: 0.3528054821 | I66: 0.04070832485
A67: 11 23 | B67: 100 | C67: 99.66185908 | D67: 55.95197019 | E67: 43.47526051 | F67: 0.23462839 | G67: 0.3381409151 | H67: 0.310537575 | I67: 0.02760334
A68: 12 24 | B68: 100 | C68: 99.71698764 | D68: 57.85186719 | E68: 41.58901084 | F68: 0.2761096155 | G68: 0.2830123559 | H68: 0.2346931732 | I68: 0.04831918272
A69: 13 25 | B69: 100 | C69: 99.69844425 | D69: 59.13234185 | E69: 40.27140018 | F69: 0.2947022137 | G69: 0.3015557535 | H69: 0.2672880543 | I69: 0.03426769927
A70: 14 26 | B70: 100 | C70: 99.79406919 | D70: 60.69467326 | E70: 38.85227897 | F70: 0.2471169687 | G70: 0.2059308072 | H70: 0.1647446458 | I70: 0.04118616145
A71: 15 27 | B71: 100 | C71: 99.82863801 | D71: 61.29275482 | E71: 38.26170402 | F71: 0.2741791761 | G71: 0.1713619851 | H71: 0.1576530263 | I71: 0.0137089588
A72: 16 28 | B72: 100 | C72: 99.78603523 | D72: 61.0726767 | E72: 38.53505456 | F72: 0.1783039726 | G72: 0.2139647671 | H72: 0.1925682904 | I72: 0.02139647671
A73: 17 29 | B73: 100 | C73: 99.83358657 | D73: 60.23442587 | E73: 39.3603936 | F73: 0.2387670936 | G73: 0.1664134288 | H73: 0.137471963 | I73: 0.02894146589
A74: 18 30 | B74: =SUM(C74,G74) -> 100 | C74: =C39/$B39*100 -> 99.74335749 | D74: 62.68870773 | E74: 36.86594203 | F74: =F39/$B39*100 -> 0.1887077295 | G74: 0.2566425121 | H74: 0.1962560386 | I74: 0.06038647343

Sheet 5 出生の場所・出産時の立会者別，区別出生数
A1: 5 出生の場所・出産時の立会者別にみた区別出生数
V2: ='3 月・性別，区別出生数・出生率'!$O$2 -> 平成30年
A3: 区 | B3: 総 数 | F3: 施設内 | O3: 施設外
F4: 病 院 | I4: 診 療 所 | L4: 助産所 | O4: 自 宅 | S4: そ の 他
B5: 総数 | C5: 医師 | D5: 助産師 | E5: その他 | F5: 総数 | G5: 医師 | H5: 助産師 | I5: 総数 | J5: 医師 | K5: 助産師 | L5: 総数 | M5: 医師 | N5: 助産師 | O5: 総数 | P5: 医師 | Q5: 助産師 | R5: その他 | S5: 総数 | T5: 医師 | U5: 助産師 | V5: その他
A6: 総数 | B6: =SUM(F6,I6,L6,O6,S6) -> 13248 | C6: =SUM(G6,J6,M6,P6,T6) -> 12144 | D6: 1096 | E6: =SUM(R6,V6) -> 8 | F6: =SUM(F7:F16) -> 8305 | G6: =SUM(G7:G16) -> 7689 | H6: 616 | I6: 4884 | J6: 4445 | K6: 439 | L6: 25 | M6: 1 | N6: 24 | O6: 26 | P6: 6 | Q6: 15 | R6: 5 | S6: =SUM(S7:S16) -> 8 | T6: 3 | U6: 2 | V6: 3
A7: 中央 | B7: 1744 | C7: 1474 | D7: 267 | E7: =SUM(R7,V7) -> 3 | F7: =SUM(G7:H7) -> 1227 | G7: 991 | H7: 236 | I7: =SUM(J7:K7) -> 508 | J7: 482 | K7: 26 | L7: =SUM(M7:N7) -> 3 | M7: 0 | N7: 3 | O7: =SUM(P7:R7) -> 5 | P7: 1 | Q7: 2 | R7: 2 | S7: =SUM(T7:V7) -> 1 | T7: 0 | U7: 0 | V7: 1
A8: 北 | B8: =SUM(F8,I8,L8,O8,S8) -> 1847 | C8: 1688 | D8: =SUM(H8,K8,N8,Q8,U8) -> 159 | E8: =SUM(R8,V8) -> 0 | F8: =SUM(G8:H8) -> 1127 | G8: 1065 | H8: 62 | I8: =SUM(J8:K8) -> 710 | J8: 621 | K8: 89 | L8: =SUM(M8:N8) -> 8 | M8: 0 | N8: 8 | O8: =SUM(P8:R8) -> 2 | P8: 2 | Q8: 0 | R8: 0 | S8: =SUM(T8:V8) -> 0 | T8: 0 | U8: 0 | V8: 0
A9: 東 | B9: 1978 | C9: 1916 | D9: 59 | E9: 3 | F9: 1695 | G9: 1650 | H9: 45 | I9: 275 | J9: 264 | K9: 11 | L9: 3 | M9: 0 | N9: 3 | O9: 4 | P9: 2 | Q9: 0 | R9: 2 | S9: 1 | T9: 0 | U9: 0 | V9: 1
A10: 白石 | B10: 1711 | C10: 1635 | D10: 75 | E10: 1 | F10: 1437 | G10: 1370 | H10: 67 | I10: 271 | J10: 265 | K10: 6 | L10: 0 | M10: 0 | N10: 0 | O10: 2 | P10: 0 | Q10: 2 | R10: 0 | S10: 1 | T10: 0 | U10: 0 | V10: 1
A11: 厚別 | B11: 661 | C11: 637 | D11: 24 | E11: 0 | F11: 346 | G11: 324 | H11: 22 | I11: 314 | J11: 313 | K11: 1 | L11: 0 | M11: 0 | N11: 0 | O11: 0 | P11: 0 | Q11: 0 | R11: 0 | S11: 1 | T11: 0 | U11: 1 | V11: 0
A12: 豊平 | B12: 1682 | C12: 1600 | D12: 82 | E12: 0 | F12: 994 | G12: 924 | H12: 70 | I12: 685 | J12: 675 | K12: 10 | L12: 1 | M12: 0 | N12: 1 | O12: 1 | P12: 0 | Q12: 1 | R12: 0 | S12: 1 | T12: 1 | U12: 0 | V12: 0
A13: 清田 | B13: 644 | C13: 622 | D13: 22 | E13: 0 | F13: 198 | G13: 179 | H13: 19 | I13: 444 | J13: 443 | K13: 1 | L13: 0 | M13: 0 | N13: 0 | O13: 1 | P13: 0 | Q13: 1 | R13: 0 | S13: 1 | T13: 0 | U13: 1 | V13: 0
A14: 南 | B14: 642 | C14: 626 | D14: 16 | E14: 0 | F14: 359 | G14: 348 | H14: 11 | I14: 278 | J14: 277 | K14: 1 | L14: 1 | M14: 0 | N14: 1 | O14: 3 | P14: 0 | Q14: 3 | R14: 0 | S14: 1 | T14: 1 | U14: 0 | V14: 0
A15: 西 | B15: 1530 | C15: 1219 | D15: 310 | E15: 1 | F15: 665 | G15: 596 | H15: 69 | I15: 852 | J15: 621 | K15: 231 | L15: 8 | M15: 1 | N15: 7 | O15: 4 | P15: 0 | Q15: 3 | R15: 1 | S15: 1 | T15: 1 | U15: 0 | V15: 0
A16: 手稲 | B16: 809 | C16: 727 | D16: 82 | E16: 0 | F16: 257 | G16: 242 | H16: 15 | I16: 547 | J16: 484 | K16: 63 | L16: 1 | M16: 0 | N16: 1 | O16: 4 | P16: 1 | Q16: 3 | R16: 0 | S16: 0 | T16: 0 | U16: 0 | V16: 0

Sheet 6 母の年齢階級，年次別出生数・百分率
A1: 6 母の年齢(5歳階級)別にみた年次別出生数及び百分率
A3: 年次 | B3: 総数 | C3: 14歳以下 | D3: 15～19 | E3: 20～24 | F3: 25～29 | G3: 30～34 | H3: 35～39 | I3: 40～44 | J3: 45～49 | K3: 50～ | L3: 不詳
B4: 出生数
A5: 85 60 | B5: =SUM(C5:L5) -> 19314 | C5: 1 | D5: 248 | E5: 3111 | F5: 8471 | G5: 5770 | H5: 1584 | I5: 123 | J5: 4 | K5: 0 | L5: 2
A6: 1986 昭和61年 | B6: =SUM(C6:L6) -> 19130 | C6: 1 | D6: 232 | E6: 3128 | F6: 8352 | G6: 5706 | H6: 1598 | I6: 107 | J6: 4 | K6: 0 | L6: 2
A7: 1987 昭和62年 | B7: =SUM(C7:L7) -> 18533 | C7: 0 | D7: 229 | E7: 2825 | F7: 8121 | G7: 5577 | H7: 1635 | I7: 140 | J7: 5 | K7: 0 | L7: 1
A8: 1988 昭和63年 | B8: 18216 | C8: 0 | D8: 271 | E8: 2939 | F8: 7803 | G8: 5497 | H8: 1563 | I8: 141 | J8: 2 | K8: 0 | L8: 0
A9: 89 平成元年 | B9: 17479 | C9: 1 | D9: 235 | E9: 2789 | F9: 7339 | G9: 5316 | H9: 1610 | I9: 187 | J9: 1 | K9: 0 | L9: 1
A10: 90 2 | B10: 17425 | C10: 0 | D10: 280 | E10: 2703 | F10: 7330 | G10: 5256 | H10: 1658 | I10: 195 | J10: 3 | K10: 0 | L10: 0
A11: 91 3 | B11: 17458 | C11: 0 | D11: 260 | E11: 2858 | F11: 7149 | G11: 5439 | H11: 1542 | I11: 208 | J11: 2 | K11: 0 | L11: 0
A12: 92 4 | B12: 17325 | C12: 0 | D12: 288 | E12: 2818 | F12: 6963 | G12: 5428 | H12: 1598 | I12: 224 | J12: 4 | K12: 0 | L12: 2
A13: 1993 平成5年 | B13: 16371 | C13: 0 | D13: 253 | E13: 2630 | F13: 6609 | G13: 5169 | H13: 1477 | I13: 228 | J13: 5 | K13: 0 | L13: 0
A14: 94 6 | B14: 17057 | C14: 0 | D14: 235 | E14: 2724 | F14: 6763 | G14: 5492 | H14: 1645 | I14: 188 | J14: 9 | K14: 0 | L14: 1
A15: 95 7 | B15: 16227 | C15: 0 | D15: 237 | E15: 2672 | F15: 6369 | G15: 5216 | H15: 1548 | I15: 179 | J15: 6 | K15: 0 | L15: 0
A16: 96 8 | B16: 16339 | C16: 0 | D16: 217 | E16: 2550 | F16: 6288 | G16: 5364 | H16: 1715 | I16: 197 | J16: 8 | K16: 0 | L16: 0
A17: 97 9 | B17: 15873 | C17: 1 | D17: 225 | E17: 2428 | F17: 6157 | G17: 5175 | H17: 1663 | I17: 216 | J17: 8 | K17: 0 | L17: 0
A18: 1998 平成10年 | B18: 16165 | C18: 2 | D18: 254 | E18: 2393 | F18: 6075 | G18: 5378 | H18: 1831 | I18: 225 | J18: 7 | K18: 0 | L18: 0
A19: 99 11 | B19: 15358 | C19: 1 | D19: 251 | E19: 2217 | F19: 5790 | G19: 5103 | H19: 1782 | I19: 209 | J19: 4 | K19: 0 | L19: 1
A20: 2000 12 | B20: 15332 | C20: 0 | D20: 257 | E20: 2200 | F20: 5697 | G20: 5130 | H20: 1824 | I20: 218 | J20: 6 | K20: 0 | L20: 0
A21: 01 13 | B21: 15312 | C21: 0 | D21: 246 | E21: 2144 | F21: 5675 | G21: 5129 | H21: 1893 | I21: 218 | J21: 7 | K21: 0 | L21: 0
A22: 02 14 | B22: 15577 | C22: 0 | D22: 281 | E22: 2165 | F22: 5454 | G22: 5448 | H22: 1948 | I22: 271 | J22: 8 | K22: 1 | L22: 1
A23: 03 15 | B23: 14999 | C23: 0 | D23: 266 | E23: 1947 | F23: 5041 | G23: 5338 | H23: 2111 | I23: 291 | J23: 4 | K23: 0 | L23: 1
A24: 04 16 | B24: 14749 | C24: 1 | D24: 227 | E24: 1787 | F24: 4835 | G24: 5455 | H24: 2120 | I24: 320 | J24: 4 | K24: 0 | L24: 0
A25: 05 17 | B25: 14184 | C25: 0 | D25: 203 | E25: 1673 | F25: 4545 | G25: 5341 | H25: 2115 | I25: 295 | J25: 11 | K25: 0 | L25: 1
A26: 06 18 | B26: 14730 | C26: 0 | D26: 223 | E26: 1710 | F26: 4458 | G26: 5567 | H26: 2410 | I26: 357 | J26: 5 | K26: 0 | L26: 0
A27: 07 19 | B27: 14498 | C27: 1 | D27: 195 | E27: 1707 | F27: 4301 | G27: 5414 | H27: 2532 | I27: 343 | J27: 5 | K27: 0 | L27: 0
A28: 08 20 | B28: 14845 | C28: 0 | D28: 222 | E28: 1699 | F28: 4252 | G28: 5544 | H28: 2723 | I28: 397 | J28: 7 | K28: 0 | L28: 1
A29: 09 21 | B29: 14506 | C29: 3 | D29: 205 | E29: 1572 | F29: 4172 | G29: 5233 | H29: 2900 | I29: 407 | J29: 14 | K29: 0 | L29: 0
A30: 10 22 | B30: 14739 | C30: 1 | D30: 168 | E30: 1477 | F30: 4211 | G30: 5302 | H30: 3117 | I30: 456 | J30: 7 | K30: 0 | L30: 0
A31: 11 23 | B31: 14491 | C31: 1 | D31: 152 | E31: 1446 | F31: 4071 | G31: 5201 | H31: 3116 | I31: 496 | J31: 8 | K31: 0 | L31: 0
A32: 12 24 | B32: 14487 | C32: 2 | D32: 157 | E32: 1281 | F32: 4025 | G32: 5214 | H32: 3200 | I32: 597 | J32: 10 | K32: 0 | L32: 1
A33: 13 25 | B33: 14591 | C33: 0 | D33: 161 | E33: 1259 | F33: 3890 | G33: 5145 | H33: 3389 | I33: 734 | J33: 13 | K33: 0 | L33: 0
A34: 14 26 | B34: 14568 | C34: 0 | D34: 137 | E34: 1248 | F34: 3766 | G34: 5250 | H34: 3438 | I34: 711 | J34: 18 | K34: 0 | L34: 0
A35: 15 27 | B35: 14589 | C35: 0 | D35: 149 | E35: 1225 | F35: 3622 | G35: 5313 | H35: 3548 | I35: 717 | J35: 15 | K35: 0 | L35: 0
A36: 16 28 | B36: 14021 | C36: 1 | D36: 164 | E36: 1171 | F36: 3417 | G36: 5197 | H36: 3256 | I36: 792 | J36: 23 | K36: 0 | L36: 0
A37: 17 29 | B37: 13821 | C37: 0 | D37: 121 | E37: 1144 | F37: 3423 | G37: 5100 | H37: 3212 | I37: 798 | J37: 23 | K37: 0 | L37: 0
A38: 18 30 | B38: =SUM(C38:L38) -> 13248 | C38: ='7 母の年齢階級・性別，区別出生数・百分率'!D5 -> 3 | D38: ='7 母の年齢階級・性別，区別出生数・百分率'!E5 -> 102 | E38: ='7 母の年齢階級・性別，区別出生数・百分率'!F5 -> 1125 | F38: ='7 母の年齢階級・性別，区別出生数・百分率'!G5 -> 3246 | G38: ='7 母の年齢階級・性別，区別出生数・百分率'!H5 -> 4783 | H38: ='7 母の年齢階級・性別，区別出生数・百分率'!I5 -> 3230 | I38: ='7 母の年齢階級・性別，区別出生数・百分率'!J5 -> 739 | J38: ='7 母の年齢階級・性別，区別出生数・百分率'!K5 -> 20 | K38: ='7 母の年齢階級・性別，区別出生数・百分率'!L5 -> 0 | L38: ='7 母の年齢階級・性別，区別出生数・百分率'!M5 -> 0
B39: 百分率
A40: 85 60 | B40: =SUM(C40:L40) -> 100 | C40: =C5/$B5*100 -> 0.005177591384 | D40: 1.284042663 | E40: 16.1074868 | F40: 43.85937662 | G40: 29.87470229 | H40: 8.201304753 | I40: 0.6368437403 | J40: 0.02071036554 | K40: 0 | L40: 0.01035518277
A41: 1986 昭和61年 | B41: =SUM(C41:L41) -> 100 | C41: =C6/$B6*100 -> 0.005227391532 | D41: 1.212754835 | E41: 16.35128071 | F41: 43.65917407 | G41: 29.82749608 | H41: 8.353371668 | I41: 0.5593308939 | J41: 0.02090956613 | K41: 0 | L41: 0.01045478306
A42: 1987 昭和62年 | B42: =SUM(C42:L42) -> 100 | C42: =C7/$B7*100 -> 0 | D42: 1.235633734 | E42: 15.24307991 | F42: 43.81913344 | G42: 30.09226785 | H42: 8.822101117 | I42: 0.75540927 | J42: 0.0269789025 | K42: 0 | L42: 0.0053957805
A43: 1988 昭和63年 | B43: 100 | C43: 0 | D43: 1.487703118 | E43: 16.13416776 | F43: 42.83596838 | G43: 30.17676768 | H43: 8.580368906 | I43: 0.7740447958 | J43: 0.01097935881 | K43: 0 | L43: 0
A44: 89 平成元年 | B44: 100 | C44: 0.005721151096 | D44: 1.344470507 | E44: 15.95629041 | F44: 41.98752789 | G44: 30.41363922 | H44: 9.211053264 | I44: 1.069855255 | J44: 0.005721151096 | K44: 0 | L44: 0.005721151096
A45: 90 2 | B45: 100 | C45: 0 | D45: 1.606886657 | E45: 15.51219512 | F45: 42.06599713 | G45: 30.16355811 | H45: 9.515064562 | I45: 1.119081779 | J45: 0.01721664275 | K45: 0 | L45: 0
A46: 91 3 | B46: 100 | C46: 0 | D46: 1.489288578 | E46: 16.3707183 | F46: 40.94970787 | G46: 31.15477145 | H46: 8.832626876 | I46: 1.191430863 | J46: 0.01145606599 | K46: 0 | L46: 0
A47: 92 4 | B47: 100 | C47: 0 | D47: 1.662337662 | E47: 16.26551227 | F47: 40.19047619 | G47: 31.33044733 | H47: 9.223665224 | I47: 1.292929293 | J47: 0.02308802309 | K47: 0 | L47: 0.01154401154
A48: 1993 平成5年 | B48: 100 | C48: 0 | D48: 1.545415674 | E48: 16.06499298 | F48: 40.37016676 | G48: 31.57412498 | H48: 9.022051188 | I48: 1.392706615 | J48: 0.03054181174 | K48: 0 | L48: 0
A49: 94 6 | B49: 100 | C49: 0 | D49: 1.377733482 | E49: 15.969983 | F49: 39.6494108 | G49: 32.19792461 | H49: 9.644134373 | I49: 1.102186785 | J49: 0.05276426101 | K49: 0 | L49: 0.005862695667
A50: 95 7 | B50: 100 | C50: 0 | D50: 1.460528748 | E50: 16.46638319 | F50: 39.24939915 | G50: 32.1439576 | H50: 9.539656129 | I50: 1.103099772 | J50: 0.03697541135 | K50: 0 | L50: 0
A51: 96 8 | B51: 100 | C51: 0 | D51: 1.328110655 | E51: 15.60683028 | F51: 38.48460738 | G51: 32.82942653 | H51: 10.49635841 | I51: 1.205704143 | J51: 0.04896260481 | K51: 0 | L51: 0
A52: 97 9 | B52: 100 | C52: 0.0063000063 | D52: 1.417501418 | E52: 15.2964153 | F52: 38.78913879 | G52: 32.6025326 | H52: 10.47691048 | I52: 1.360801361 | J52: 0.0504000504 | K52: 0 | L52: 0
A53: 1998 平成10年 | B53: 100 | C53: 0.01237240953 | D53: 1.57129601 | E53: 14.803588 | F53: 37.58119394 | G53: 33.26940922 | H53: 11.32694092 | I53: 1.391896072 | J53: 0.04330343334 | K53: 0 | L53: 0
A54: 99 11 | B54: 100 | C54: 0.006511264488 | D54: 1.634327386 | E54: 14.43547337 | F54: 37.70022138 | G54: 33.22698268 | H54: 11.60307332 | I54: 1.360854278 | J54: 0.02604505795 | K54: 0 | L54: 0.006511264488
A55: 2000 12 | B55: 100 | C55: 0 | D55: 1.676232716 | E55: 14.34907383 | F55: 37.15757892 | G55: 33.45943125 | H55: 11.89668667 | I55: 1.421862771 | J55: 0.03913383773 | K55: 0 | L55: 0
A56: 01 13 | B56: 100 | C56: 0 | D56: 1.606583072 | E56: 14.00208986 | F56: 37.06243469 | G56: 33.49660397 | H56: 12.36285266 | I56: 1.423719958 | J56: 0.04571577847 | K56: 0 | L56: 0
A57: 02 14 | B57: 100 | C57: 0 | D57: 1.803941709 | E57: 13.8986968 | F57: 35.01316043 | G57: 34.9746421 | H57: 12.50561726 | I57: 1.739744495 | J57: 0.05135777107 | K57: 0.006419721384 | L57: 0.006419721384
A58: 03 15 | B58: 100 | C58: 0 | D58: 1.773451563 | E58: 12.98086539 | F58: 33.60890726 | G58: 35.58903927 | H58: 14.07427162 | I58: 1.940129342 | J58: 0.02666844456 | K58: 0 | L58: 0.006667111141
A59: 04 16 | B59: 100 | C59: 0.006780120686 | D59: 1.539087396 | E59: 12.11607567 | F59: 32.78188352 | G59: 36.98555834 | H59: 14.37385585 | I59: 2.16963862 | J59: 0.02712048274 | K59: 0 | L59: 0
A60: 05 17 | B60: 100 | C60: 0 | D60: 1.431190073 | E60: 11.79498026 | F60: 32.04314721 | G60: 37.65510434 | H60: 14.91116751 | I60: 2.079808235 | J60: 0.07755217146 | K60: 0 | L60: 0.007050197406
A61: 06 18 | B61: 100 | C61: 0 | D61: 1.513917176 | E61: 11.6089613 | F61: 30.26476578 | G61: 37.79361847 | H61: 16.36116768 | I61: 2.423625255 | J61: 0.0339443313 | K61: 0 | L61: 0
A62: 07 19 | B62: 100 | C62: 0.006897503104 | D62: 1.345013105 | E62: 11.7740378 | F62: 29.66616085 | G62: 37.3430818 | H62: 17.46447786 | I62: 2.365843565 | J62: 0.03448751552 | K62: 0 | L62: 0
A63: 08 20 | B63: 100 | C63: 0 | D63: 1.495453014 | E63: 11.44493095 | F63: 28.64264062 | G63: 37.34590771 | H63: 18.34287639 | I63: 2.674301111 | J63: 0.04715392388 | K63: 0 | L63: 0.00673627484
A64: 09 21 | B64: 100 | C64: 0.02068109748 | D64: 1.413208328 | E64: 10.83689508 | F64: 28.76051289 | G64: 36.0747277 | H64: 19.99172756 | I64: 2.805735558 | J64: 0.09651178823 | K64: 0 | L64: 0
A65: 10 22 | B65: 100 | C65: 0.006784720809 | D65: 1.139833096 | E65: 10.02103263 | F65: 28.57045933 | G65: 35.97258973 | H65: 21.14797476 | I65: 3.093832689 | J65: 0.04749304566 | K65: 0 | L65: 0
A66: 11 23 | B66: 100 | C66: 0.006900835001 | D66: 1.04892692 | E66: 9.978607411 | F66: 28.09329929 | G66: 35.89124284 | H66: 21.50300186 | I66: 3.422814161 | J66: 0.05520668001 | K66: 0 | L66: 0
A67: 12 24 | B67: 100 | C67: 0.01380548078 | D67: 1.083730241 | E67: 8.842410437 | F67: 27.78353006 | G67: 35.99088838 | H67: 22.08876924 | I67: 4.120936012 | J67: 0.06902740388 | K67: 0 | L67: 0.006902740388
A68: 13 25 | B68: 100 | C68: 0 | D68: 1.103419916 | E68: 8.628606675 | F68: 26.66027003 | G68: 35.26146255 | H68: 23.22664656 | I68: 5.030498252 | J68: 0.08909601809 | K68: 0 | L68: 0
A69: 14 26 | B69: 100 | C69: 0 | D69: 0.9404173531 | E69: 8.566721582 | F69: 25.85118067 | G69: 36.03789127 | H69: 23.59967051 | I69: 4.880560132 | J69: 0.1235584843 | K69: 0 | L69: 0
A70: 15 27 | B70: 100 | C70: 0 | D70: 1.021317431 | E70: 8.396737268 | F70: 24.8269244 | G70: 36.41784906 | H70: 24.31969292 | I70: 4.914661731 | J70: 0.102817191 | K70: 0 | L70: 0
A71: 16 28 | B71: 100 | C71: 0.007132158905 | D71: 1.16967406 | E71: 8.351758077 | F71: 24.37058698 | G71: 37.06582983 | H71: 23.22230939 | I71: 5.648669852 | J71: 0.1640396548 | K71: 0 | L71: 0
A72: 17 29 | B72: 100 | C72: 0 | D72: 0.875479343 | E72: 8.277259243 | F72: 24.76665943 | G72: 36.900369 | H72: 23.23999711 | I72: 5.773822444 | J72: 0.1664134288 | K72: 0 | L72: 0
A73: 18 30 | B73: =SUM(C73:L73) -> 100 | C73: =C38/$B38*100 -> 0.02264492754 | D73: 0.7699275362 | E73: 8.491847826 | F73: 24.50181159 | G73: 36.1035628 | H73: 24.38103865 | I73: 5.578200483 | J73: 0.1509661836 | K73: =K38/$B38*100 -> 0 | L73: 0

Sheet 7 母の年齢階級・性別，区別出生数・百分率
A1: 7 母の年齢(5歳階級)・性別にみた区別出生数及び百分率
M2: ='3 月・性別，区別出生数・出生率'!$O$2 -> 平成30年
A3: 区・性 | C3: 総数 | D3: 14歳以下 | E3: 15～19 | F3: 20～24 | G3: 25～29 | H3: 30～34 | I3: 35～39 | J3: 40～44 | K3: 45～49 | L3: 50～ | M3: 不詳
C4: 出生数
A5: 総数 | C5: =SUM(C8,C11,C14,C17,C20,C23,C26,C29,C32,C35) -> 13248 | D5: 3 | E5: 102 | F5: 1125 | G5: 3246 | H5: 4783 | I5: 3230 | J5: 739 | K5: =SUM(K8,K11,K14,K17,K20,K23,K26,K29,K32,K35) -> 20 | L5: 0 | M5: 0
B6: 男 | C6: =SUM(C9,C12,C15,C18,C21,C24,C27,C30,C33,C36) -> 6744 | D6: 0 | E6: 60 | F6: 562 | G6: 1619 | H6: 2447 | I6: 1666 | J6: 378 | K6: =SUM(K9,K12,K15,K18,K21,K24,K27,K30,K33,K36) -> 12 | L6: 0 | M6: 0
B7: 女 | C7: =SUM(C10,C13,C16,C19,C22,C25,C28,C31,C34,C37) -> 6504 | D7: 3 | E7: 42 | F7: 563 | G7: 1627 | H7: 2336 | I7: 1564 | J7: 361 | K7: =SUM(K10,K13,K16,K19,K22,K25,K28,K31,K34,K37) -> 8 | L7: 0 | M7: 0
A8: 中央 | C8: =SUM(D8:M8) -> 1744 | D8: =SUM(D9:D10) -> 0 | E8: =SUM(E9:E10) -> 9 | F8: 126 | G8: 383 | H8: 615 | I8: 465 | J8: 144 | K8: =SUM(K9:K10) -> 2 | L8: 0 | M8: 0
B9: 男 | C9: =SUM(D9:M9) -> 918 | D9: 0 | E9: 6 | F9: 60 | G9: 207 | H9: 316 | I9: 254 | J9: 74 | K9: 1 | L9: 0 | M9: 0
B10: 女 | C10: =SUM(D10:M10) -> 826 | D10: 0 | E10: 3 | F10: 66 | G10: 176 | H10: 299 | I10: 211 | J10: 70 | K10: 1 | L10: 0 | M10: 0
A11: 北 | C11: =SUM(D11:M11) -> 1847 | D11: =SUM(D12:D13) -> 1 | E11: =SUM(E12:E13) -> 13 | F11: 159 | G11: 457 | H11: 651 | I11: 459 | J11: 105 | K11: =SUM(K12:K13) -> 2 | L11: 0 | M11: 0
B12: 男 | C12: 922 | D12: 0 | E12: 3 | F12: 85 | G12: 215 | H12: 331 | I12: 227 | J12: 59 | K12: 2 | L12: 0 | M12: 0
B13: 女 | C13: 925 | D13: 1 | E13: 10 | F13: 74 | G13: 242 | H13: 320 | I13: 232 | J13: 46 | K13: 0 | L13: 0 | M13: 0
A14: 東 | C14: 1978 | D14: =SUM(D15:D16) -> 1 | E14: =SUM(E15:E16) -> 27 | F14: 173 | G14: 521 | H14: 719 | I14: 433 | J14: 100 | K14: =SUM(K15:K16) -> 4 | L14: 0 | M14: 0
B15: 男 | C15: 995 | D15: 0 | E15: 19 | F15: 78 | G15: 268 | H15: 375 | I15: 205 | J15: 50 | K15: 0 | L15: 0 | M15: 0
B16: 女 | C16: 983 | D16: 1 | E16: 8 | F16: 95 | G16: 253 | H16: 344 | I16: 228 | J16: 50 | K16: 4 | L16: 0 | M16: 0
A17: 白石 | C17: 1711 | D17: =SUM(D18:D19) -> 0 | E17: =SUM(E18:E19) -> 10 | F17: 184 | G17: 440 | H17: 620 | I17: 380 | J17: 76 | K17: =SUM(K18:K19) -> 1 | L17: 0 | M17: 0
B18: 男 | C18: 882 | D18: 0 | E18: 5 | F18: 98 | G18: 214 | H18: 317 | I18: 211 | J18: 36 | K18: 1 | L18: 0 | M18: 0
B19: 女 | C19: 829 | D19: 0 | E19: 5 | F19: 86 | G19: 226 | H19: 303 | I19: 169 | J19: 40 | K19: 0 | L19: 0 | M19: 0
A20: 厚別 | C20: 661 | D20: =SUM(D21:D22) -> 0 | E20: =SUM(E21:E22) -> 6 | F20: 45 | G20: 145 | H20: 247 | I20: 175 | J20: 43 | K20: =SUM(K21:K22) -> 0 | L20: 0 | M20: 0
B21: 男 | C21: 360 | D21: 0 | E21: 5 | F21: 27 | G21: 78 | H21: 131 | I21: 94 | J21: 25 | K21: 0 | L21: 0 | M21: 0
B22: 女 | C22: 301 | D22: 0 | E22: 1 | F22: 18 | G22: 67 | H22: 116 | I22: 81 | J22: 18 | K22: 0 | L22: 0 | M22: 0
A23: 豊平 | C23: 1682 | D23: =SUM(D24:D25) -> 0 | E23: =SUM(E24:E25) -> 18 | F23: 145 | G23: 457 | H23: 630 | I23: 352 | J23: 79 | K23: =SUM(K24:K25) -> 1 | L23: 0 | M23: 0
B24: 男 | C24: 855 | D24: 0 | E24: 13 | F24: 64 | G24: 241 | H24: 319 | I24: 178 | J24: 39 | K24: 1 | L24: 0 | M24: 0
B25: 女 | C25: 827 | D25: 0 | E25: 5 | F25: 81 | G25: 216 | H25: 311 | I25: 174 | J25: 40 | K25: 0 | L25: 0 | M25: 0
A26: 清田 | C26: 644 | D26: =SUM(D27:D28) -> 0 | E26: =SUM(E27:E28) -> 3 | F26: 57 | G26: 136 | H26: 214 | I26: 192 | J26: 39 | K26: =SUM(K27:K28) -> 3 | L26: 0 | M26: 0
B27: 男 | C27: 319 | D27: 0 | E27: 2 | F27: 30 | G27: 71 | H27: 99 | I27: 98 | J27: 16 | K27: 3 | L27: 0 | M27: 0
B28: 女 | C28: 325 | D28: 0 | E28: 1 | F28: 27 | G28: 65 | H28: 115 | I28: 94 | J28: 23 | K28: 0 | L28: 0 | M28: 0
A29: 南 | C29: 642 | D29: =SUM(D30:D31) -> 0 | E29: =SUM(E30:E31) -> 5 | F29: 49 | G29: 158 | H29: 235 | I29: 157 | J29: 36 | K29: =SUM(K30:K31) -> 2 | L29: 0 | M29: 0
B30: 男 | C30: 326 | D30: 0 | E30: 3 | F30: 25 | G30: 68 | H30: 125 | I30: 84 | J30: 20 | K30: 1 | L30: 0 | M30: 0
B31: 女 | C31: 316 | D31: 0 | E31: 2 | F31: 24 | G31: 90 | H31: 110 | I31: 73 | J31: 16 | K31: 1 | L31: 0 | M31: 0
A32: 西 | C32: 1530 | D32: =SUM(D33:D34) -> 1 | E32: =SUM(E33:E34) -> 6 | F32: 108 | G32: 377 | H32: 549 | I32: 413 | J32: 73 | K32: =SUM(K33:K34) -> 3 | L32: 0 | M32: 0
B33: 男 | C33: 772 | D33: 0 | E33: 3 | F33: 54 | G33: 182 | H33: 283 | I33: 213 | J33: 35 | K33: 2 | L33: 0 | M33: 0
B34: 女 | C34: 758 | D34: 1 | E34: 3 | F34: 54 | G34: 195 | H34: 266 | I34: 200 | J34: 38 | K34: 1 | L34: 0 | M34: 0
A35: 手稲 | C35: 809 | D35: =SUM(D36:D37) -> 0 | E35: =SUM(E36:E37) -> 5 | F35: 79 | G35: 172 | H35: 303 | I35: 204 | J35: 44 | K35: =SUM(K36:K37) -> 2 | L35: 0 | M35: 0
B36: 男 | C36: 395 | D36: 0 | E36: 1 | F36: 41 | G36: 75 | H36: 151 | I36: 102 | J36: 24 | K36: 1 | L36: 0 | M36: 0
B37: 女 | C37: 414 | D37: 0 | E37: 4 | F37: 38 | G37: 97 | H37: 152 | I37: 102 | J37: 20 | K37: 1 | L37: 0 | M37: 0
C38: 百分率
A39: 総数 | C39: =C5/$C5*100 -> 100 | D39: =D5/$C5*100 -> 0.02264492754 | E39: 0.7699275362 | F39: 8.491847826 | G39: 24.50181159 | H39: 36.1035628 | I39: 24.38103865 | J39: 5.578200483 | K39: 0.1509661836 | L39: 0 | M39: 0
A40: 中央 | C40: =C8/$C8*100 -> 100 | D40: =D8/$C8*100 -> 0 | E40: 0.5160550459 | F40: 7.224770642 | G40: 21.96100917 | H40: 35.26376147 | I40: 26.66284404 | J40: 8.256880734 | K40: 0.1146788991 | L40: 0 | M40: 0
A41: 北 | C41: =C11/$C11*100 -> 100 | D41: =D11/$C11*100 -> 0.05414185165 | E41: 0.7038440715 | F41: 8.608554413 | G41: 24.7428262 | H41: 35.24634543 | I41: 24.85110991 | J41: 5.684894423 | K41: 0.1082837033 | L41: 0 | M41: 0
A42: 東 | C42: =C14/$C14*100 -> 100 | D42: =D14/$C14*100 -> 0.05055611729 | E42: 1.365015167 | F42: 8.746208291 | G42: 26.33973711 | H42: 36.34984833 | I42: 21.89079879 | J42: 5.055611729 | K42: 0.2022244692 | L42: 0 | M42: 0
A43: 白石 | C43: =C17/$C17*100 -> 100 | D43: =D17/$C17*100 -> 0 | E43: 0.5844535359 | F43: 10.75394506 | G43: 25.71595558 | H43: 36.23611923 | I43: 22.20923437 | J43: 4.441846873 | K43: 0.05844535359 | L43: 0 | M43: 0
A44: 厚別 | C44: =C20/$C20*100 -> 100 | D44: =D20/$C20*100 -> 0 | E44: 0.9077155825 | F44: 6.807866868 | G44: 21.93645991 | H44: 37.36762481 | I44: 26.47503782 | J44: 6.505295008 | K44: 0 | L44: 0 | M44: 0
A45: 豊平 | C45: =C23/$C23*100 -> 100 | D45: =D23/$C23*100 -> 0 | E45: 1.070154578 | F45: 8.620689655 | G45: 27.17003567 | H45: 37.45541023 | I45: 20.9274673 | J45: 4.696789536 | K45: 0.0594530321 | L45: 0 | M45: 0
A46: 清田 | C46: =C26/$C26*100 -> 100 | D46: =D26/$C26*100 -> 0 | E46: 0.4658385093 | F46: 8.850931677 | G46: 21.11801242 | H46: 33.22981366 | I46: 29.8136646 | J46: 6.055900621 | K46: 0.4658385093 | L46: 0 | M46: 0
A47: 南 | C47: =C29/$C29*100 -> 100 | D47: =D29/$C29*100 -> 0 | E47: 0.7788161994 | F47: 7.632398754 | G47: 24.6105919 | H47: 36.60436137 | I47: 24.45482866 | J47: 5.607476636 | K47: 0.3115264798 | L47: 0 | M47: 0
A48: 西 | C48: =C32/$C32*100 -> 100 | D48: =D32/$C32*100 -> 0.06535947712 | E48: 0.3921568627 | F48: 7.058823529 | G48: 24.64052288 | H48: 35.88235294 | I48: 26.99346405 | J48: 4.77124183 | K48: 0.1960784314 | L48: 0 | M48: 0
A49: 手稲 | C49: =C35/$C35*100 -> 100 | D49: =D35/$C35*100 -> 0 | E49: 0.6180469716 | F49: 9.765142151 | G49: 21.26081582 | H49: 37.45364648 | I49: 25.21631644 | J49: 5.43881335 | K49: 0.2472187886 | L49: 0 | M49: 0

Sheet 8出生順位，年次別出生数・百分率
A1: 8 出生順位別にみた年次別出生数及び百分率
A3: 年次 | B3: 総数 | C3: 第1子 | D3: 第2子 | E3: 第3子 | F3: 第4子 | G3: 第5子以上 | H3: 不詳
B4: 出生数
A5: 85 60 | B5: =SUM(C5:H5) -> 19314 | C5: 8813 | D5: 7402 | E5: 2574 | F5: 397 | G5: 128 | H5: 0
A6: 1986 昭和61年 | B6: =SUM(C6:H6) -> 19130 | C6: 8707 | D6: 7360 | E6: 2519 | F6: 438 | G6: 106 | H6: 0
A7: 1987 昭和62年 | B7: =SUM(C7:H7) -> 18533 | C7: 8440 | D7: 7071 | E7: 2547 | F7: 379 | G7: 96 | H7: 0
A8: 1988 昭和63年 | B8: 18216 | C8: 8247 | D8: 7039 | E8: 2442 | F8: 409 | G8: 79 | H8: 0
A9: 89 平成元年 | B9: 17479 | C9: 8068 | D9: 6558 | E9: 2343 | F9: 405 | G9: 105 | H9: 0
A10: 90 2 | B10: 17425 | C10: 8151 | D10: 6509 | E10: 2265 | F10: 400 | G10: 100 | H10: 0
A11: 91 3 | B11: 17458 | C11: 8473 | D11: 6332 | E11: 2225 | F11: 338 | G11: 90 | H11: 0
A12: 92 4 | B12: 17325 | C12: 8611 | D12: 6055 | E12: 2151 | F12: 385 | G12: 123 | H12: 0
A13: 1993 平成5年 | B13: 16371 | C13: 8292 | D13: 5780 | E13: 1891 | F13: 319 | G13: 89 | H13: 0
A14: 94 6 | B14: 17057 | C14: 8701 | D14: 6017 | E14: 1931 | F14: 324 | G14: 84 | H14: 0
A15: 95 7 | B15: 16227 | C15: 8331 | D15: 5674 | E15: 1803 | F15: 335 | G15: 84 | H15: 0
A16: 96 8 | B16: 16339 | C16: 8468 | D16: 5704 | E16: 1765 | F16: 310 | G16: 92 | H16: 0
A17: 97 9 | B17: 15873 | C17: 8245 | D17: 5666 | E17: 1605 | F17: 275 | G17: 82 | H17: 0
A18: 1998 平成10年 | B18: 16165 | C18: 8476 | D18: 5687 | E18: 1612 | F18: 300 | G18: 90 | H18: 0
A19: 99 11 | B19: 15358 | C19: 8177 | D19: 5381 | E19: 1459 | F19: 251 | G19: 90 | H19: 0
A20: 2000 12 | B20: 15332 | C20: 8258 | D20: 5301 | E20: 1471 | F20: 242 | G20: 60 | H20: 0
A21: 01 13 | B21: 15312 | C21: 8180 | D21: 5337 | E21: 1446 | F21: 280 | G21: 69 | H21: 0
A22: 02 14 | B22: 15577 | C22: 8418 | D22: 5397 | E22: 1413 | F22: 274 | G22: 75 | H22: 0
A23: 03 15 | B23: 14999 | C23: 7878 | D23: 5367 | E23: 1399 | F23: 271 | G23: 84 | H23: 0
A24: 04 16 | B24: 14749 | C24: 7817 | D24: 5202 | E24: 1402 | F24: 266 | G24: 62 | H24: 0
A25: 05 17 | B25: 14184 | C25: 7512 | D25: 5006 | E25: 1336 | F25: 240 | G25: 90 | H25: 0
A26: 06 18 | B26: 14730 | C26: 7801 | D26: 5185 | E26: 1381 | F26: 273 | G26: 90 | H26: 0
A27: 07 19 | B27: 14498 | C27: 7609 | D27: 5077 | E27: 1464 | F27: 279 | G27: 69 | H27: 0
A28: 08 20 | B28: 14845 | C28: 7686 | D28: 5286 | E28: 1511 | F28: 270 | G28: 92 | H28: 0
A29: 09 21 | B29: 14506 | C29: 7622 | D29: 5040 | E29: 1445 | F29: 295 | G29: 104 | H29: 0
A30: 10 22 | B30: 14739 | C30: 7678 | D30: 5067 | E30: 1576 | F30: 313 | G30: 105 | H30: 0
A31: 11 23 | B31: 14491 | C31: 7499 | D31: 5057 | E31: 1554 | F31: 292 | G31: 89 | H31: 0
A32: 12 24 | B32: 14487 | C32: 7318 | D32: 5148 | E32: 1561 | F32: 328 | G32: 132 | H32: 0
A33: 13 25 | B33: 14591 | C33: 7561 | D33: 5088 | E33: 1520 | F33: 318 | G33: 104 | H33: 0
A34: 14 26 | B34: 14568 | C34: 7441 | D34: 5142 | E34: 1562 | F34: 325 | G34: 98 | H34: 0
A35: 15 27 | B35: 14589 | C35: 7550 | D35: 5136 | E35: 1494 | F35: 305 | G35: 104 | H35: 0
A36: 16 28 | B36: 14021 | C36: 7222 | D36: 4939 | E36: 1468 | F36: 276 | G36: 116 | H36: 0
A37: 17 29 | B37: 13821 | C37: 7001 | D37: 4932 | E37: 1449 | F37: 312 | G37: 127 | H37: 0
A38: 18 30 | B38: =SUM(C38:H38) -> 13248 | C38: ='9 区・出生順位別，出生数'!$D$5 -> 6691 | D38: ='9 区・出生順位別，出生数'!$E$5 -> 4753 | E38: ='9 区・出生順位別，出生数'!$F$5 -> 1413 | F38: ='9 区・出生順位別，出生数'!$G$5 -> 287 | G38: ='9 区・出生順位別，出生数'!$H$5 -> 104 | H38: ='9 区・出生順位別，出生数'!$I$5 -> 0
B39: 百分率
A40: 85 60 | B40: =SUM(C40:H40) -> 100 | C40: =C5/$B5*100 -> 45.63011287 | D40: 38.32453143 | E40: 13.32712022 | F40: 2.05550378 | G40: 0.6627316972 | H40: 0
A41: 1986 昭和61年 | B41: =SUM(C41:H41) -> 100 | C41: 45.51489807 | D41: 38.47360167 | E41: 13.16779927 | F41: 2.289597491 | G41: 0.5541035024 | H41: 0
A42: 1987 昭和62年 | B42: =SUM(C42:H42) -> 100 | C42: 45.54038742 | D42: 38.15356391 | E42: 13.74305293 | F42: 2.045000809 | G42: 0.517994928 | H42: 0
A43: 1988 昭和63年 | B43: 100 | C43: 45.27338603 | D43: 38.64185332 | E43: 13.4057971 | F43: 2.245278876 | G43: 0.4336846728 | H43: 0
A44: 89 平成元年 | B44: 100 | C44: 46.15824704 | D44: 37.51930888 | E44: 13.40465702 | F44: 2.317066194 | G44: 0.600720865 | H44: 0
A45: 90 2 | B45: 100 | C45: 46.77761836 | D45: 37.3543759 | E45: 12.99856528 | F45: 2.295552367 | G45: 0.5738880918 | H45: 0
A46: 91 3 | B46: 100 | C46: 48.53362355 | D46: 36.26990491 | E46: 12.74487341 | F46: 1.936075152 | G46: 0.5155229694 | H46: 0
A47: 92 4 | B47: 100 | C47: 49.7027417 | D47: 34.94949495 | E47: 12.41558442 | F47: 2.222222222 | G47: 0.70995671 | H47: 0
A48: 1993 平成5年 | B48: 100 | C48: 50.65054059 | D48: 35.30633437 | E48: 11.5509132 | F48: 1.948567589 | G48: 0.543644249 | H48: 0
A49: 94 6 | B49: 100 | C49: 51.011315 | D49: 35.27583983 | E49: 11.32086533 | F49: 1.899513396 | G49: 0.4924664361 | H49: 0
A50: 95 7 | B50: 100 | C50: 51.34035866 | D50: 34.966414 | E50: 11.11111111 | F50: 2.064460467 | G50: 0.5176557589 | H50: 0
A51: 96 8 | B51: 100 | C51: 51.82691719 | D51: 34.91033723 | E51: 10.80237469 | F51: 1.897300936 | G51: 0.5630699553 | H51: 0
A52: 97 9 | B52: 100 | C52: 51.94355194 | D52: 35.6958357 | E52: 10.11151011 | F52: 1.732501733 | G52: 0.5166005166 | H52: 0
A53: 1998 平成10年 | B53: 100 | C53: 52.43427157 | D53: 35.18094649 | E53: 9.972162079 | F53: 1.855861429 | G53: 0.5567584287 | H53: 0
A54: 99 11 | B54: 100 | C54: 53.24260971 | D54: 35.03711421 | E54: 9.499934887 | F54: 1.634327386 | G54: 0.5860138039 | H54: 0
A55: 2000 12 | B55: 100 | C55: 53.86120532 | D55: 34.57474563 | E55: 9.594312549 | F55: 1.578398122 | G55: 0.3913383773 | H55: 0
A56: 01 13 | B56: 100 | C56: 53.42215256 | D56: 34.85501567 | E56: 9.443573668 | F56: 1.828631139 | G56: 0.4506269592 | H56: 0
A57: 02 14 | B57: 100 | C57: 54.04121461 | D57: 34.64723631 | E57: 9.071066316 | F57: 1.759003659 | G57: 0.4814791038 | H57: 0
A58: 03 15 | B58: 100 | C58: 52.52350157 | D58: 35.78238549 | E58: 9.327288486 | F58: 1.806787119 | G58: 0.5600373358 | H58: 0
A59: 04 16 | B59: 100 | C59: 53.0002034 | D59: 35.27018781 | E59: 9.505729202 | F59: 1.803512103 | G59: 0.4203674825 | H59: 0
A60: 05 17 | B60: 100 | C60: 52.96108291 | D60: 35.29328821 | E60: 9.419063734 | F60: 1.692047377 | G60: 0.6345177665 | H60: 0
A61: 06 18 | B61: 100 | C61: 52.95994569 | D61: 35.20027155 | E61: 9.375424304 | F61: 1.853360489 | G61: 0.6109979633 | H61: 0
A62: 07 19 | B62: 100 | C62: 52.48310112 | D62: 35.01862326 | E62: 10.09794454 | F62: 1.924403366 | G62: 0.4759277142 | H62: 0
A63: 08 20 | B63: 100 | C63: 51.77500842 | D63: 35.6079488 | E63: 10.17851128 | F63: 1.818794207 | G63: 0.6197372853 | H63: 0
A64: 09 21 | B64: 100 | C64: 52.54377499 | D64: 34.74424376 | E64: 9.961395285 | F64: 2.033641252 | G64: 0.7169447125 | H64: 0
A65: 10 22 | B65: 100 | C65: 52.09308637 | D65: 34.37818034 | E65: 10.69271999 | F65: 2.123617613 | G65: 0.7123956849 | H65: 0
A66: 11 23 | B66: 100 | C66: 51.74936167 | D66: 34.8975226 | E66: 10.72389759 | F66: 2.01504382 | G66: 0.6141743151 | H66: 0
A67: 12 24 | B67: 100 | C67: 50.51425416 | D67: 35.53530752 | E67: 10.77517775 | F67: 2.264098847 | G67: 0.9111617312 | H67: 0
A68: 13 25 | B68: 100 | C68: 51.81961483 | D68: 34.87081077 | E68: 10.41738058 | F68: 2.179425673 | G68: 0.7127681447 | H68: 0
A69: 14 26 | B69: 100 | C69: 51.07770456 | D69: 35.29654036 | E69: 10.7221307 | F69: 2.230917079 | G69: 0.6727073037 | H69: 0
A70: 15 27 | B70: 100 | C70: 51.75131949 | D70: 35.20460621 | E70: 10.24059223 | F70: 2.090616218 | G70: 0.7128658578 | H70: 0
A71: 16 28 | B71: 100 | C71: 51.50845161 | D71: 35.22573283 | E71: 10.47000927 | F71: 1.968475858 | G71: 0.8273304329 | H71: 0
A72: 17 29 | B72: 100 | C72: 50.65480067 | D72: 35.68482744 | E72: 10.48404602 | F72: 2.257434339 | G72: 0.9188915419 | H72: 0
A73: 18 30 | B73: =SUM(C73:H73) -> 100 | C73: =C38/$B38*100 -> 50.50573671 | D73: 35.87711353 | E73: 10.66576087 | F73: 2.166364734 | G73: 0.7850241546 | H73: 0

Sheet 9 区・出生順位別，出生数
A1: 9 出生順位・性別にみた区別出生数及び百分率
I2: ='3 月・性別，区別出生数・出生率'!$O$2 -> 平成30年
A3: 区・性 | C3: 総数 | D3: 第1子 | E3: 第2子 | F3: 第3子 | G3: 第4子 | H3: 第5子～ | I3: 不詳
C4: 出生数
A5: 総数 | C5: =SUM(C8,C11,C14,C17,C20,C23,C26,C29,C32,C35) -> 13248 | D5: =SUM(D8,D11,D14,D17,D20,D23,D26,D29,D32,D35) -> 6691 | E5: 4753 | F5: 1413 | G5: 287 | H5: 104 | I5: 0
B6: 男 | C6: 6744 | D6: 3415 | E6: 2398 | F6: 739 | G6: 140 | H6: 52 | I6: 0
B7: 女 | C7: 6504 | D7: 3276 | E7: 2355 | F7: 674 | G7: 147 | H7: 52 | I7: 0
A8: 中央 | C8: =SUM(D8:J8) -> 1744 | D8: =SUM(D9:D10) -> 985 | E8: 582 | F8: 153 | G8: 14 | H8: 10 | I8: 0
B9: 男 | C9: 918 | D9: 527 | E9: 297 | F9: 79 | G9: 10 | H9: 5 | I9: 0
B10: 女 | C10: 826 | D10: 458 | E10: 285 | F10: 74 | G10: 4 | H10: 5 | I10: 0
A11: 北 | C11: 1847 | D11: =SUM(D12:D13) -> 853 | E11: =SUM(E12:E13) -> 723 | F11: 202 | G11: 51 | H11: 18 | I11: 0
B12: 男 | C12: 922 | D12: 414 | E12: 365 | F12: 109 | G12: 27 | H12: 7 | I12: 0
B13: 女 | C13: 925 | D13: 439 | E13: 358 | F13: 93 | G13: 24 | H13: 11 | I13: 0
A14: 東 | C14: 1978 | D14: =SUM(D15:D16) -> 972 | E14: =SUM(E15:E16) -> 721 | F14: 215 | G14: 54 | H14: 16 | I14: 0
B15: 男 | C15: 995 | D15: 488 | E15: 347 | F15: 120 | G15: 29 | H15: 11 | I15: 0
B16: 女 | C16: 983 | D16: 484 | E16: 374 | F16: 95 | G16: 25 | H16: 5 | I16: 0
A17: 白石 | C17: 1711 | D17: =SUM(D18:D19) -> 945 | E17: =SUM(E18:E19) -> 556 | F17: 166 | G17: 30 | H17: 14 | I17: 0
B18: 男 | C18: 882 | D18: 492 | E18: 281 | F18: 88 | G18: 15 | H18: 6 | I18: 0
B19: 女 | C19: 829 | D19: 453 | E19: 275 | F19: 78 | G19: 15 | H19: 8 | I19: 0
A20: 厚別 | C20: 661 | D20: =SUM(D21:D22) -> 320 | E20: =SUM(E21:E22) -> 234 | F20: 80 | G20: 18 | H20: 9 | I20: 0
B21: 男 | C21: 360 | D21: 171 | E21: 125 | F21: 50 | G21: 10 | H21: 4 | I21: 0
B22: 女 | C22: 301 | D22: 149 | E22: 109 | F22: 30 | G22: 8 | H22: 5 | I22: 0
A23: 豊平 | C23: 1682 | D23: =SUM(D24:D25) -> 957 | E23: =SUM(E24:E25) -> 550 | F23: 145 | G23: 23 | H23: 7 | I23: 0
B24: 男 | C24: 855 | D24: 497 | E24: 274 | F24: 69 | G24: 13 | H24: 2 | I24: 0
B25: 女 | C25: 827 | D25: 460 | E25: 276 | F25: 76 | G25: 10 | H25: 5 | I25: 0
A26: 清田 | C26: 644 | D26: =SUM(D27:D28) -> 230 | E26: =SUM(E27:E28) -> 271 | F26: 103 | G26: 30 | H26: 10 | I26: 0
B27: 男 | C27: 319 | D27: 111 | E27: 140 | F27: 49 | G27: 11 | H27: 8 | I27: 0
B28: 女 | C28: 325 | D28: 119 | E28: 131 | F28: 54 | G28: 19 | H28: 2 | I28: 0
A29: 南 | C29: 642 | D29: =SUM(D30:D31) -> 274 | E29: =SUM(E30:E31) -> 255 | F29: 91 | G29: 17 | H29: 5 | I29: 0
B30: 男 | C30: 326 | D30: 135 | E30: 126 | F30: 52 | G30: 10 | H30: 3 | I30: 0
B31: 女 | C31: 316 | D31: 139 | E31: 129 | F31: 39 | G31: 7 | H31: 2 | I31: 0
A32: 西 | C32: 1530 | D32: =SUM(D33:D34) -> 804 | E32: =SUM(E33:E34) -> 539 | F32: 149 | G32: 29 | H32: 9 | I32: 0
B33: 男 | C33: 772 | D33: 415 | E33: 276 | F33: 69 | G33: 8 | H33: 4 | I33: 0
B34: 女 | C34: 758 | D34: 389 | E34: 263 | F34: 80 | G34: 21 | H34: 5 | I34: 0
A35: 手稲 | C35: 809 | D35: =SUM(D36:D37) -> 351 | E35: =SUM(E36:E37) -> 322 | F35: 109 | G35: 21 | H35: 6 | I35: 0
B36: 男 | C36: 395 | D36: 165 | E36: 167 | F36: 54 | G36: 7 | H36: 2 | I36: 0
B37: 女 | C37: 414 | D37: 186 | E37: 155 | F37: 55 | G37: 14 | H37: 4 | I37: 0
C38: 百分率
A39: 総数 | C39: ='9 区・出生順位別，出生数'!C5/'9 区・出生順位別，出生数'!$C$5*100 -> 100 | D39: ='9 区・出生順位別，出生数'!D5/'9 区・出生順位別，出生数'!$C$5*100 -> 50.50573671 | E39: ='9 区・出生順位別，出生数'!E5/'9 区・出生順位別，出生数'!$C$5*100 -> 35.87711353 | F39: ='9 区・出生順位別，出生数'!F5/'9 区・出生順位別，出生数'!$C$5*100 -> 10.66576087 | G39: ='9 区・出生順位別，出生数'!G5/'9 区・出生順位別，出生数'!$C$5*100 -> 2.166364734 | H39: ='9 区・出生順位別，出生数'!H5/'9 区・出生順位別，出生数'!$C$5*100 -> 0.7850241546 | I39: ='9 区・出生順位別，出生数'!I5/'9 区・出生順位別，出生数'!$C$5*100 -> 0
A40: 中央 | C40: ='9 区・出生順位別，出生数'!C8/'9 区・出生順位別，出生数'!$C$8*100 -> 100 | D40: ='9 区・出生順位別，出生数'!D8/'9 区・出生順位別，出生数'!$C$8*100 -> 56.4793578 | E40: ='9 区・出生順位別，出生数'!E8/'9 区・出生順位別，出生数'!$C$8*100 -> 33.37155963 | F40: ='9 区・出生順位別，出生数'!F8/'9 区・出生順位別，出生数'!$C$8*100 -> 8.77293578 | G40: ='9 区・出生順位別，出生数'!G8/'9 区・出生順位別，出生数'!$C$8*100 -> 0.8027522936 | H40: ='9 区・出生順位別，出生数'!H8/'9 区・出生順位別，出生数'!$C$8*100 -> 0.5733944954 | I40: ='9 区・出生順位別，出生数'!I8/'9 区・出生順位別，出生数'!$C$8*100 -> 0
A41: 北 | C41: ='9 区・出生順位別，出生数'!C11/'9 区・出生順位別，出生数'!$C$11*100 -> 100 | D41: ='9 区・出生順位別，出生数'!D11/'9 区・出生順位別，出生数'!$C$11*100 -> 46.18299946 | E41: ='9 区・出生順位別，出生数'!E11/'9 区・出生順位別，出生数'!$C$11*100 -> 39.14455874 | F41: ='9 区・出生順位別，出生数'!F11/'9 区・出生順位別，出生数'!$C$11*100 -> 10.93665403 | G41: ='9 区・出生順位別，出生数'!G11/'9 区・出生順位別，出生数'!$C$11*100 -> 2.761234434 | H41: ='9 区・出生順位別，出生数'!H11/'9 区・出生順位別，出生数'!$C$11*100 -> 0.9745533297 | I41: ='9 区・出生順位別，出生数'!I11/'9 区・出生順位別，出生数'!$C$11*100 -> 0
A42: 東 | C42: ='9 区・出生順位別，出生数'!C14/'9 区・出生順位別，出生数'!$C$14*100 -> 100 | D42: ='9 区・出生順位別，出生数'!D14/'9 区・出生順位別，出生数'!$C$14*100 -> 49.14054601 | E42: ='9 区・出生順位別，出生数'!E14/'9 区・出生順位別，出生数'!$C$14*100 -> 36.45096057 | F42: ='9 区・出生順位別，出生数'!F14/'9 区・出生順位別，出生数'!$C$14*100 -> 10.86956522 | G42: ='9 区・出生順位別，出生数'!G14/'9 区・出生順位別，出生数'!$C$14*100 -> 2.730030334 | H42: ='9 区・出生順位別，出生数'!H14/'9 区・出生順位別，出生数'!$C$14*100 -> 0.8088978766 | I42: ='9 区・出生順位別，出生数'!I14/'9 区・出生順位別，出生数'!$C$14*100 -> 0
A43: 白石 | C43: ='9 区・出生順位別，出生数'!C17/'9 区・出生順位別，出生数'!$C$17*100 -> 100 | D43: ='9 区・出生順位別，出生数'!D17/'9 区・出生順位別，出生数'!$C$17*100 -> 55.23085915 | E43: ='9 区・出生順位別，出生数'!E17/'9 区・出生順位別，出生数'!$C$17*100 -> 32.4956166 | F43: ='9 区・出生順位別，出生数'!F17/'9 区・出生順位別，出生数'!$C$17*100 -> 9.701928697 | G43: ='9 区・出生順位別，出生数'!G17/'9 区・出生順位別，出生数'!$C$17*100 -> 1.753360608 | H43: ='9 区・出生順位別，出生数'!H17/'9 区・出生順位別，出生数'!$C$17*100 -> 0.8182349503 | I43: ='9 区・出生順位別，出生数'!I17/'9 区・出生順位別，出生数'!$C$17*100 -> 0
A44: 厚別 | C44: ='9 区・出生順位別，出生数'!C20/'9 区・出生順位別，出生数'!$C$20*100 -> 100 | D44: ='9 区・出生順位別，出生数'!D20/'9 区・出生順位別，出生数'!$C$20*100 -> 48.41149773 | E44: ='9 区・出生順位別，出生数'!E20/'9 区・出生順位別，出生数'!$C$20*100 -> 35.40090772 | F44: ='9 区・出生順位別，出生数'!F20/'9 区・出生順位別，出生数'!$C$20*100 -> 12.10287443 | G44: ='9 区・出生順位別，出生数'!G20/'9 区・出生順位別，出生数'!$C$20*100 -> 2.723146747 | H44: ='9 区・出生順位別，出生数'!H20/'9 区・出生順位別，出生数'!$C$20*100 -> 1.361573374 | I44: ='9 区・出生順位別，出生数'!I20/'9 区・出生順位別，出生数'!$C$20*100 -> 0
A45: 豊平 | C45: ='9 区・出生順位別，出生数'!C23/'9 区・出生順位別，出生数'!$C$23*100 -> 100 | D45: ='9 区・出生順位別，出生数'!D23/'9 区・出生順位別，出生数'!$C$23*100 -> 56.89655172 | E45: ='9 区・出生順位別，出生数'!E23/'9 区・出生順位別，出生数'!$C$23*100 -> 32.69916766 | F45: ='9 区・出生順位別，出生数'!F23/'9 区・出生順位別，出生数'!$C$23*100 -> 8.620689655 | G45: ='9 区・出生順位別，出生数'!G23/'9 区・出生順位別，出生数'!$C$23*100 -> 1.367419738 | H45: ='9 区・出生順位別，出生数'!H23/'9 区・出生順位別，出生数'!$C$23*100 -> 0.4161712247 | I45: ='9 区・出生順位別，出生数'!I23/'9 区・出生順位別，出生数'!$C$23*100 -> 0
A46: 清田 | C46: ='9 区・出生順位別，出生数'!C26/'9 区・出生順位別，出生数'!$C$26*100 -> 100 | D46: ='9 区・出生順位別，出生数'!D26/'9 区・出生順位別，出生数'!$C$26*100 -> 35.71428571 | E46: ='9 区・出生順位別，出生数'!E26/'9 区・出生順位別，出生数'!$C$26*100 -> 42.08074534 | F46: ='9 区・出生順位別，出生数'!F26/'9 区・出生順位別，出生数'!$C$26*100 -> 15.99378882 | G46: ='9 区・出生順位別，出生数'!G26/'9 区・出生順位別，出生数'!$C$26*100 -> 4.658385093 | H46: ='9 区・出生順位別，出生数'!H26/'9 区・出生順位別，出生数'!$C$26*100 -> 1.552795031 | I46: ='9 区・出生順位別，出生数'!I26/'9 区・出生順位別，出生数'!$C$26*100 -> 0
A47: 南 | C47: ='9 区・出生順位別，出生数'!C29/'9 区・出生順位別，出生数'!$C$29*100 -> 100 | D47: ='9 区・出生順位別，出生数'!D29/'9 区・出生順位別，出生数'!$C$29*100 -> 42.67912773 | E47: ='9 区・出生順位別，出生数'!E29/'9 区・出生順位別，出生数'!$C$29*100 -> 39.71962617 | F47: ='9 区・出生順位別，出生数'!F29/'9 区・出生順位別，出生数'!$C$29*100 -> 14.17445483 | G47: ='9 区・出生順位別，出生数'!G29/'9 区・出生順位別，出生数'!$C$29*100 -> 2.647975078 | H47: ='9 区・出生順位別，出生数'!H29/'9 区・出生順位別，出生数'!$C$29*100 -> 0.7788161994 | I47: ='9 区・出生順位別，出生数'!I29/'9 区・出生順位別，出生数'!$C$29*100 -> 0
A48: 西 | C48: ='9 区・出生順位別，出生数'!C32/'9 区・出生順位別，出生数'!$C$32*100 -> 100 | D48: ='9 区・出生順位別，出生数'!D32/'9 区・出生順位別，出生数'!$C$32*100 -> 52.54901961 | E48: ='9 区・出生順位別，出生数'!E32/'9 区・出生順位別，出生数'!$C$32*100 -> 35.22875817 | F48: ='9 区・出生順位別，出生数'!F32/'9 区・出生順位別，出生数'!$C$32*100 -> 9.738562092 | G48: ='9 区・出生順位別，出生数'!G32/'9 区・出生順位別，出生数'!$C$32*100 -> 1.895424837 | H48: ='9 区・出生順位別，出生数'!H32/'9 区・出生順位別，出生数'!$C$32*100 -> 0.5882352941 | I48: ='9 区・出生順位別，出生数'!I32/'9 区・出生順位別，出生数'!$C$32*100 -> 0
A49: 手稲 | C49: ='9 区・出生順位別，出生数'!C35/'9 区・出生順位別，出生数'!$C$35*100 -> 100 | D49: ='9 区・出生順位別，出生数'!D35/'9 区・出生順位別，出生数'!$C$35*100 -> 43.3868974 | E49: ='9 区・出生順位別，出生数'!E35/'9 区・出生順位別，出生数'!$C$35*100 -> 39.80222497 | F49: ='9 区・出生順位別，出生数'!F35/'9 区・出生順位別，出生数'!$C$35*100 -> 13.47342398 | G49: ='9 区・出生順位別，出生数'!G35/'9 区・出生順位別，出生数'!$C$35*100 -> 2.595797281 | H49: ='9 区・出生順位別，出生数'!H35/'9 区・出生順位別，出生数'!$C$35*100 -> 0.7416563659 | I49: ='9 区・出生順位別，出生数'!I35/'9 区・出生順位別，出生数'!$C$35*100 -> 0

Sheet 10 出生順位別，母の年齢別出生数
A1: 10 出生順位別にみた母の年齢（5歳階級）別出生数
H2: ='3 月・性別，区別出生数・出生率'!$O$2 -> 平成30年
A3: 母の年齢 | B3: 総数 | C3: 第1子 | D3: 第2子 | E3: 第3子 | F3: 第4子 | G3: 第5子～ | H3: 不 詳
A4: 15～49歳 | B4: =SUM(C4:H4) -> 13245 | C4: =SUM(C5:C11) -> 6688 | D4: 4753 | E4: 1413 | F4: 287 | G4: 104 | H4: 0
A5: 15～19歳 | B5: =SUM(C5:H5) -> 102 | C5: 95 | D5: 6 | E5: 1 | F5: 0 | G5: 0 | H5: 0
A6: 20～24 | B6: =SUM(C6:H6) -> 1125 | C6: 801 | D6: 283 | E6: 38 | F6: 3 | G6: 0 | H6: 0
A7: 25～29 | B7: 3246 | C7: 2086 | D7: 921 | E7: 196 | F7: 35 | G7: 8 | H7: 0
A8: 30～34 | B8: 4783 | C8: 2236 | D8: 1859 | E8: 547 | F8: 101 | G8: 40 | H8: 0
A9: 35～39 | B9: 3230 | C9: 1195 | D9: 1364 | E9: 521 | F9: 111 | G9: 39 | H9: 0
A10: 40～44 | B10: 739 | C10: 265 | D10: 314 | E10: 107 | F10: 37 | G10: 16 | H10: 0
A11: 45～49 | B11: 20 | C11: 10 | D11: 6 | E11: 3 | F11: 0 | G11: 1 | H11: 0
A12: 注） 算出に用いた出生数には14歳以下での出生は含まない。

Sheet 11 出生順位別，母の年齢別出生率
A1: 11 出生順位別にみた母の年齢（5歳階級）別出生率
H2: ='3 月・性別，区別出生数・出生率'!$O$2 -> 平成30年
A3: 母の年齢 | B3: 女子人口1) | C3: 総数 | D3: 第1子 | E3: 第2子 | F3: 第3子 | G3: 第4子 | H3: 第5子～
A4: 15～49歳 | B4: =[1]女子人口!$B$3 -> 421881 | C4: =SUM(C6:C12) -> 1.137415445 | D4: 0.5904112303 | E4: 0.3997172117 | F4: 0.1159494101 | G4: 0.02309682295 | H4: 0.008240770063
C5: (合計特殊出生率)
A6: 15～19歳 | B6: =[1]女子人口!$B$4 -> 40422 | C6: ='10 出生順位別，母の年齢別出生数'!B5/$B6*5 -> 0.01261689179 | D6: ='10 出生順位別，母の年齢別出生数'!C5/$B6*5 -> 0.01175102667 | E6: ='10 出生順位別，母の年齢別出生数'!D5/$B6*5 -> 0.0007421701054 | F6: ='10 出生順位別，母の年齢別出生数'!E5/$B6*5 -> 0.0001236950176 | G6: ='10 出生順位別，母の年齢別出生数'!F5/$B6*5 -> 0 | H6: ='10 出生順位別，母の年齢別出生数'!G5/$B6*5 -> 0
A7: 20～24 | B7: =[1]女子人口!$B$5 -> 49026 | C7: ='10 出生順位別，母の年齢別出生数'!B6/$B7*5 -> 0.1147350386 | D7: ='10 出生順位別，母の年齢別出生数'!C6/$B7*5 -> 0.08169134745 | E7: ='10 出生順位別，母の年齢別出生数'!D6/$B7*5 -> 0.02886223636 | F7: ='10 出生順位別，母の年齢別出生数'!E6/$B7*5 -> 0.003875494635 | G7: ='10 出生順位別，母の年齢別出生数'!F6/$B7*5 -> 0.0003059601028 | H7: ='10 出生順位別，母の年齢別出生数'!G6/$B7*5 -> 0
A8: 25～29 | B8: =[1]女子人口!$B$6 -> 52531 | C8: ='10 出生順位別，母の年齢別出生数'!B7/$B8*5 -> 0.3089604234 | D8: ='10 出生順位別，母の年齢別出生数'!C7/$B8*5 -> 0.198549428 | E8: ='10 出生順位別，母の年齢別出生数'!D7/$B8*5 -> 0.08766252308 | F8: ='10 出生順位別，母の年齢別出生数'!E7/$B8*5 -> 0.01865565095 | G8: ='10 出生順位別，母の年齢別出生数'!F7/$B8*5 -> 0.003331366241 | H8: ='10 出生順位別，母の年齢別出生数'!G7/$B8*5 -> 0.0007614551408
A9: 30～34 | B9: =[1]女子人口!$B$7 -> 59157 | C9: ='10 出生順位別，母の年齢別出生数'!B8/$B9*5 -> 0.4042632317 | D9: ='10 出生順位別，母の年齢別出生数'!C8/$B9*5 -> 0.1889886235 | E9: ='10 出生順位別，母の年齢別出生数'!D8/$B9*5 -> 0.1571242626 | F9: ='10 出生順位別，母の年齢別出生数'!E8/$B9*5 -> 0.04623290566 | G9: ='10 出生順位別，母の年齢別出生数'!F8/$B9*5 -> 0.008536605981 | H9: ='10 出生順位別，母の年齢別出生数'!G8/$B9*5 -> 0.003380834052
A10: 35～39 | B10: =[1]女子人口!$B$8 -> 65423 | C10: ='10 出生順位別，母の年齢別出生数'!B9/$B10*5 -> 0.2468550815 | D10: ='10 出生順位別，母の年齢別出生数'!C9/$B10*5 -> 0.0913287376 | E10: ='10 出生順位別，母の年齢別出生数'!D9/$B10*5 -> 0.1042446846 | F10: ='10 出生順位別，母の年齢別出生数'!E9/$B10*5 -> 0.03981780108 | G10: ='10 出生順位別，母の年齢別出生数'!F9/$B10*5 -> 0.008483255124 | H10: ='10 出生順位別，母の年齢別出生数'!G9/$B10*5 -> 0.002980603152
A11: 40～44 | B11: =[1]女子人口!$B$9 -> 75831 | C11: ='10 出生順位別，母の年齢別出生数'!B10/$B11*5 -> 0.04872677401 | D11: ='10 出生順位別，母の年齢別出生数'!C10/$B11*5 -> 0.01747306511 | E11: ='10 出生順位別，母の年齢別出生数'!D10/$B11*5 -> 0.02070393375 | F11: ='10 出生順位別，母の年齢別出生数'!E10/$B11*5 -> 0.007055162137 | G11: ='10 出生順位別，母の年齢別出生数'!F10/$B11*5 -> 0.002439635505 | H11: ='10 出生順位別，母の年齢別出生数'!G10/$B11*5 -> 0.001054977516
A12: 45～49 | B12: =[1]女子人口!$B$10 -> 79491 | C12: ='10 出生順位別，母の年齢別出生数'!B11/$B12*5 -> 0.001258004051 | D12: ='10 出生順位別，母の年齢別出生数'!C11/$B12*5 -> 0.0006290020254 | E12: ='10 出生順位別，母の年齢別出生数'!D11/$B12*5 -> 0.0003774012152 | F12: ='10 出生順位別，母の年齢別出生数'!E11/$B12*5 -> 0.0001887006076 | G12: ='10 出生順位別，母の年齢別出生数'!F11/$B12*5 -> 0 | H12: ='10 出生順位別，母の年齢別出生数'!G11/$B12*5 -> 6.290020254e-05
A13: 注） 算出に用いた出生数には14歳以下での出生は含まない。
A14: 1) 10月1日現在、住民基本台帳による。

Sheet 12 出生順位別，母の年齢別百分率
A1: 12 出生順位別にみた母の年齢（5歳階級）別出生数の百分率
G2: ='3 月・性別，区別出生数・出生率'!$O$2 -> 平成30年
A3: 母の年齢 | B3: 総数 | C3: 第1子 | D3: 第2子 | E3: 第3子 | F3: 第4子 | G3: 第5子～
A4: 15～49歳 | B4: =SUM(B5:B11) -> 100 | C4: =SUM(C5:C11) -> 100 | D4: 100 | E4: 100 | F4: 100 | G4: 100
A5: 15～19歳 | B5: ='10 出生順位別，母の年齢別出生数'!B5/'10 出生順位別，母の年齢別出生数'!B$4*100 -> 0.7701019253 | C5: ='10 出生順位別，母の年齢別出生数'!C5/'10 出生順位別，母の年齢別出生数'!C$4*100 -> 1.420454545 | D5: ='10 出生順位別，母の年齢別出生数'!D5/'10 出生順位別，母の年齢別出生数'!D$4*100 -> 0.1262360614 | E5: ='10 出生順位別，母の年齢別出生数'!E5/'10 出生順位別，母の年齢別出生数'!E$4*100 -> 0.07077140835 | F5: ='10 出生順位別，母の年齢別出生数'!F5/'10 出生順位別，母の年齢別出生数'!F$4*100 -> 0 | G5: ='10 出生順位別，母の年齢別出生数'!G5/'10 出生順位別，母の年齢別出生数'!G$4*100 -> 0
A6: 20～24 | B6: ='10 出生順位別，母の年齢別出生数'!B6/'10 出生順位別，母の年齢別出生数'!B$4*100 -> 8.493771234 | C6: ='10 出生順位別，母の年齢別出生数'!C6/'10 出生順位別，母の年齢別出生数'!C$4*100 -> 11.97667464 | D6: ='10 出生順位別，母の年齢別出生数'!D6/'10 出生順位別，母の年齢別出生数'!D$4*100 -> 5.954134231 | E6: ='10 出生順位別，母の年齢別出生数'!E6/'10 出生順位別，母の年齢別出生数'!E$4*100 -> 2.689313517 | F6: ='10 出生順位別，母の年齢別出生数'!F6/'10 出生順位別，母の年齢別出生数'!F$4*100 -> 1.045296167 | G6: ='10 出生順位別，母の年齢別出生数'!G6/'10 出生順位別，母の年齢別出生数'!G$4*100 -> 0
A7: 25～29 | B7: ='10 出生順位別，母の年齢別出生数'!B7/'10 出生順位別，母の年齢別出生数'!B$4*100 -> 24.50736127 | C7: ='10 出生順位別，母の年齢別出生数'!C7/'10 出生順位別，母の年齢別出生数'!C$4*100 -> 31.19019139 | D7: ='10 出生順位別，母の年齢別出生数'!D7/'10 出生順位別，母の年齢別出生数'!D$4*100 -> 19.37723543 | E7: ='10 出生順位別，母の年齢別出生数'!E7/'10 出生順位別，母の年齢別出生数'!E$4*100 -> 13.87119604 | F7: ='10 出生順位別，母の年齢別出生数'!F7/'10 出生順位別，母の年齢別出生数'!F$4*100 -> 12.19512195 | G7: ='10 出生順位別，母の年齢別出生数'!G7/'10 出生順位別，母の年齢別出生数'!G$4*100 -> 7.692307692
A8: 30～34 | B8: ='10 出生順位別，母の年齢別出生数'!B8/'10 出生順位別，母の年齢別出生数'!B$4*100 -> 36.11174028 | C8: ='10 出生順位別，母の年齢別出生数'!C8/'10 出生順位別，母の年齢別出生数'!C$4*100 -> 33.43301435 | D8: ='10 出生順位別，母の年齢別出生数'!D8/'10 出生順位別，母の年齢別出生数'!D$4*100 -> 39.1121397 | E8: ='10 出生順位別，母の年齢別出生数'!E8/'10 出生順位別，母の年齢別出生数'!E$4*100 -> 38.71196037 | F8: ='10 出生順位別，母の年齢別出生数'!F8/'10 出生順位別，母の年齢別出生数'!F$4*100 -> 35.19163763 | G8: ='10 出生順位別，母の年齢別出生数'!G8/'10 出生順位別，母の年齢別出生数'!G$4*100 -> 38.46153846
A9: 35～39 | B9: ='10 出生順位別，母の年齢別出生数'!B9/'10 出生順位別，母の年齢別出生数'!B$4*100 -> 24.38656097 | C9: ='10 出生順位別，母の年齢別出生数'!C9/'10 出生順位別，母の年齢別出生数'!C$4*100 -> 17.86782297 | D9: ='10 出生順位別，母の年齢別出生数'!D9/'10 出生順位別，母の年齢別出生数'!D$4*100 -> 28.69766463 | E9: ='10 出生順位別，母の年齢別出生数'!E9/'10 出生順位別，母の年齢別出生数'!E$4*100 -> 36.87190375 | F9: ='10 出生順位別，母の年齢別出生数'!F9/'10 出生順位別，母の年齢別出生数'!F$4*100 -> 38.67595819 | G9: ='10 出生順位別，母の年齢別出生数'!G9/'10 出生順位別，母の年齢別出生数'!G$4*100 -> 37.5
A10: 40～44 | B10: ='10 出生順位別，母の年齢別出生数'!B10/'10 出生順位別，母の年齢別出生数'!B$4*100 -> 5.579463949 | C10: ='10 出生順位別，母の年齢別出生数'!C10/'10 出生順位別，母の年齢別出生数'!C$4*100 -> 3.962320574 | D10: ='10 出生順位別，母の年齢別出生数'!D10/'10 出生順位別，母の年齢別出生数'!D$4*100 -> 6.606353882 | E10: ='10 出生順位別，母の年齢別出生数'!E10/'10 出生順位別，母の年齢別出生数'!E$4*100 -> 7.572540694 | F10: ='10 出生順位別，母の年齢別出生数'!F10/'10 出生順位別，母の年齢別出生数'!F$4*100 -> 12.89198606 | G10: ='10 出生順位別，母の年齢別出生数'!G10/'10 出生順位別，母の年齢別出生数'!G$4*100 -> 15.38461538
A11: 45～49 | B11: ='10 出生順位別，母の年齢別出生数'!B11/'10 出生順位別，母の年齢別出生数'!B$4*100 -> 0.1510003775 | C11: ='10 出生順位別，母の年齢別出生数'!C11/'10 出生順位別，母の年齢別出生数'!C$4*100 -> 0.1495215311 | D11: ='10 出生順位別，母の年齢別出生数'!D11/'10 出生順位別，母の年齢別出生数'!D$4*100 -> 0.1262360614 | E11: ='10 出生順位別，母の年齢別出生数'!E11/'10 出生順位別，母の年齢別出生数'!E$4*100 -> 0.2123142251 | F11: ='10 出生順位別，母の年齢別出生数'!F11/'10 出生順位別，母の年齢別出生数'!F$4*100 -> 0 | G11: ='10 出生順位別，母の年齢別出生数'!G11/'10 出生順位別，母の年齢別出生数'!G$4*100 -> 0.9615384615
A12: 注） 算出に用いた出生数には14歳以下での出生は含まない。

Sheet 13 母の年齢別，出生順位別百分率
A1: 13 母の年齢（5歳階級）別にみた出生順位別出生数の百分率
G2: ='3 月・性別，区別出生数・出生率'!$O$2 -> 平成30年
A3: 母の年齢 | B3: 総数 | C3: 第1子 | D3: 第2子 | E3: 第3子 | F3: 第4子 | G3: 第5子～
A4: 15～49歳 | B4: =SUM(C4:G4) -> 100 | C4: ='10 出生順位別，母の年齢別出生数'!C4/'10 出生順位別，母の年齢別出生数'!$B4*100 -> 50.49452624 | D4: ='10 出生順位別，母の年齢別出生数'!D4/'10 出生順位別，母の年齢別出生数'!$B4*100 -> 35.88523971 | E4: ='10 出生順位別，母の年齢別出生数'!E4/'10 出生順位別，母の年齢別出生数'!$B4*100 -> 10.66817667 | F4: ='10 出生順位別，母の年齢別出生数'!F4/'10 出生順位別，母の年齢別出生数'!$B4*100 -> 2.166855417 | G4: ='10 出生順位別，母の年齢別出生数'!G4/'10 出生順位別，母の年齢別出生数'!$B4*100 -> 0.785201963
A5: 15～19歳 | B5: 100 | C5: ='10 出生順位別，母の年齢別出生数'!C5/'10 出生順位別，母の年齢別出生数'!$B5*100 -> 93.1372549 | D5: ='10 出生順位別，母の年齢別出生数'!D5/'10 出生順位別，母の年齢別出生数'!$B5*100 -> 5.882352941 | E5: ='10 出生順位別，母の年齢別出生数'!E5/'10 出生順位別，母の年齢別出生数'!$B5*100 -> 0.9803921569 | F5: ='10 出生順位別，母の年齢別出生数'!F5/'10 出生順位別，母の年齢別出生数'!$B5*100 -> 0 | G5: ='10 出生順位別，母の年齢別出生数'!G5/'10 出生順位別，母の年齢別出生数'!$B5*100 -> 0
A6: 20～24 | B6: 100 | C6: ='10 出生順位別，母の年齢別出生数'!C6/'10 出生順位別，母の年齢別出生数'!$B6*100 -> 71.2 | D6: ='10 出生順位別，母の年齢別出生数'!D6/'10 出生順位別，母の年齢別出生数'!$B6*100 -> 25.15555556 | E6: ='10 出生順位別，母の年齢別出生数'!E6/'10 出生順位別，母の年齢別出生数'!$B6*100 -> 3.377777778 | F6: ='10 出生順位別，母の年齢別出生数'!F6/'10 出生順位別，母の年齢別出生数'!$B6*100 -> 0.2666666667 | G6: ='10 出生順位別，母の年齢別出生数'!G6/'10 出生順位別，母の年齢別出生数'!$B6*100 -> 0
A7: 25～29 | B7: 100 | C7: ='10 出生順位別，母の年齢別出生数'!C7/'10 出生順位別，母の年齢別出生数'!$B7*100 -> 64.26370918 | D7: ='10 出生順位別，母の年齢別出生数'!D7/'10 出生順位別，母の年齢別出生数'!$B7*100 -> 28.37338262 | E7: ='10 出生順位別，母の年齢別出生数'!E7/'10 出生順位別，母の年齢別出生数'!$B7*100 -> 6.038200863 | F7: ='10 出生順位別，母の年齢別出生数'!F7/'10 出生順位別，母の年齢別出生数'!$B7*100 -> 1.078250154 | G7: ='10 出生順位別，母の年齢別出生数'!G7/'10 出生順位別，母の年齢別出生数'!$B7*100 -> 0.2464571781
A8: 30～34 | B8: 100 | C8: ='10 出生順位別，母の年齢別出生数'!C8/'10 出生順位別，母の年齢別出生数'!$B8*100 -> 46.74890236 | D8: ='10 出生順位別，母の年齢別出生数'!D8/'10 出生順位別，母の年齢別出生数'!$B8*100 -> 38.86681999 | E8: ='10 出生順位別，母の年齢別出生数'!E8/'10 出生順位別，母の年齢別出生数'!$B8*100 -> 11.43633703 | F8: ='10 出生順位別，母の年齢別出生数'!F8/'10 出生順位別，母の年齢別出生数'!$B8*100 -> 2.111645411 | G8: ='10 出生順位別，母の年齢別出生数'!G8/'10 出生順位別，母の年齢別出生数'!$B8*100 -> 0.8362952122
A9: 35～39 | B9: 100 | C9: ='10 出生順位別，母の年齢別出生数'!C9/'10 出生順位別，母の年齢別出生数'!$B9*100 -> 36.99690402 | D9: ='10 出生順位別，母の年齢別出生数'!D9/'10 出生順位別，母の年齢別出生数'!$B9*100 -> 42.22910217 | E9: ='10 出生順位別，母の年齢別出生数'!E9/'10 出生順位別，母の年齢別出生数'!$B9*100 -> 16.13003096 | F9: ='10 出生順位別，母の年齢別出生数'!F9/'10 出生順位別，母の年齢別出生数'!$B9*100 -> 3.436532508 | G9: ='10 出生順位別，母の年齢別出生数'!G9/'10 出生順位別，母の年齢別出生数'!$B9*100 -> 1.207430341
A10: 40～44 | B10: 100 | C10: ='10 出生順位別，母の年齢別出生数'!C10/'10 出生順位別，母の年齢別出生数'!$B10*100 -> 35.85926928 | D10: ='10 出生順位別，母の年齢別出生数'!D10/'10 出生順位別，母の年齢別出生数'!$B10*100 -> 42.48985115 | E10: ='10 出生順位別，母の年齢別出生数'!E10/'10 出生順位別，母の年齢別出生数'!$B10*100 -> 14.47902571 | F10: ='10 出生順位別，母の年齢別出生数'!F10/'10 出生順位別，母の年齢別出生数'!$B10*100 -> 5.0067659 | G10: ='10 出生順位別，母の年齢別出生数'!G10/'10 出生順位別，母の年齢別出生数'!$B10*100 -> 2.165087957
A11: 45～49 | B11: 100 | C11: ='10 出生順位別，母の年齢別出生数'!C11/'10 出生順位別，母の年齢別出生数'!$B11*100 -> 50 | D11: ='10 出生順位別，母の年齢別出生数'!D11/'10 出生順位別，母の年齢別出生数'!$B11*100 -> 30 | E11: ='10 出生順位別，母の年齢別出生数'!E11/'10 出生順位別，母の年齢別出生数'!$B11*100 -> 15 | F11: ='10 出生順位別，母の年齢別出生数'!F11/'10 出生順位別，母の年齢別出生数'!$B11*100 -> 0 | G11: ='10 出生順位別，母の年齢別出生数'!G11/'10 出生順位別，母の年齢別出生数'!$B11*100 -> 5
A12: 注） 算出に用いた出生数には14歳以下での出生は含まない。

Sheet 14 出生順位別，年次別父母の平均年齢
A1: 14 出生順位別にみた年次別父・母の平均年齢
A3: 年次 | B3: 父 | H3: 母
B4: 総数 | C4: 第1子 | D4: 第2子 | E4: 第3子 | F4: 第4子 | G4: 第5子～ | H4: 総数 | I4: 第1子 | J4: 第2子 | K4: 第3子 | L4: 第4子 | M4: 第5子～
A5: 1993 平成 5 年 | B5: 31.8 | C5: 30.1 | D5: 32.7 | E5: 34.9 | F5: … | G5: … | H5: 29.2 | I5: 27.6 | J5: 30.1 | K5: 32.4 | L5: … | M5: …
A6: 1994 平成 6 年 | B6: 31.8 | C6: 30.1 | D6: 32.7 | E6: 35.2 | F6: … | G6: … | H6: 29.3 | I6: 27.7 | J6: 30.2 | K6: 32.5 | L6: … | M6: …
A7: 95 7 | B7: 31.7 | C7: 30.1 | D7: 32.6 | E7: 35 | F7: … | G7: … | H7: 29.2 | I7: 27.7 | J7: 30 | K7: 32.4 | L7: … | M7: …
A8: 96 8 | B8: 31.8 | C8: 30.3 | D8: 32.8 | E8: 34.9 | F8: … | G8: … | H8: 29.5 | I8: 28 | J8: 30.4 | K8: 32.4 | L8: … | M8: …
A9: 97 9 | B9: 31.8 | C9: 30.3 | D9: 32.7 | E9: 34.9 | F9: … | G9: … | H9: 29.5 | I9: 28.1 | J9: 30.4 | K9: 32.4 | L9: … | M9: …
A10: 1998 平成10年 | B10: 31.8 | C10: 30.2 | D10: 32.7 | E10: 35 | F10: … | G10: … | H10: 29.6 | I10: 28.2 | J10: 30.6 | K10: 32.6 | L10: … | M10: …
A11: 99 11 | B11: 31.8 | C11: 30.3 | D11: 32.9 | E11: 34.9 | F11: … | G11: … | H11: 29.6 | I11: 28.2 | J11: 30.7 | K11: 32.6 | L11: … | M11: …
A12: 2000 12 | B12: 31.83581074 | C12: 30.4296378 | D12: 32.79878853 | E12: 35.0625681 | F12: 37.63332296 | G12: 38.53686095 | H12: 29.67954645 | I12: 28.28937759 | J12: 30.73123297 | K12: 32.70714561 | L12: 34.28257104 | M12: 35.30444444
A13: 01 13 | B13: 31.78031216 | C13: 30.39691344 | D13: 32.8051047 | E13: 34.59933477 | F13: 36.89555591 | G13: 37.82211568 | H13: 29.78552739 | I13: 28.43055682 | J13: 30.81724662 | K13: 32.43400658 | L13: 34.57527234 | M13: 35.67747336
A14: 02 14 | B14: 31.92633154 | C14: 30.58352346 | D14: 32.83934101 | E14: 35.11006893 | F14: 37.14009782 | G14: 39.70725266 | H14: 29.97697816 | I14: 28.68810119 | J14: 30.92682964 | K14: 32.78671194 | L14: 34.6579592 | M14: 36.2526484
A15: 2003 平成15年 | B15: 32.11140032 | C15: 30.87430782 | D15: 32.93461382 | E15: 34.71641536 | F15: 36.771327 | G15: 37.5582778 | H15: 30.20355715 | I15: 28.95401311 | J15: 31.03350587 | K15: 32.9373907 | L15: 34.34634198 | M15: 35.46838171
A16: 04 16 | B16: 32.28214407 | C16: 31.10677008 | D16: 33.07830737 | E16: 34.87389594 | F16: 36.4014915 | G16: 38.86556093 | H16: 30.34083357 | I16: 29.11603705 | J16: 31.21901819 | K16: 32.88454686 | L16: 34.52296237 | M16: 35.6180218
A17: 05 17 | B17: 32.40049116 | C17: 31.33323773 | D17: 33.13068036 | E17: 34.63301473 | F17: 36.35538897 | G17: 38.41076321 | H17: 30.50192977 | I17: 29.45109043 | J17: 31.23068209 | K17: 32.72248534 | L17: 33.89001712 | M17: 35.67935058
A18: 06 18 | B18: 32.53781294 | C18: 31.44656003 | D18: 33.2558689 | E18: 34.97123666 | F18: 36.34401625 | G18: 37.66273576 | H18: 30.65204303 | I18: 29.53993373 | J18: 31.41484406 | K18: 33.02899543 | L18: 34.23628799 | M18: 35.75616692
A19: 07 19 | B19: 32.66638114 | C19: 31.51072846 | D19: 33.52697031 | E19: 34.84227939 | F19: 36.15785608 | G19: 37.98554033 | H19: 30.77191773 | I19: 29.54032457 | J19: 31.71490148 | K19: 33.09181965 | L19: 33.88789136 | M19: 35.38018993
A20: 08 20 | B20: 32.8 | C20: 31.6 | D20: 33.7 | E20: 34.9 | F20: 36 | G20: 37.8 | H20: 31 | I20: 29.8 | J20: 31.8 | K20: 33.1 | L20: 34.1 | M20: 36.1
A21: 09 21 | B21: 33 | C21: 31.9 | D21: 33.8 | E21: 35 | F21: 36 | G21: 38.7 | H21: 31 | I21: 29.8 | J21: 32 | K21: 33.4 | L21: 34.2 | M21: 35.9
A22: 10 22 | B22: 33.13681278 | C22: 32.02143681 | D22: 33.9511638 | E22: 35.20458853 | F22: 35.98174561 | G22: 36.54991562 | H22: 31.2655714 | I22: 30.12642963 | J22: 32.05745314 | K22: 33.32019172 | L22: 34.61523845 | M22: 35.52593607
A23: 11 23 | B23: 33.29452078 | C23: 32.28106732 | D23: 34.00435518 | E23: 35.00297895 | F23: 36.61431736 | G23: 37.50744466 | H23: 31.36802233 | I23: 30.23196749 | J23: 32.18972296 | K23: 33.26537452 | L23: 34.88824983 | M23: 35.72244369
A24: 12 24 | B24: 33.48750023 | C24: 32.38764498 | D24: 34.19665309 | E24: 35.50611139 | F24: 36.41259979 | G24: 36.54071137 | H24: 31.59413622 | I24: 30.41131711 | J24: 32.35898469 | K24: 33.69375049 | L24: 34.61833236 | M24: 34.98666113
A25: 13 25 | B25: 33.74419356 | C25: 32.67771488 | D25: 34.50699838 | E25: 35.70228342 | F25: 36.15139917 | G25: 37.97564342 | H25: 31.81394451 | I25: 30.71125987 | J25: 32.65226053 | K25: 33.62022185 | L25: 34.53712128 | M25: 36.242165
A26: 14 26 | B26: 33.79966945 | C26: 32.79614446 | D26: 34.543543 | E26: 35.39695385 | F26: 36.46501563 | G26: 36.76122022 | H26: 31.88309932 | I26: 30.81239289 | J26: 32.66292552 | K26: 33.63251905 | L26: 34.50246294 | M26: 35.69303187
A27: 15 27 | B27: 33.96319002 | C27: 32.99401404 | D27: 34.63048541 | E27: 35.61272776 | F27: 37.07781845 | G27: 38.1048554 | H27: 31.9748378 | I27: 30.88776746 | J27: 32.82635159 | K27: 33.61835546 | L27: 35.03492926 | M27: 36.25621268
A28: 16 28 | B28: 33.96900719 | C28: 32.9983704 | D28: 34.64216286 | E28: 35.76992936 | F28: 36.31957227 | G28: 37.34862778 | H28: 32.02784199 | I28: 30.93843902 | J28: 32.80849501 | K28: 33.99833433 | L28: 34.55465968 | M28: 35.66524366
A29: 17 29 | B29: 34.11655068 | C29: 33.0239745 | D29: 34.83610529 | E29: 36.03222994 | F29: 37.1230217 | G29: 37.27348875 | H29: 32.10648842 | I29: 30.91614407 | J29: 32.98276992 | K29: 33.95429756 | L29: 34.74049731 | M29: 36.1418761
A30: 18 30 | B30: ='15 出生順位別，区別父母の平均年齢'!$B$5 -> 34.07017099 | C30: ='15 出生順位別，区別父母の平均年齢'!$C$5 -> 32.92721436 | D30: ='15 出生順位別，区別父母の平均年齢'!$D$5 -> 34.88146929 | E30: ='15 出生順位別，区別父母の平均年齢'!$E$5 -> 35.83157724 | F30: ='15 出生順位別，区別父母の平均年齢'!$F$5 -> 37.13608639 | G30: ='15 出生順位別，区別父母の平均年齢'!$G$5 -> 37.94781162 | H30: ='15 出生順位別，区別父母の平均年齢'!$H$5 -> 32.11262908 | I30: ='15 出生順位別，区別父母の平均年齢'!$I$5 -> 30.83299709 | J30: ='15 出生順位別，区別父母の平均年齢'!$J$5 -> 33.04968729 | K30: ='15 出生順位別，区別父母の平均年齢'!$K$5 -> 34.1703812 | L30: ='15 出生順位別，区別父母の平均年齢'!$L$5 -> 35.03002005 | M30: ='15 出生順位別，区別父母の平均年齢'!$M$5 -> 35.60575386

Sheet 15 出生順位別，区別父母の平均年齢
A1: 15 出生順位別にみた区別父・母の平均年齢
M2: ='3 月・性別，区別出生数・出生率'!$O$2 -> 平成30年
A3: 区 | B3: 父 | H3: 母
B4: 総数 | C4: 第1子 | D4: 第2子 | E4: 第3子 | F4: 第4子 | G4: 第5子～ | H4: 総数 | I4: 第1子 | J4: 第2子 | K4: 第3子 | L4: 第4子 | M4: 第5子～
A5: 総数 | B5: 34.07017099 | C5: 32.92721436 | D5: 34.88146929 | E5: 35.83157724 | F5: 37.13608639 | G5: 37.94781162 | H5: 32.11262908 | I5: 30.83299709 | J5: 33.04968729 | K5: 34.1703812 | L5: 35.03002005 | M5: 35.60575386
A6: 中央 | B6: 35.18788131 | C6: 34.07525282 | D6: 36.02788044 | E6: 38.41084636 | F6: 41.14620026 | G6: 39.19788813 | H6: 32.76769315 | I6: 31.58853928 | J6: 33.90402329 | K6: 35.4521503 | L6: 36.42839204 | M6: 36.58276256
A7: 北 | B7: 34.17484917 | C7: 33.21147247 | D7: 34.54719883 | E7: 35.74262178 | F7: 37.24169645 | G7: 38.82274226 | H7: 32.11568222 | I7: 30.97655548 | J7: 32.68478751 | K7: 33.8807168 | L7: 34.89707225 | M7: 35.55035515
A8: 東 | B8: 33.61990811 | C8: 32.49392363 | D8: 34.50193728 | E8: 34.92808547 | F8: 36.35312024 | G8: 34.92071918 | H8: 31.71327964 | I8: 30.40673492 | J8: 32.67308786 | K8: 33.49005841 | L8: 34.44362845 | M8: 34.744121
A9: 白石 | B9: 33.5179549 | C9: 32.57777951 | D9: 34.31469105 | E9: 35.49603147 | F9: 36.25097847 | G9: 37.16550755 | H9: 31.60705454 | I9: 30.71987751 | J9: 32.269036 | K9: 33.66117071 | L9: 33.79297565 | M9: 36.16131768
A10: 厚別 | B10: 34.2031793 | C10: 33.03247735 | D10: 34.87338157 | E10: 35.50918511 | F10: 36.41128869 | G10: 41.20032978 | H10: 32.54672248 | I10: 31.06785888 | J10: 33.48768587 | K10: 34.33120719 | L10: 36.38234399 | M10: 37.13016235
A11: 豊平 | B11: 33.54302235 | C11: 32.34983112 | D11: 34.7582909 | E11: 35.60762028 | F11: 39.1107721 | G11: 40.02682648 | H11: 31.65625981 | I11: 30.32797698 | J11: 33.10644251 | K11: 33.96051173 | L11: 36.90021838 | M11: 34.34748858
A12: 清田 | B12: 34.76446562 | C12: 33.66216038 | D12: 35.01518608 | E12: 35.4739547 | F12: 37.04200126 | G12: 39.57714041 | H12: 32.70005034 | I12: 30.94857852 | J12: 33.06325043 | K12: 34.66161059 | L12: 34.71776256 | M12: 36.8839726
A13: 南 | B13: 34.20133351 | C13: 32.76262021 | D13: 34.89775676 | E13: 35.79195586 | F13: 36.62827021 | G13: 38.18287671 | H13: 32.18609511 | I13: 30.59375146 | J13: 33.0653353 | K13: 33.9248733 | L13: 34.91693527 | M13: 33.67465753
A14: 西 | B14: 34.09609951 | C14: 32.83922663 | D14: 35.34520076 | E14: 35.61161013 | F14: 36.98142812 | G14: 36.19855403 | H14: 32.41110783 | I14: 31.16170177 | J14: 33.5246067 | K14: 34.47047133 | L14: 35.00022044 | M14: 34.90190259
A15: 手稲 | B15: 33.97511792 | C15: 32.49576514 | D15: 34.68122345 | E15: 36.03368426 | F15: 36.59430365 | G15: 34.70319635 | H15: 32.24293903 | I15: 30.36974918 | J15: 33.28203154 | K15: 34.51713376 | L15: 35.06704718 | M15: 34.86099696

Sheet 16 出生順位別，同居期間別嫡出子出生数・百分率・平均期間
A1: 16 出生順位別にみた出生までの同居期間別嫡出子出生数・百分率及び平均期間
G2: ='3 月・性別，区別出生数・出生率'!$O$2 -> 平成30年
A3: 同居期間 | B3: 総数 | C3: 第1子 | D3: 第2子 | E3: 第3子 | F3: 第4子 | G3: 第5子～
B4: 出生数
A5: 総 数 | B5: =SUM(C5:G5) -> 12900 | C5: =SUM(C6:C19) -> 6486 | D5: =SUM(D6:D19) -> 4674 | E5: =SUM(E6:E19) -> 1372 | F5: =SUM(F6:F19) -> 274 | G5: =SUM(G6:G19) -> 94
A6: 1年未満 | B6: =SUM(C6:G6) -> 1938 | C6: 1596 | D6: 226 | E6: 83 | F6: 27 | G6: 6 | I6: ※嫡出子
A7: 1年以上2年未満 | B7: =SUM(C7:G7) -> 1722 | C7: 1482 | D7: 179 | E7: 47 | F7: 11 | G7: 3 | I7: =SUM(B6:B19) -> 12900
A8: 2～ 3 | B8: 1689 | C8: 1167 | D8: 450 | E8: 45 | F8: 21 | G8: 6
A9: 3～ 4 | B9: 1475 | C9: 690 | D9: 719 | E9: 48 | F9: 14 | G9: 4
A10: 4～ 5 | B10: 1252 | C10: 436 | D10: 716 | E10: 89 | F10: 7 | G10: 4
A11: 5～ 6 | B11: 1067 | C11: 274 | D11: 627 | E11: 148 | F11: 11 | G11: 7
A12: 6～ 7 | B12: 826 | C12: 164 | D12: 467 | E12: 174 | F12: 16 | G12: 5
A13: 7～ 8 | B13: 631 | C13: 140 | D13: 306 | E13: 162 | F13: 19 | G13: 4
A14: 8～ 9 | B14: 499 | C14: 78 | D14: 245 | E14: 152 | F14: 20 | G14: 4
A15: 9～10 | B15: 351 | C15: 62 | D15: 151 | E15: 107 | F15: 23 | G15: 8
A16: 10～15 | B16: 684 | C16: 118 | D16: 277 | E16: 197 | F16: 71 | G16: 21
A17: 15～20 | B17: 109 | C17: 20 | D17: 44 | E17: 21 | F17: 13 | G17: 11
A18: 20～ | B18: 9 | C18: 2 | D18: 3 | E18: 1 | F18: 1 | G18: 2
A19: 不 詳 | B19: 648 | C19: 257 | D19: 264 | E19: 98 | F19: 20 | G19: 9
B20: 百分率
A21: 総 数 | B21: =SUM(B22:B35) -> 100 | C21: 100 | D21: 100 | E21: 100 | F21: 100 | G21: 100
A22: 1年未満 | B22: =B6/B$5*100 -> 15.02325581 | C22: 24.60684551 | D22: 4.835258879 | E22: 6.049562682 | F22: 9.854014599 | G22: 6.382978723
A23: 1年以上2年未満 | B23: =B7/B$5*100 -> 13.34883721 | C23: =C7/C$5*100 -> 22.84921369 | D23: 3.829696192 | E23: 3.425655977 | F23: 4.01459854 | G23: 3.191489362
A24: 2～ 3 | B24: 13.09302326 | C24: 17.99259944 | D24: 9.627727856 | E24: 3.279883382 | F24: 7.664233577 | G24: 6.382978723
A25: 3～ 4 | B25: 11.43410853 | C25: 10.63829787 | D25: 15.38296962 | E25: 3.498542274 | F25: 5.109489051 | G25: 4.255319149
A26: 4～ 5 | B26: 9.705426357 | C26: 6.722170829 | D26: 15.31878477 | E26: 6.486880466 | F26: 2.554744526 | G26: 4.255319149
A27: 5～ 6 | B27: 8.271317829 | C27: 4.224483503 | D27: 13.41463415 | E27: 10.78717201 | F27: 4.01459854 | G27: 7.446808511
A28: 6～ 7 | B28: 6.403100775 | C28: 2.528522973 | D28: 9.99144202 | E28: 12.68221574 | F28: 5.839416058 | G28: 5.319148936
A29: 7～ 8 | B29: 4.891472868 | C29: 2.15849522 | D29: 6.546854942 | E29: 11.80758017 | F29: 6.934306569 | G29: 4.255319149
A30: 8～ 9 | B30: 3.868217054 | C30: 1.202590194 | D30: 5.241762944 | E30: 11.0787172 | F30: 7.299270073 | G30: 4.255319149
A31: 9～10 | B31: 2.720930233 | C31: 0.9559050262 | D31: 3.23063757 | E31: 7.798833819 | F31: 8.394160584 | G31: 8.510638298
A32: 10～15 | B32: 5.302325581 | C32: 1.819303114 | D32: 5.926401369 | E32: 14.35860058 | F32: 25.91240876 | G32: 22.34042553
A33: 15～20 | B33: 0.8449612403 | C33: 0.3083564601 | D33: 0.9413778348 | E33: 1.530612245 | F33: 4.744525547 | G33: 11.70212766
A34: 20～ | B34: 0.06976744186 | C34: 0.03083564601 | D34: 0.06418485237 | E34: 0.07288629738 | F34: 0.3649635036 | G34: 2.127659574
A35: 不 詳 | B35: 5.023255814 | C35: =C19/C$5*100 -> 3.962380512 | D35: =D19/D$5*100 -> 5.648267009 | E35: 7.142857143 | F35: 7.299270073 | G35: 9.574468085
A37: 平均期間(年) | B37: 3.99 | C37: 2.57 | D37: 4.99 | E37: 6.45 | F37: 7.01 | G37: 7.94

Sheet 17 妊娠期間別にみた区別出生数
A1: 17 妊娠期間別にみた区別出生数及び百分率
O2: ='3 月・性別，区別出生数・出生率'!$O$2 -> 平成30年
A3: 区 | B3: 総 数 | C3: 満22週 未満 | D3: 22～ 23週 | E3: 24～ 27週 | F3: 28～ 31週 | G3: 32～ 35週 | H3: 36～ 39週 | I3: 40週 ～ | J3: 不詳 | K3: (再 掲）
K4: 早期(満37週未満) | N4: 正期 | O4: 過期
K5: 28週 未満 | L5: 28～ 31週 | M5: 32～ 36週 | N5: 37～ 41週 | O5: 42週 ～
B6: 出生数
A7: 総数 | B7: =SUM(C7:J7) -> 13248 | C7: =SUM(C8:C17) -> 0 | D7: 4 | E7: 30 | F7: 42 | G7: 283 | H7: 8711 | I7: 4171 | J7: 7 | K7: =SUM(K8:K17) -> 34 | L7: =SUM(L8:L17) -> 42 | M7: =SUM(M8:M17) -> 709 | N7: =SUM(N8:N17) -> 12445 | O7: =SUM(O8:O17) -> 11
A8: 中央 | B8: =SUM(C8:J8) -> 1744 | C8: 0 | D8: 0 | E8: 4 | F8: 5 | G8: 38 | H8: 1166 | I8: 528 | J8: 3 | K8: 4 | L8: 5 | M8: 86 | N8: 1642 | O8: 4
A9: 北 | B9: 1847 | C9: 0 | D9: 0 | E9: 2 | F9: 10 | G9: 46 | H9: 1186 | I9: 603 | J9: 0 | K9: 2 | L9: 10 | M9: 102 | N9: 1733 | O9: 0
A10: 東 | B10: 1978 | C10: 0 | D10: 0 | E10: 5 | F10: 2 | G10: 41 | H10: 1245 | I10: 683 | J10: 2 | K10: 5 | L10: 2 | M10: 105 | N10: 1863 | O10: 1
A11: 白石 | B11: 1711 | C11: 0 | D11: 0 | E11: 6 | F11: 8 | G11: 36 | H11: 1061 | I11: 599 | J11: 1 | K11: 6 | L11: 8 | M11: 86 | N11: 1608 | O11: 2
A12: 厚別 | B12: 661 | C12: 0 | D12: 2 | E12: 1 | F12: 2 | G12: 13 | H12: 436 | I12: 207 | J12: 0 | K12: 3 | L12: 2 | M12: 40 | N12: 615 | O12: 1
A13: 豊平 | B13: 1682 | C13: 0 | D13: 0 | E13: 1 | F13: 4 | G13: 30 | H13: 1138 | I13: 508 | J13: 1 | K13: 1 | L13: 4 | M13: 87 | N13: 1588 | O13: 1
A14: 清田 | B14: 644 | C14: 0 | D14: 2 | E14: 2 | F14: 2 | G14: 10 | H14: 462 | I14: 166 | J14: 0 | K14: 4 | L14: 2 | M14: 38 | N14: 600 | O14: 0
A15: 南 | B15: 642 | C15: 0 | D15: 0 | E15: 4 | F15: 2 | G15: 12 | H15: 437 | I15: 187 | J15: 0 | K15: 4 | L15: 2 | M15: 25 | N15: 611 | O15: 0
A16: 西 | B16: 1530 | C16: 0 | D16: 0 | E16: 3 | F16: 6 | G16: 44 | H16: 997 | I16: 480 | J16: 0 | K16: 3 | L16: 6 | M16: 91 | N16: 1428 | O16: 2
A17: 手稲 | B17: 809 | C17: 0 | D17: 0 | E17: 2 | F17: 1 | G17: 13 | H17: 583 | I17: 210 | J17: 0 | K17: 2 | L17: 1 | M17: 49 | N17: 757 | O17: 0
B18: 百分率
A19: 総数 | B19: =SUM(C19:J19) -> 100 | C19: =C7/$B7*100 -> 0 | D19: =D7/$B7*100 -> 0.03019323671 | E19: 0.2264492754 | F19: 0.3170289855 | G19: 2.136171498 | H19: 65.75332126 | I19: 31.48399758 | J19: 0.05283816425 | K19: 0.2566425121 | L19: 0.3170289855 | M19: 5.351751208 | N19: 93.93870773 | O19: 0.08303140097
A20: 中央 | B20: =SUM(C20:J20) -> 100 | C20: 0 | D20: =D8/$B8*100 -> 0 | E20: 0.2293577982 | F20: 0.2866972477 | G20: 2.178899083 | H20: 66.85779817 | I20: 30.27522936 | J20: 0.1720183486 | K20: 0.2293577982 | L20: 0.2866972477 | M20: 4.931192661 | N20: 94.15137615 | O20: 0.2293577982
A21: 北 | B21: 100 | C21: 0 | D21: =D9/$B9*100 -> 0 | E21: 0.1082837033 | F21: 0.5414185165 | G21: 2.490525176 | H21: 64.21223606 | I21: 32.64753655 | J21: 0 | K21: 0.1082837033 | L21: 0.5414185165 | M21: 5.522468868 | N21: 93.82782891 | O21: 0
A22: 東 | B22: 100 | C22: 0 | D22: =D10/$B10*100 -> 0 | E22: 0.2527805865 | F22: 0.1011122346 | G22: 2.072800809 | H22: 62.94236603 | I22: 34.52982811 | J22: 0.1011122346 | K22: 0.2527805865 | L22: 0.1011122346 | M22: 5.308392315 | N22: 94.18604651 | O22: 0.05055611729
A23: 白石 | B23: 100 | C23: 0 | D23: =D11/$B11*100 -> 0 | E23: 0.3506721216 | F23: 0.4675628288 | G23: 2.104032729 | H23: 62.01052016 | I23: 35.0087668 | J23: 0.05844535359 | K23: 0.3506721216 | L23: 0.4675628288 | M23: 5.026300409 | N23: 93.98012858 | O23: 0.1168907072
A24: 厚別 | B24: 100 | C24: 0 | D24: =D12/$B12*100 -> 0.3025718608 | E24: 0.1512859304 | F24: 0.3025718608 | G24: 1.966717095 | H24: 65.96066566 | I24: 31.31618759 | J24: 0 | K24: 0.4538577912 | L24: 0.3025718608 | M24: 6.051437216 | N24: 93.0408472 | O24: 0.1512859304
A25: 豊平 | B25: 100 | C25: 0 | D25: =D13/$B13*100 -> 0 | E25: 0.0594530321 | F25: 0.2378121284 | G25: 1.783590963 | H25: 67.65755054 | I25: 30.20214031 | J25: 0.0594530321 | K25: 0.0594530321 | L25: 0.2378121284 | M25: 5.172413793 | N25: 94.41141498 | O25: 0.0594530321
A26: 清田 | B26: 100 | C26: 0 | D26: =D14/$B14*100 -> 0.3105590062 | E26: 0.3105590062 | F26: 0.3105590062 | G26: 1.552795031 | H26: 71.73913043 | I26: 25.77639752 | J26: 0 | K26: 0.6211180124 | L26: 0.3105590062 | M26: 5.900621118 | N26: 93.16770186 | O26: 0
A27: 南 | B27: 100 | C27: 0 | D27: =D15/$B15*100 -> 0 | E27: 0.6230529595 | F27: 0.3115264798 | G27: 1.869158879 | H27: 68.06853583 | I27: 29.12772586 | J27: 0 | K27: 0.6230529595 | L27: 0.3115264798 | M27: 3.894080997 | N27: 95.17133956 | O27: 0
A28: 西 | B28: 100 | C28: =C16/$B16*100 -> 0 | D28: 0 | E28: 0.1960784314 | F28: 0.3921568627 | G28: 2.875816993 | H28: 65.16339869 | I28: 31.37254902 | J28: 0 | K28: 0.1960784314 | L28: 0.3921568627 | M28: 5.947712418 | N28: 93.33333333 | O28: 0.1307189542
A29: 手稲 | B29: 100 | C29: =C17/$B17*100 -> 0 | D29: 0 | E29: 0.2472187886 | F29: 0.1236093943 | G29: 1.606922126 | H29: 72.06427689 | I29: 25.95797281 | J29: 0 | K29: 0.2472187886 | L29: 0.1236093943 | M29: 6.056860321 | N29: 93.5723115 | O29: 0

Sheet 18 出生時の体重別，年次別出生数
A1: 18 出生時の体重別にみた年次別出生数・百分率及び平均体重
A3: 年次 | B3: 総数 | C3: 0.5kｇ未満 | D3: 0.5㎏以上 1.0㎏未満 | E3: 1.0～1.5㎏ | F3: 1.5～2.0㎏ | G3: 2.0～2.5㎏ | H3: 2.5～3.0㎏ | I3: 3.0～3.5㎏ | J3: 3.5～4.0㎏ | K3: 4.0～4.5㎏ | L3: 4.5～5.0㎏ | M3: 5.0㎏以上 | N3: 不詳 | O3: (再掲) 2.5㎏未満 | P3: 出生時の 平均体重(㎏)
B4: 出生数
A5: 85 60 | B5: =SUM(C5:N5) -> 19314 | C5: 0 | D5: 38 | E5: 58 | F5: 161 | G5: 818 | H5: 5563 | I5: 8787 | J5: 3385 | K5: 464 | L5: 31 | M5: 3 | N5: 6 | O5: =SUM(C5:G5) -> 1075 | P5: 3.15
A6: 1986 昭和61年 | B6: =SUM(C6:N6) -> 19130 | C6: 0 | D6: 37 | E6: 68 | F6: 190 | G6: 811 | H6: 5360 | I6: 8926 | J6: 3285 | K6: 413 | L6: 30 | M6: 3 | N6: 7 | O6: =SUM(C6:G6) -> 1106 | P6: 3.15
A7: 1987 昭和62年 | B7: =SUM(C7:N7) -> 18533 | C7: 1 | D7: 34 | E7: 61 | F7: 169 | G7: 846 | H7: 5374 | I7: 8601 | J7: 3028 | K7: 383 | L7: 28 | M7: 3 | N7: 5 | O7: =SUM(C7:G7) -> 1111 | P7: 3.14
A8: 1988 昭和63年 | B8: 18216 | C8: 3 | D8: 30 | E8: 67 | F8: 173 | G8: 835 | H8: 5570 | I8: 8286 | J8: 2891 | K8: 328 | L8: 30 | M8: 1 | N8: 2 | O8: 1108 | P8: 3.12
A9: 89 平成元年 | B9: 17479 | C9: 1 | D9: 40 | E9: 76 | F9: 167 | G9: 861 | H9: 5481 | I9: 7887 | J9: 2623 | K9: 305 | L9: 33 | M9: 1 | N9: 4 | O9: 1145 | P9: 3.11
A10: 90 2 | B10: 17425 | C10: 1 | D10: 48 | E10: 65 | F10: 168 | G10: 881 | H10: 5574 | I10: 7802 | J10: 2571 | K10: 287 | L10: 24 | M10: 1 | N10: 3 | O10: 1163 | P10: 3.1
A11: 91 3 | B11: 17458 | C11: 1 | D11: 41 | E11: 77 | F11: 160 | G11: 892 | H11: 5628 | I11: 7984 | J11: 2411 | K11: 237 | L11: 18 | M11: 2 | N11: 7 | O11: 1171 | P11: 3.09
A12: 92 4 | B12: 17325 | C12: 2 | D12: 27 | E12: 63 | F12: 171 | G12: 930 | H12: 5768 | I12: 7736 | J12: 2344 | K12: 254 | L12: 20 | M12: 2 | N12: 8 | O12: 1193 | P12: 3.09
A13: 1993 平成5年 | B13: 16371 | C13: 1 | D13: 49 | E13: 56 | F13: 166 | G13: 948 | H13: 5411 | I13: 7283 | J13: 2199 | K13: 238 | L13: 14 | M13: 4 | N13: 2 | O13: 1220 | P13: 3.08
A14: 94 6 | B14: 17057 | C14: 6 | D14: 40 | E14: 73 | F14: 187 | G14: 1014 | H14: 5934 | I14: 7434 | J14: 2160 | K14: 194 | L14: 10 | M14: 1 | N14: 4 | O14: 1320 | P14: 3.06
A15: 95 7 | B15: 16227 | C15: 1 | D15: 41 | E15: 76 | F15: 184 | G15: 938 | H15: 5652 | I15: 7157 | J15: 1972 | K15: 186 | L15: 17 | M15: 0 | N15: 3 | O15: 1240 | P15: 3.06
A16: 96 8 | B16: 16339 | C16: 1 | D16: 26 | E16: 76 | F16: 158 | G16: 1062 | H16: 5627 | I16: 7169 | J16: 2015 | K16: 188 | L16: 15 | M16: 0 | N16: 2 | O16: 1323 | P16: 3.06
A17: 97 9 | B17: 15873 | C17: 2 | D17: 40 | E17: 59 | F17: 179 | G17: 988 | H17: 5583 | I17: 6902 | J17: 1947 | K17: 161 | L17: 7 | M17: 2 | N17: 3 | O17: 1268 | P17: 3.05
A18: 1998 平成10年 | B18: 16165 | C18: 3 | D18: 44 | E18: 50 | F18: 183 | G18: 1125 | H18: 5678 | I18: 6958 | J18: 1944 | K18: 161 | L18: 14 | M18: 0 | N18: 5 | O18: 1405 | P18: 3.04
A19: 99 11 | B19: 15358 | C19: 1 | D19: 40 | E19: 81 | F19: 192 | G19: 1004 | H19: 5453 | I19: 6618 | J19: 1818 | K19: 140 | L19: 9 | M19: 0 | N19: 2 | O19: 1318 | P19: 3.04
A20: 2000 12 | B20: 15332 | C20: 1 | D20: 24 | E20: 71 | F20: 155 | G20: 1125 | H20: 5484 | I20: 6552 | J20: 1763 | K20: 147 | L20: 7 | M20: 0 | N20: 3 | O20: 1376 | P20: 3.034
A21: 01 13 | B21: 15312 | C21: 3 | D21: 32 | E21: 61 | F21: 172 | G21: 970 | H21: 5625 | I21: 6543 | J21: 1749 | K21: 149 | L21: 6 | M21: 0 | N21: 2 | O21: 1238 | P21: 3.036475767
A22: 02 14 | B22: 15577 | C22: 4 | D22: 29 | E22: 75 | F22: 192 | G22: 1083 | H22: 5686 | I22: 6556 | J22: 1770 | K22: 171 | L22: 8 | M22: 0 | N22: 3 | O22: 1383 | P22: 3.030826698
A23: 03 15 | B23: 14999 | C23: 1 | D23: 55 | E23: 63 | F23: 158 | G23: 1075 | H23: 5424 | I23: 6391 | J23: 1679 | K23: 142 | L23: 6 | M23: 1 | N23: 4 | O23: 1352 | P23: 3.02807936
A24: 04 16 | B24: 14749 | C24: 2 | D24: 35 | E24: 76 | F24: 196 | G24: 1058 | H24: 5378 | I24: 6192 | J24: 1655 | K24: 144 | L24: 9 | M24: 1 | N24: 3 | O24: 1367 | P24: 3.021895972
A25: 05 17 | B25: 14184 | C25: 5 | D25: 35 | E25: 75 | F25: 170 | G25: 1026 | H25: 5275 | I25: 5930 | J25: 1518 | K25: 139 | L25: 7 | M25: 0 | N25: 4 | O25: 1311 | P25: 3.01875536
A26: 06 18 | B26: 14730 | C26: 1 | D26: 51 | E26: 77 | F26: 206 | G26: 1089 | H26: 5540 | I26: 6111 | J26: 1520 | K26: 127 | L26: 5 | M26: 0 | N26: 3 | O26: 1424 | P26: 3.009090446
A27: 07 19 | B27: 14498 | C27: 1 | D27: 43 | E27: 69 | F27: 179 | G27: 1051 | H27: 5365 | I27: 6118 | J27: 1531 | K27: 132 | L27: 6 | M27: 0 | N27: 3 | O27: 1343 | P27: 3.018747706
A28: 08 20 | B28: 14845 | C28: 3 | D28: 40 | E28: 69 | F28: 163 | G28: 1109 | H28: 5561 | I28: 6138 | J28: 1613 | K28: 141 | L28: 3 | M28: 1 | N28: 4 | O28: 1384 | P28: 3.015047032
A29: 09 21 | B29: 14506 | C29: 3 | D29: 37 | E29: 74 | F29: 162 | G29: 1015 | H29: 5559 | I29: 5961 | J29: 1551 | K29: 136 | L29: 4 | M29: 0 | N29: 4 | O29: 1291 | P29: 3.02
A30: 10 22 | B30: 14739 | C30: 6 | D30: 28 | E30: 46 | F30: 153 | G30: 1140 | H30: 5753 | I30: 5947 | J30: 1517 | K30: 135 | L30: 10 | M30: 1 | N30: 3 | O30: 1373 | P30: 3.010975774
A31: 11 23 | B31: 14491 | C31: 6 | D31: 35 | E31: 89 | F31: 201 | G31: 1061 | H31: 5571 | I31: 5944 | J31: 1477 | K31: 97 | L31: 6 | M31: 1 | N31: 3 | O31: 1392 | P31: 3.000923454
A32: 12 24 | B32: 14487 | C32: 0 | D32: 45 | E32: 56 | F32: 177 | G32: 1101 | H32: 5599 | I32: 5889 | J32: 1484 | K32: 133 | L32: 1 | M32: 0 | N32: 2 | O32: 1379 | P32: 3.004900311
A33: 13 25 | B33: 14591 | C33: 2 | D33: 36 | E33: 69 | F33: 207 | G33: 1121 | H33: 5542 | I33: 6032 | J33: 1467 | K33: 108 | L33: 3 | M33: 2 | N33: 2 | O33: 1435 | P33: 3.002265611
A34: 14 26 | B34: 14568 | C34: 6 | D34: 46 | E34: 76 | F34: 181 | G34: 1088 | H34: 5528 | I34: 6017 | J34: 1476 | K34: 141 | L34: 8 | M34: 0 | N34: 1 | O34: 1397 | P34: 3.006485824
A35: 15 27 | B35: 14589 | C35: 6 | D35: 28 | E35: 54 | F35: 172 | G35: 1076 | H35: 5589 | I35: 6116 | J35: 1429 | K35: 108 | L35: 7 | M35: 0 | N35: 4 | O35: 1336 | P35: 3.00969592
A36: 16 28 | B36: 14021 | C36: 2 | D36: 33 | E36: 54 | F36: 160 | G36: 1067 | H36: 5322 | I36: 5865 | J36: 1422 | K36: 90 | L36: 4 | M36: 0 | N36: 2 | O36: 1316 | P36: 3.01101177
A37: 17 29 | B37: 13821 | C37: 5 | D37: 27 | E37: 64 | F37: 182 | G37: 1026 | H37: 5280 | I37: 5700 | J37: 1418 | K37: 117 | L37: 1 | M37: 0 | N37: 1 | O37: 1304 | P37: 3.009053763
A38: 18 30 | B38: =SUM(C38:N38) -> 13248 | C38: ='25 出生時の体重別，単産-複産別出生数・平均体重'!D$4 -> 7 | D38: ='25 出生時の体重別，単産-複産別出生数・平均体重'!E$4 -> 27 | E38: ='25 出生時の体重別，単産-複産別出生数・平均体重'!F$4 -> 52 | F38: ='25 出生時の体重別，単産-複産別出生数・平均体重'!G$4 -> 152 | G38: ='25 出生時の体重別，単産-複産別出生数・平均体重'!H$4 -> 944 | H38: ='25 出生時の体重別，単産-複産別出生数・平均体重'!I$4 -> 4998 | I38: ='25 出生時の体重別，単産-複産別出生数・平均体重'!J$4 -> 5574 | J38: ='25 出生時の体重別，単産-複産別出生数・平均体重'!K$4 -> 1382 | K38: ='25 出生時の体重別，単産-複産別出生数・平均体重'!L$4 -> 106 | L38: ='25 出生時の体重別，単産-複産別出生数・平均体重'!M$4 -> 2 | M38: ='25 出生時の体重別，単産-複産別出生数・平均体重'!N$4 -> 1 | N38: ='25 出生時の体重別，単産-複産別出生数・平均体重'!O$4 -> 3 | O38: =SUM(C38:G38) -> 1182 | P38: ='25 出生時の体重別，単産-複産別出生数・平均体重'!Q$4 -> 3.017284711
B39: 百分率
A40: 85 60 | B40: =SUM(C40:N40) -> 100 | C40: =C5/$B5*100 -> 0 | D40: 0.1967484726 | E40: 0.3003003003 | F40: 0.8335922129 | G40: 4.235269753 | H40: 28.80294087 | I40: 45.4954955 | J40: 17.52614684 | K40: 2.402402402 | L40: 0.1605053329 | M40: 0.01553277415 | N40: 0.03106554831 | O40: 5.565910738
A41: 1986 昭和61年 | B41: =SUM(C41:N41) -> 100 | C41: =C6/$B6*100 -> 0 | D41: 0.1934134867 | E41: 0.3554626242 | F41: 0.993204391 | G41: 4.239414532 | H41: 28.01881861 | I41: 46.65969681 | J41: 17.17198118 | K41: 2.158912703 | L41: 0.1568217459 | M41: 0.01568217459 | N41: 0.03659174072 | O41: 5.781495034
A42: 1987 昭和62年 | B42: =SUM(C42:N42) -> 100 | C42: =C7/$B7*100 -> 0.0053957805 | D42: 0.183456537 | E42: 0.3291426105 | F42: 0.9118869044 | G42: 4.564830303 | H42: 28.99692441 | I42: 46.40910808 | J42: 16.33842335 | K42: 2.066583931 | L42: 0.151081854 | M42: 0.0161873415 | N42: 0.0269789025 | O42: 5.994712135
A43: 1988 昭和63年 | B43: 100 | C43: 0.01646903821 | D43: 0.1646903821 | E43: 0.36780852 | F43: 0.9497145367 | G43: 4.583882301 | H43: 30.57751427 | I43: 45.48748353 | J43: 15.87066315 | K43: 1.800614844 | L43: 0.1646903821 | M43: 0.005489679403 | N43: 0.01097935881 | O43: 6.082564778
A44: 89 平成元年 | B44: 100 | C44: 0.005721151096 | D44: 0.2288460438 | E44: 0.4348074833 | F44: 0.955432233 | G44: 4.925911093 | H44: 31.35762915 | I44: 45.12271869 | J44: 15.00657932 | K44: 1.744951084 | L44: 0.1887979862 | M44: 0.005721151096 | N44: 0.02288460438 | O44: 6.550718004
A45: 90 2 | B45: 100 | C45: 0.005738880918 | D45: 0.2754662841 | E45: 0.3730272597 | F45: 0.9641319943 | G45: 5.055954089 | H45: 31.98852224 | I45: 44.77474892 | J45: 14.75466284 | K45: 1.647058824 | L45: 0.137733142 | M45: 0.005738880918 | N45: 0.01721664275 | O45: 6.674318508
A46: 91 3 | B46: 100 | C46: 0.005728032993 | D46: 0.2348493527 | E46: 0.4410585405 | F46: 0.916485279 | G46: 5.10940543 | H46: 32.23736969 | I46: 45.73261542 | J46: 13.81028755 | K46: 1.357543819 | L46: 0.1031045939 | M46: 0.01145606599 | N46: 0.04009623095 | O46: 6.707526635
A47: 92 4 | B47: 100 | C47: 0.01154401154 | D47: 0.1558441558 | E47: 0.3636363636 | F47: 0.987012987 | G47: 5.367965368 | H47: 33.29292929 | I47: 44.65223665 | J47: 13.52958153 | K47: 1.466089466 | L47: 0.1154401154 | M47: 0.01154401154 | N47: 0.04617604618 | O47: 6.886002886
A48: 1993 平成5年 | B48: 100 | C48: 0.006108362348 | D48: 0.2993097551 | E48: 0.3420682915 | F48: 1.01398815 | G48: 5.790727506 | H48: 33.05234867 | I48: 44.48720298 | J48: 13.4322888 | K48: 1.453790239 | L48: 0.08551707287 | M48: 0.02443344939 | N48: 0.0122167247 | O48: 7.452202065
A49: 94 6 | B49: 100 | C49: 0.035176174 | D49: 0.2345078267 | E49: 0.4279767837 | F49: 1.09632409 | G49: 5.944773407 | H49: 34.78923609 | I49: 43.58327959 | J49: 12.66342264 | K49: 1.137362959 | L49: 0.05862695667 | M49: 0.005862695667 | N49: 0.02345078267 | O49: 7.738758281
A50: 95 7 | B50: 100 | C50: 0.006162568559 | D50: 0.2526653109 | E50: 0.4683552105 | F50: 1.133912615 | G50: 5.780489308 | H50: 34.83083749 | I50: 44.10550317 | J50: 12.1525852 | K50: 1.146237752 | L50: 0.1047636655 | M50: 0 | N50: 0.01848770568 | O50: 7.641585013
A51: 96 8 | B51: 100 | C51: 0.006120325601 | D51: 0.1591284656 | E51: 0.4651447457 | F51: 0.967011445 | G51: 6.499785789 | H51: 34.43907216 | I51: 43.87661424 | J51: 12.33245609 | K51: 1.150621213 | L51: 0.09180488402 | M51: 0 | N51: 0.0122406512 | O51: 8.097190771
A52: 97 9 | B52: 100 | C52: 0.0126000126 | D52: 0.252000252 | E52: 0.3717003717 | F52: 1.127701128 | G52: 6.224406224 | H52: 35.17293517 | I52: 43.48264348 | J52: 12.26611227 | K52: 1.014301014 | L52: 0.0441000441 | M52: 0.0126000126 | N52: 0.0189000189 | O52: 7.988407988
A53: 1998 平成10年 | B53: 100 | C53: 0.01855861429 | D53: 0.2721930096 | E53: 0.3093102382 | F53: 1.132075472 | G53: 6.959480359 | H53: 35.12527065 | I53: 43.04361274 | J53: 12.02598206 | K53: 0.9959789669 | L53: 0.08660686669 | M53: 0 | N53: 0.03093102382 | O53: 8.691617693
A54: 99 11 | B54: 100 | C54: 0.006511264488 | D54: 0.2604505795 | E54: 0.5274124235 | F54: 1.250162782 | G54: 6.537309546 | H54: 35.50592525 | I54: 43.09154838 | J54: 11.83747884 | K54: 0.9115770283 | L54: 0.05860138039 | M54: 0 | N54: 0.01302252898 | O54: 8.581846595
A55: 2000 12 | B55: 100 | C55: 0.006522306288 | D55: 0.1565353509 | E55: 0.4630837464 | F55: 1.010957475 | G55: 7.337594573 | H55: 35.76832768 | I55: 42.7341508 | J55: 11.49882598 | K55: 0.9587790243 | L55: 0.04565614401 | M55: 0 | N55: 0.01956691886 | O55: 8.974693452
A56: 01 13 | B56: 100 | C56: 0.01959247649 | D56: 0.2089864159 | E56: 0.3983803553 | F56: 1.123301985 | G56: 6.334900731 | H56: 36.73589342 | I56: 42.73119122 | J56: 11.42241379 | K56: 0.973092999 | L56: 0.03918495298 | M56: 0 | N56: 0.01306165099 | O56: 8.085161964
A57: 02 14 | B57: 100 | C57: 0.02567888554 | D57: 0.1861719201 | E57: 0.4814791038 | F57: 1.232586506 | G57: 6.952558259 | H57: 36.50253579 | I57: 42.08769339 | J57: 11.36290685 | K57: 1.097772357 | L57: 0.05135777107 | M57: 0 | N57: 0.01925916415 | O57: 8.878474674
A58: 03 15 | B58: 100 | C58: 0.006667111141 | D58: 0.3666911127 | E58: 0.4200280019 | F58: 1.05340356 | G58: 7.167144476 | H58: 36.16241083 | I58: 42.6095073 | J58: 11.19407961 | K58: 0.946729782 | L58: 0.04000266684 | M58: 0.006667111141 | N58: 0.02666844456 | O58: 9.013934262
A59: 04 16 | B59: 100 | C59: 0.01356024137 | D59: 0.237304224 | E59: 0.5152891721 | F59: 1.328903654 | G59: 7.173367686 | H59: 36.46348905 | I59: 41.98250729 | J59: 11.22109974 | K59: 0.9763373788 | L59: 0.06102108618 | M59: 0.006780120686 | N59: 0.02034036206 | O59: 9.268424978
A60: 05 17 | B60: 100 | C60: 0.03525098703 | D60: 0.2467569092 | E60: 0.5287648054 | F60: 1.198533559 | G60: 7.233502538 | H60: 37.18979131 | I60: 41.80767061 | J60: 10.70219966 | K60: 0.9799774394 | L60: 0.04935138184 | M60: 0 | N60: 0.02820078962 | O60: 9.242808799
A61: 06 18 | B61: 100 | C61: 0.006788866259 | D61: 0.3462321792 | E61: 0.522742702 | F61: 1.398506449 | G61: 7.393075356 | H61: 37.61031908 | I61: 41.48676171 | J61: 10.31907671 | K61: 0.8621860149 | L61: 0.0339443313 | M61: 0 | N61: 0.02036659878 | O61: 9.667345553
A62: 07 19 | B62: 100 | C62: 0.006897503104 | D62: 0.2965926335 | E62: 0.4759277142 | F62: 1.234653056 | G62: 7.249275762 | H62: 37.00510415 | I62: 42.19892399 | J62: 10.56007725 | K62: 0.9104704097 | L62: 0.04138501862 | M62: 0 | N62: 0.02069250931 | O62: 9.263346669
A63: 08 20 | B63: 100 | C63: 0.02020882452 | D63: 0.2694509936 | E63: 0.464802964 | F63: 1.098012799 | G63: 7.470528798 | H63: 37.46042439 | I63: 41.34725497 | J63: 10.86561132 | K63: 0.9498147524 | L63: 0.02020882452 | M63: 0.00673627484 | N63: 0.02694509936 | O63: 9.323004379
A64: 09 21 | B64: 100 | C64: 0.02068109748 | D64: 0.2550668689 | E64: 0.5101337378 | F64: 1.116779264 | G64: 6.997104646 | H64: 38.32207362 | I64: 41.09334069 | J64: 10.6921274 | K64: 0.9375430856 | L64: 0.02757479664 | M64: 0 | N64: 0.02757479664 | O64: 8.899765614
A65: 10 22 | B65: 100 | C65: 0.04070832485 | D65: 0.1899721826 | E65: 0.3120971572 | F65: 1.038062284 | G65: 7.734581722 | H65: 39.03249881 | I65: 40.34873465 | J65: 10.29242147 | K65: 0.9159373092 | L65: 0.06784720809 | M65: 0.006784720809 | N65: 0.02035416243 | O65: 9.31542167
A66: 11 23 | B66: 100 | C66: 0.04140501001 | D66: 0.241529225 | E66: 0.6141743151 | F66: 1.387067835 | G66: 7.321785936 | H66: 38.44455179 | I66: 41.01856325 | J66: 10.1925333 | K66: 0.6693809951 | L66: 0.04140501001 | M66: 0.006900835001 | N66: 0.020702505 | O66: 9.605962321
A67: 12 24 | B67: 100 | C67: 0 | D67: 0.3106233175 | E67: 0.3865534617 | F67: 1.221785049 | G67: 7.599917167 | H67: 38.64844343 | I67: 40.65023814 | J67: 10.24366674 | K67: 0.9180644716 | L67: 0.006902740388 | M67: 0 | N67: 0.01380548078 | O67: 9.518878995
A68: 13 25 | B68: 100 | C68: 0.01370707971 | D68: 0.2467274347 | E68: 0.4728942499 | F68: 1.41868275 | G68: 7.682818176 | H68: 37.98231787 | I68: 41.3405524 | J68: 10.05414296 | K68: 0.7401823042 | L68: 0.02056061956 | M68: 0.01370707971 | N68: 0.01370707971 | O68: 9.83482969
A69: 14 26 | B69: 100 | C69: 0.04118616145 | D69: 0.3157605711 | E69: 0.5216913784 | F69: 1.242449204 | G69: 7.468423943 | H69: 37.94618342 | I69: 41.30285557 | J69: 10.13179572 | K69: 0.9678747941 | L69: 0.05491488193 | M69: 0 | N69: 0.006864360242 | O69: 9.589511258
A70: 15 27 | B70: 100 | C70: 0.04112687641 | D70: 0.1919254233 | E70: 0.3701418877 | F70: 1.178970457 | G70: 7.375419837 | H70: 38.30968538 | I70: 41.92199602 | J70: 9.795051066 | K70: 0.7402837754 | L70: 0.04798135582 | M70: 0 | N70: 0.02741791761 | O70: 9.157584481
A71: 16 28 | B71: 100 | C71: 0.01426431781 | D71: 0.2353612438 | E71: 0.3851365808 | F71: 1.141145425 | G71: 7.610013551 | H71: 37.95734969 | I71: 41.83011197 | J71: 10.14192996 | K71: 0.6418943014 | L71: 0.02852863562 | M71: 0 | N71: 0.01426431781 | O71: 9.385921118
A72: 17 29 | B72: 100 | C72: 0.03617683236 | D72: 0.1953548947 | E72: 0.4630634542 | F72: 1.316836698 | G72: 7.423486 | H72: 38.20273497 | I72: 41.24158889 | J72: 10.25974966 | K72: 0.8465378771 | L72: 0.007235366471 | M72: 0 | N72: 0.007235366471 | O72: 9.434917879
A73: 18 30 | B73: =SUM(C73:N73) -> 100 | C73: =C38/$B38*100 -> 0.05283816425 | D73: 0.2038043478 | E73: 0.3925120773 | F73: 1.147342995 | G73: 7.125603865 | H73: 37.72644928 | I73: 42.07427536 | J73: 10.43176329 | K73: 0.8001207729 | L73: 0.01509661836 | M73: 0.007548309179 | N73: 0.02264492754 | O73: 8.922101449

Sheet 19 体重・性別，区別出生数・百分率
A1: 19 出生時の体重・性別にみた区別出生数及び百分率
K2: ='3 月・性別，区別出生数・出生率'!$O$2 -> 平成30年
A3: 区・性 | C3: 総数 | D3: 2.5kｇ未満 | E3: 2.5㎏以上 3.0㎏未満 | F3: 3.0～3.5㎏ | G3: 3.5～4.0㎏ | H3: 4.0～4.5㎏ | I3: 4.5～5.0㎏ | J3: 5.0㎏以上 | K3: 不詳
C4: 出生数
A5: 総数 | C5: =SUM(D5:K5) -> 13248 | D5: ='20 体重・性別,区別低体重児出生数，百分率，割合'!C5 -> 1182 | E5: =SUM(E8,E11,E14,E17,E20,E23,E26,E29,E32,E35) -> 4998 | F5: 5574 | G5: 1382 | H5: 106 | I5: 2 | J5: 1 | K5: 3
B6: 男 | C6: =SUM(D6:K6) -> 6744 | D6: ='20 体重・性別,区別低体重児出生数，百分率，割合'!C6 -> 530 | E6: =SUM(E9,E12,E15,E18,E21,E24,E27,E30,E33,E36) -> 2318 | F6: 2992 | G6: 833 | H6: =SUM(H9,H12,H15,H18,H21,H24,H27,H30,H33,H36) -> 67 | I6: 1 | J6: 1 | K6: 2
B7: 女 | C7: 6504 | D7: ='20 体重・性別,区別低体重児出生数，百分率，割合'!C7 -> 652 | E7: 2680 | F7: 2582 | G7: 549 | H7: 39 | I7: 1 | J7: 0 | K7: 1
A8: 中央 | C8: 1744 | D8: ='20 体重・性別,区別低体重児出生数，百分率，割合'!C8 -> 170 | E8: =SUM(E9:E10) -> 643 | F8: =SUM(F9:F10) -> 750 | G8: 168 | H8: 12 | I8: 0 | J8: 0 | K8: 1
B9: 男 | C9: 918 | D9: ='20 体重・性別,区別低体重児出生数，百分率，割合'!C9 -> 83 | E9: 300 | F9: 421 | G9: 107 | H9: 6 | I9: 0 | J9: 0 | K9: 1
B10: 女 | C10: 826 | D10: ='20 体重・性別,区別低体重児出生数，百分率，割合'!C10 -> 87 | E10: 343 | F10: 329 | G10: 61 | H10: 6 | I10: 0 | J10: 0 | K10: 0
A11: 北 | C11: 1847 | D11: ='20 体重・性別,区別低体重児出生数，百分率，割合'!C11 -> 163 | E11: =SUM(E12:E13) -> 653 | F11: =SUM(F12:F13) -> 821 | G11: 193 | H11: 14 | I11: 1 | J11: 1 | K11: 1
B12: 男 | C12: 922 | D12: ='20 体重・性別,区別低体重児出生数，百分率，割合'!C12 -> 76 | E12: 301 | F12: 426 | G12: 109 | H12: 8 | I12: 0 | J12: 1 | K12: 1
B13: 女 | C13: 925 | D13: ='20 体重・性別,区別低体重児出生数，百分率，割合'!C13 -> 87 | E13: 352 | F13: 395 | G13: 84 | H13: 6 | I13: 1 | J13: 0 | K13: 0
A14: 東 | C14: 1978 | D14: ='20 体重・性別,区別低体重児出生数，百分率，割合'!C14 -> 163 | E14: =SUM(E15:E16) -> 743 | F14: =SUM(F15:F16) -> 814 | G14: 231 | H14: 26 | I14: 0 | J14: 0 | K14: 1
B15: 男 | C15: 995 | D15: ='20 体重・性別,区別低体重児出生数，百分率，割合'!C15 -> 70 | E15: 351 | F15: 433 | G15: 128 | H15: 13 | I15: 0 | J15: 0 | K15: 0
B16: 女 | C16: 983 | D16: ='20 体重・性別,区別低体重児出生数，百分率，割合'!C16 -> 93 | E16: 392 | F16: 381 | G16: 103 | H16: 13 | I16: 0 | J16: 0 | K16: 1
A17: 白石 | C17: 1711 | D17: ='20 体重・性別,区別低体重児出生数，百分率，割合'!C17 -> 163 | E17: =SUM(E18:E19) -> 660 | F17: =SUM(F18:F19) -> 705 | G17: 169 | H17: 13 | I17: 1 | J17: 0 | K17: 0
B18: 男 | C18: 882 | D18: ='20 体重・性別,区別低体重児出生数，百分率，割合'!C18 -> 75 | E18: 297 | F18: 389 | G18: 111 | H18: 9 | I18: 1 | J18: 0 | K18: 0
B19: 女 | C19: 829 | D19: ='20 体重・性別,区別低体重児出生数，百分率，割合'!C19 -> 88 | E19: 363 | F19: 316 | G19: 58 | H19: 4 | I19: 0 | J19: 0 | K19: 0
A20: 厚別 | C20: 661 | D20: ='20 体重・性別,区別低体重児出生数，百分率，割合'!C20 -> 60 | E20: =SUM(E21:E22) -> 255 | F20: =SUM(F21:F22) -> 265 | G20: 74 | H20: 7 | I20: 0 | J20: 0 | K20: 0
B21: 男 | C21: 360 | D21: ='20 体重・性別,区別低体重児出生数，百分率，割合'!C21 -> 31 | E21: 137 | F21: 145 | G21: 43 | H21: 4 | I21: 0 | J21: 0 | K21: 0
B22: 女 | C22: 301 | D22: ='20 体重・性別,区別低体重児出生数，百分率，割合'!C22 -> 29 | E22: 118 | F22: 120 | G22: 31 | H22: 3 | I22: 0 | J22: 0 | K22: 0
A23: 豊平 | C23: 1682 | D23: ='20 体重・性別,区別低体重児出生数，百分率，割合'!C23 -> 130 | E23: =SUM(E24:E25) -> 653 | F23: =SUM(F24:F25) -> 724 | G23: 161 | H23: 14 | I23: 0 | J23: 0 | K23: 0
B24: 男 | C24: 855 | D24: ='20 体重・性別,区別低体重児出生数，百分率，割合'!C24 -> 49 | E24: 303 | F24: 386 | G24: 105 | H24: 12 | I24: 0 | J24: 0 | K24: 0
B25: 女 | C25: 827 | D25: ='20 体重・性別,区別低体重児出生数，百分率，割合'!C25 -> 81 | E25: 350 | F25: 338 | G25: 56 | H25: 2 | I25: 0 | J25: 0 | K25: 0
A26: 清田 | C26: 644 | D26: ='20 体重・性別,区別低体重児出生数，百分率，割合'!C26 -> 56 | E26: =SUM(E27:E28) -> 230 | F26: =SUM(F27:F28) -> 277 | G26: 79 | H26: 2 | I26: 0 | J26: 0 | K26: 0
B27: 男 | C27: 319 | D27: ='20 体重・性別,区別低体重児出生数，百分率，割合'!C27 -> 22 | E27: 102 | F27: 143 | G27: 51 | H27: 1 | I27: 0 | J27: 0 | K27: 0
B28: 女 | C28: 325 | D28: ='20 体重・性別,区別低体重児出生数，百分率，割合'!C28 -> 34 | E28: 128 | F28: 134 | G28: 28 | H28: 1 | I28: 0 | J28: 0 | K28: 0
A29: 南 | C29: 642 | D29: ='20 体重・性別,区別低体重児出生数，百分率，割合'!C29 -> 57 | E29: =SUM(E30:E31) -> 225 | F29: =SUM(F30:F31) -> 283 | G29: 73 | H29: 4 | I29: 0 | J29: 0 | K29: 0
B30: 男 | C30: 326 | D30: ='20 体重・性別,区別低体重児出生数，百分率，割合'!C30 -> 24 | E30: 103 | F30: 154 | G30: 42 | H30: 3 | I30: 0 | J30: 0 | K30: 0
B31: 女 | C31: 316 | D31: ='20 体重・性別,区別低体重児出生数，百分率，割合'!C31 -> 33 | E31: 122 | F31: 129 | G31: 31 | H31: 1 | I31: 0 | J31: 0 | K31: 0
A32: 西 | C32: 1530 | D32: ='20 体重・性別,区別低体重児出生数，百分率，割合'!C32 -> 145 | E32: =SUM(E33:E34) -> 598 | F32: =SUM(F33:F34) -> 616 | G32: 164 | H32: 7 | I32: 0 | J32: 0 | K32: 0
B33: 男 | C33: 772 | D33: ='20 体重・性別,区別低体重児出生数，百分率，割合'!C33 -> 70 | E33: 266 | F33: 328 | G33: 101 | H33: 7 | I33: 0 | J33: 0 | K33: 0
B34: 女 | C34: 758 | D34: ='20 体重・性別,区別低体重児出生数，百分率，割合'!C34 -> 75 | E34: 332 | F34: 288 | G34: 63 | H34: 0 | I34: 0 | J34: 0 | K34: 0
A35: 手稲 | C35: 809 | D35: ='20 体重・性別,区別低体重児出生数，百分率，割合'!C35 -> 75 | E35: =SUM(E36:E37) -> 338 | F35: =SUM(F36:F37) -> 319 | G35: 70 | H35: 7 | I35: 0 | J35: 0 | K35: 0
B36: 男 | C36: 395 | D36: ='20 体重・性別,区別低体重児出生数，百分率，割合'!C36 -> 30 | E36: 158 | F36: 167 | G36: 36 | H36: 4 | I36: 0 | J36: 0 | K36: 0
B37: 女 | C37: 414 | D37: ='20 体重・性別,区別低体重児出生数，百分率，割合'!C37 -> 45 | E37: 180 | F37: 152 | G37: 34 | H37: 3 | I37: 0 | J37: 0 | K37: 0
C38: 百分率
A39: 総数 | C39: =SUM(D39:K39) -> 100 | D39: =D5/$C5*100 -> 8.922101449 | E39: =E5/$C5*100 -> 37.72644928 | F39: 42.07427536 | G39: 10.43176329 | H39: 0.8001207729 | I39: 0.01509661836 | J39: 0.007548309179 | K39: =K5/$C5*100 -> 0.02264492754
A40: 中央 | C40: =SUM(D40:K40) -> 100 | D40: =D8/$C8*100 -> 9.747706422 | E40: =E8/$C8*100 -> 36.86926606 | F40: 43.00458716 | G40: 9.633027523 | H40: 0.6880733945 | I40: 0 | J40: 0 | K40: 0.05733944954
A41: 北 | C41: =SUM(D41:K41) -> 100 | D41: =D11/$C11*100 -> 8.825121819 | E41: =E11/$C11*100 -> 35.35462913 | F41: 44.45046021 | G41: 10.44937737 | H41: 0.7579859231 | I41: 0.05414185165 | J41: 0.05414185165 | K41: 0.05414185165
A42: 東 | C42: 100 | D42: =D14/$C14*100 -> 8.240647118 | E42: =E14/$C14*100 -> 37.56319515 | F42: 41.15267947 | G42: 11.67846309 | H42: 1.31445905 | I42: 0 | J42: 0 | K42: 0.05055611729
A43: 白石 | C43: 100 | D43: =D17/$C17*100 -> 9.526592636 | E43: =E17/$C17*100 -> 38.57393337 | F43: 41.20397428 | G43: 9.877264757 | H43: 0.7597895967 | I43: 0.05844535359 | J43: 0 | K43: 0
A44: 厚別 | C44: 100 | D44: =D20/$C20*100 -> 9.077155825 | E44: =E20/$C20*100 -> 38.57791225 | F44: 40.09077156 | G44: =G20/$C20*100 -> 11.19515885 | H44: 1.059001513 | I44: 0 | J44: 0 | K44: 0
A45: 豊平 | C45: 100 | D45: =D23/$C23*100 -> 7.728894174 | E45: =E23/$C23*100 -> 38.82282996 | F45: 43.04399524 | G45: 9.571938169 | H45: 0.8323424495 | I45: 0 | J45: 0 | K45: 0
A46: 清田 | C46: 100 | D46: =D26/$C26*100 -> 8.695652174 | E46: =E26/$C26*100 -> 35.71428571 | F46: 43.01242236 | G46: 12.26708075 | H46: 0.3105590062 | I46: 0 | J46: 0 | K46: 0
A47: 南 | C47: 100 | D47: =D29/$C29*100 -> 8.878504673 | E47: =E29/$C29*100 -> 35.04672897 | F47: 44.08099688 | G47: 11.37071651 | H47: 0.6230529595 | I47: 0 | J47: 0 | K47: 0
A48: 西 | C48: 100 | D48: =D32/$C32*100 -> 9.477124183 | E48: =E32/$C32*100 -> 39.08496732 | F48: 40.26143791 | G48: 10.71895425 | H48: 0.4575163399 | I48: 0 | J48: 0 | K48: 0
A49: 手稲 | C49: 100 | D49: =D35/$C35*100 -> 9.270704574 | E49: =E35/$C35*100 -> 41.77997528 | F49: 39.43139679 | G49: 8.652657602 | H49: 0.8652657602 | I49: 0 | J49: 0 | K49: 0

Sheet 20 体重・性別,区別低体重児出生数，百分率，割合
A1: 20 出生時の体重・性別にみた区別低体重児出生数及び割合
H2: ='3 月・性別，区別出生数・出生率'!$O$2 -> 平成30年
A3: 区・性 | C3: 総数 | D3: 0.5kｇ未満 | E3: 0.5㎏以上 1.0㎏未満 | F3: 1.0～1.5㎏ | G3: 1.5～2.0㎏ | H3: 2.0～2.5㎏
C4: 出生数
A5: 総数 | C5: =SUM(D5:H5) -> 1182 | D5: =SUM(D8,D11,D14,D17,D20,D23,D26,D29,D32,D35) -> 7 | E5: 27 | F5: 52 | G5: 152 | H5: 944
B6: 男 | C6: =SUM(D6:H6) -> 530 | D6: 3 | E6: 15 | F6: 23 | G6: 84 | H6: 405
B7: 女 | C7: 652 | D7: 4 | E7: 12 | F7: 29 | G7: 68 | H7: 539
A8: 中央 | C8: 170 | D8: =SUM(D9:D10) -> 1 | E8: =SUM(E9:E10) -> 2 | F8: =SUM(F9:F10) -> 4 | G8: =SUM(G9:G10) -> 20 | H8: =SUM(H9:H10) -> 143
B9: 男 | C9: 83 | D9: 0 | E9: 2 | F9: 2 | G9: 12 | H9: 67
B10: 女 | C10: 87 | D10: 1 | E10: 0 | F10: 2 | G10: 8 | H10: 76
A11: 北 | C11: 163 | D11: =SUM(D12:D13) -> 0 | E11: =SUM(E12:E13) -> 3 | F11: =SUM(F12:F13) -> 9 | G11: =SUM(G12:G13) -> 27 | H11: =SUM(H12:H13) -> 124
B12: 男 | C12: 76 | D12: 0 | E12: 2 | F12: 2 | G12: 18 | H12: 54
B13: 女 | C13: 87 | D13: 0 | E13: 1 | F13: 7 | G13: 9 | H13: 70
A14: 東 | C14: 163 | D14: =SUM(D15:D16) -> 2 | E14: =SUM(E15:E16) -> 5 | F14: =SUM(F15:F16) -> 3 | G14: =SUM(G15:G16) -> 15 | H14: =SUM(H15:H16) -> 138
B15: 男 | C15: 70 | D15: 1 | E15: 3 | F15: 1 | G15: 7 | H15: 58
B16: 女 | C16: 93 | D16: 1 | E16: 2 | F16: 2 | G16: 8 | H16: 80
A17: 白石 | C17: 163 | D17: =SUM(D18:D19) -> 0 | E17: =SUM(E18:E19) -> 6 | F17: =SUM(F18:F19) -> 11 | G17: =SUM(G18:G19) -> 20 | H17: =SUM(H18:H19) -> 126
B18: 男 | C18: 75 | D18: 0 | E18: 2 | F18: 6 | G18: 8 | H18: 59
B19: 女 | C19: 88 | D19: 0 | E19: 4 | F19: 5 | G19: 12 | H19: 67
A20: 厚別 | C20: 60 | D20: =SUM(D21:D22) -> 1 | E20: =SUM(E21:E22) -> 2 | F20: =SUM(F21:F22) -> 2 | G20: =SUM(G21:G22) -> 10 | H20: =SUM(H21:H22) -> 45
B21: 男 | C21: 31 | D21: 1 | E21: 1 | F21: 2 | G21: 6 | H21: 21
B22: 女 | C22: 29 | D22: 0 | E22: 1 | F22: 0 | G22: 4 | H22: 24
A23: 豊平 | C23: 130 | D23: =SUM(D24:D25) -> 0 | E23: =SUM(E24:E25) -> 1 | F23: =SUM(F24:F25) -> 5 | G23: =SUM(G24:G25) -> 15 | H23: =SUM(H24:H25) -> 109
B24: 男 | C24: 49 | D24: 0 | E24: 0 | F24: 2 | G24: 9 | H24: 38
B25: 女 | C25: 81 | D25: 0 | E25: 1 | F25: 3 | G25: 6 | H25: 71
A26: 清田 | C26: 56 | D26: =SUM(D27:D28) -> 2 | E26: =SUM(E27:E28) -> 1 | F26: =SUM(F27:F28) -> 4 | G26: =SUM(G27:G28) -> 6 | H26: =SUM(H27:H28) -> 43
B27: 男 | C27: 22 | D27: 0 | E27: 0 | F27: 1 | G27: 4 | H27: 17
B28: 女 | C28: 34 | D28: 2 | E28: 1 | F28: 3 | G28: 2 | H28: 26
A29: 南 | C29: 57 | D29: =SUM(D30:D31) -> 0 | E29: =SUM(E30:E31) -> 3 | F29: =SUM(F30:F31) -> 4 | G29: =SUM(G30:G31) -> 8 | H29: =SUM(H30:H31) -> 42
B30: 男 | C30: 24 | D30: 0 | E30: 1 | F30: 3 | G30: 3 | H30: 17
B31: 女 | C31: 33 | D31: 0 | E31: 2 | F31: 1 | G31: 5 | H31: 25
A32: 西 | C32: 145 | D32: =SUM(D33:D34) -> 1 | E32: =SUM(E33:E34) -> 2 | F32: =SUM(F33:F34) -> 7 | G32: =SUM(G33:G34) -> 22 | H32: =SUM(H33:H34) -> 113
B33: 男 | C33: 70 | D33: 1 | E33: 2 | F33: 3 | G33: 14 | H33: 50
B34: 女 | C34: 75 | D34: 0 | E34: 0 | F34: 4 | G34: 8 | H34: 63
A35: 手稲 | C35: 75 | D35: =SUM(D36:D37) -> 0 | E35: =SUM(E36:E37) -> 2 | F35: =SUM(F36:F37) -> 3 | G35: =SUM(G36:G37) -> 9 | H35: =SUM(H36:H37) -> 61
B36: 男 | C36: 30 | D36: 0 | E36: 2 | F36: 1 | G36: 3 | H36: 24
B37: 女 | C37: 45 | D37: 0 | E37: 0 | F37: 2 | G37: 6 | H37: 37
C38: 出 生 数 に 対 す る 割 合 (％)
A39: 総数 | C39: =SUM(D39:H39) -> 8.922101449 | D39: =D5/'19 体重・性別，区別出生数・百分率'!$C5*100 -> 0.05283816425 | E39: =E5/'19 体重・性別，区別出生数・百分率'!$C5*100 -> 0.2038043478 | F39: =F5/'19 体重・性別，区別出生数・百分率'!$C5*100 -> 0.3925120773 | G39: =G5/'19 体重・性別，区別出生数・百分率'!$C5*100 -> 1.147342995 | H39: =H5/'19 体重・性別，区別出生数・百分率'!$C5*100 -> 7.125603865
A40: 中央 | C40: =SUM(D40:H40) -> 9.747706422 | D40: =D8/'19 体重・性別，区別出生数・百分率'!$C8*100 -> 0.05733944954 | E40: =E8/'19 体重・性別，区別出生数・百分率'!$C8*100 -> 0.1146788991 | F40: =F8/'19 体重・性別，区別出生数・百分率'!$C8*100 -> 0.2293577982 | G40: =G8/'19 体重・性別，区別出生数・百分率'!$C8*100 -> 1.146788991 | H40: =H8/'19 体重・性別，区別出生数・百分率'!$C8*100 -> 8.199541284
A41: 北 | C41: =SUM(D41:H41) -> 8.825121819 | D41: =D11/'19 体重・性別，区別出生数・百分率'!$C11*100 -> 0 | E41: =E11/'19 体重・性別，区別出生数・百分率'!$C11*100 -> 0.162425555 | F41: =F11/'19 体重・性別，区別出生数・百分率'!$C11*100 -> 0.4872766649 | G41: =G11/'19 体重・性別，区別出生数・百分率'!$C11*100 -> 1.461829995 | H41: =H11/'19 体重・性別，区別出生数・百分率'!$C11*100 -> 6.713589605
A42: 東 | C42: 8.240647118 | D42: =D14/'19 体重・性別，区別出生数・百分率'!$C14*100 -> 0.1011122346 | E42: =E14/'19 体重・性別，区別出生数・百分率'!$C14*100 -> 0.2527805865 | F42: =F14/'19 体重・性別，区別出生数・百分率'!$C14*100 -> 0.1516683519 | G42: =G14/'19 体重・性別，区別出生数・百分率'!$C14*100 -> 0.7583417594 | H42: =H14/'19 体重・性別，区別出生数・百分率'!$C14*100 -> 6.976744186
A43: 白石 | C43: 9.526592636 | D43: =D17/'19 体重・性別，区別出生数・百分率'!$C17*100 -> 0 | E43: =E17/'19 体重・性別，区別出生数・百分率'!$C17*100 -> 0.3506721216 | F43: =F17/'19 体重・性別，区別出生数・百分率'!$C17*100 -> 0.6428988895 | G43: =G17/'19 体重・性別，区別出生数・百分率'!$C17*100 -> 1.168907072 | H43: =H17/'19 体重・性別，区別出生数・百分率'!$C17*100 -> 7.364114553
A44: 厚別 | C44: 9.077155825 | D44: =D20/'19 体重・性別，区別出生数・百分率'!$C20*100 -> 0.1512859304 | E44: =E20/'19 体重・性別，区別出生数・百分率'!$C20*100 -> 0.3025718608 | F44: =F20/'19 体重・性別，区別出生数・百分率'!$C20*100 -> 0.3025718608 | G44: =G20/'19 体重・性別，区別出生数・百分率'!$C20*100 -> 1.512859304 | H44: =H20/'19 体重・性別，区別出生数・百分率'!$C20*100 -> 6.807866868
A45: 豊平 | C45: 7.728894174 | D45: =D23/'19 体重・性別，区別出生数・百分率'!$C23*100 -> 0 | E45: =E23/'19 体重・性別，区別出生数・百分率'!$C23*100 -> 0.0594530321 | F45: =F23/'19 体重・性別，区別出生数・百分率'!$C23*100 -> 0.2972651605 | G45: =G23/'19 体重・性別，区別出生数・百分率'!$C23*100 -> 0.8917954816 | H45: =H23/'19 体重・性別，区別出生数・百分率'!$C23*100 -> 6.480380499
A46: 清田 | C46: 8.695652174 | D46: =D26/'19 体重・性別，区別出生数・百分率'!$C26*100 -> 0.3105590062 | E46: =E26/'19 体重・性別，区別出生数・百分率'!$C26*100 -> 0.1552795031 | F46: =F26/'19 体重・性別，区別出生数・百分率'!$C26*100 -> 0.6211180124 | G46: =G26/'19 体重・性別，区別出生数・百分率'!$C26*100 -> 0.9316770186 | H46: =H26/'19 体重・性別，区別出生数・百分率'!$C26*100 -> 6.677018634
A47: 南 | C47: 8.878504673 | D47: =D29/'19 体重・性別，区別出生数・百分率'!$C29*100 -> 0 | E47: =E29/'19 体重・性別，区別出生数・百分率'!$C29*100 -> 0.4672897196 | F47: =F29/'19 体重・性別，区別出生数・百分率'!$C29*100 -> 0.6230529595 | G47: =G29/'19 体重・性別，区別出生数・百分率'!$C29*100 -> 1.246105919 | H47: =H29/'19 体重・性別，区別出生数・百分率'!$C29*100 -> 6.542056075
A48: 西 | C48: 9.477124183 | D48: =D32/'19 体重・性別，区別出生数・百分率'!$C32*100 -> 0.06535947712 | E48: =E32/'19 体重・性別，区別出生数・百分率'!$C32*100 -> 0.1307189542 | F48: =F32/'19 体重・性別，区別出生数・百分率'!$C32*100 -> 0.4575163399 | G48: =G32/'19 体重・性別，区別出生数・百分率'!$C32*100 -> 1.437908497 | H48: =H32/'19 体重・性別，区別出生数・百分率'!$C32*100 -> 7.385620915
A49: 手稲 | C49: 9.270704574 | D49: =D35/'19 体重・性別，区別出生数・百分率'!$C35*100 -> 0 | E49: =E35/'19 体重・性別，区別出生数・百分率'!$C35*100 -> 0.2472187886 | F49: =F35/'19 体重・性別，区別出生数・百分率'!$C35*100 -> 0.3708281829 | G49: =G35/'19 体重・性別，区別出生数・百分率'!$C35*100 -> 1.112484549 | H49: =H35/'19 体重・性別，区別出生数・百分率'!$C35*100 -> 7.540173053

Sheet 21 出生時の身長別，年次別出生数・百分率・平均身長
A1: 21 出生時の身長別にみた年次別出生数・百分率及び平均身長
A3: 年次 | B3: 総 数 | C3: 40cm 未満 | D3: 40cm | E3: 41cm | F3: 42cm | G3: 43cm | H3: 44cm | I3: 45cm | J3: 46cm | K3: 47cm | L3: 48cm | M3: 49cm | N3: 50cm | O3: 51cm | P3: 52cm | Q3: 53cm | R3: 54cm | S3: 55cm～ | T3: 不詳 | U3: 出 生 時 の 平均身長(cm)
B4: 出生数
A5: 1995 平成 7 年 | B5: =SUM(C5:T5) -> 16227 | C5: 93 | D5: 22 | E5: 37 | F5: 65 | G5: 97 | H5: 170 | I5: 553 | J5: 1046 | K5: 1997 | L5: 2826 | M5: 3202 | N5: 2950 | O5: 1728 | P5: 835 | Q5: 280 | R5: 81 | S5: 63 | T5: 182 | U5: 48.7
A6: 1996 平成 8年 | B6: 16339 | C6: 78 | D6: 30 | E6: 32 | F6: 69 | G6: 107 | H6: 178 | I6: 567 | J6: 983 | K6: 1949 | L6: 2838 | M6: 3209 | N6: 3138 | O6: 1848 | P6: 827 | Q6: 269 | R6: 96 | S6: 41 | T6: 80 | U6: 48.7
A7: 97 9 | B7: 15873 | C7: 82 | D7: 26 | E7: 43 | F7: 67 | G7: 73 | H7: 185 | I7: 491 | J7: 973 | K7: 1799 | L7: 2752 | M7: 3051 | N7: 3139 | O7: 1847 | P7: 872 | Q7: 280 | R7: 89 | S7: 36 | T7: 68 | U7: 48.8
A8: 98 10 | B8: 16165 | C8: 84 | D8: 22 | E8: 41 | F8: 68 | G8: 104 | H8: 215 | I8: 518 | J8: 987 | K8: 1931 | L8: 2754 | M8: 3182 | N8: 3047 | O8: 1856 | P8: 878 | Q8: 290 | R8: 92 | S8: 32 | T8: 64 | U8: 48.7
A9: 99 11 | B9: 15358 | C9: 103 | D9: 36 | E9: 45 | F9: 55 | G9: 125 | H9: 207 | I9: 441 | J9: 935 | K9: 1724 | L9: 2615 | M9: 3110 | N9: 2955 | O9: 1761 | P9: 802 | Q9: 273 | R9: 87 | S9: 36 | T9: 48 | U9: 48.7
A10: 2000 平成12年 | B10: 15332 | C10: 61 | D10: 19 | E10: 44 | F10: 64 | G10: 99 | H10: 180 | I10: 486 | J10: 983 | K10: 1751 | L10: 2626 | M10: 3003 | N10: 2993 | O10: 1816 | P10: 754 | Q10: 281 | R10: 77 | S10: 37 | T10: 58 | U10: 48.76122823
A11: 01 13 | B11: 15312 | C11: 68 | D11: 28 | E11: 44 | F11: 45 | G11: 114 | H11: 200 | I11: 479 | J11: 1022 | K11: 1797 | L11: 2774 | M11: 3046 | N11: 2827 | O11: 1676 | P11: 781 | Q11: 247 | R11: 95 | S11: 29 | T11: 40 | U11: 48.69264013
A12: 02 14 | B12: 15577 | C12: 67 | D12: 29 | E12: 39 | F12: 61 | G12: 103 | H12: 189 | I12: 510 | J12: 962 | K12: 1777 | L12: 2745 | M12: 2992 | N12: 3079 | O12: 1745 | P12: 812 | Q12: 285 | R12: 67 | S12: 32 | T12: 83 | U12: 48.74202917
A13: 03 15 | B13: 14999 | C13: 65 | D13: 27 | E13: 24 | F13: 57 | G13: 91 | H13: 191 | I13: 506 | J13: 974 | K13: 1783 | L13: 2602 | M13: 2969 | N13: 2811 | O13: 1600 | P13: 819 | Q13: 274 | R13: 84 | S13: 25 | T13: 97 | U13: 48.71755469
A14: 04 16 | B14: 14749 | C14: 59 | D14: 19 | E14: 29 | F14: 69 | G14: 99 | H14: 216 | I14: 485 | J14: 953 | K14: 1743 | L14: 2598 | M14: 2883 | N14: 2745 | O14: 1611 | P14: 736 | Q14: 277 | R14: 80 | S14: 27 | T14: 120 | U14: 48.70216693
A15: 2005 平成17年 | B15: 14184 | C15: 67 | D15: 18 | E15: 38 | F15: 50 | G15: 98 | H15: 151 | I15: 467 | J15: 912 | K15: 1647 | L15: 2457 | M15: 2789 | N15: 2754 | O15: 1560 | P15: 724 | Q15: 250 | R15: 74 | S15: 20 | T15: 108 | U15: 48.72691105
A16: 06 18 | B16: 14730 | C16: 77 | D16: 30 | E16: 49 | F16: 67 | G16: 119 | H16: 199 | I16: 464 | J16: 920 | K16: 1677 | L16: 2560 | M16: 2904 | N16: 2785 | O16: 1658 | P16: 737 | Q16: 259 | R16: 76 | S16: 28 | T16: 121 | U16: 48.69525635
A17: 07 19 | B17: 14498 | C17: 61 | D17: 19 | E17: 30 | F17: 59 | G17: 101 | H17: 151 | I17: 470 | J17: 891 | K17: 1574 | L17: 2598 | M17: 2862 | N17: 2800 | O17: 1643 | P17: 756 | Q17: 262 | R17: 82 | S17: 26 | T17: 113 | U17: 48.7694821
A18: 08 20 | B18: 14845 | C18: 68 | D18: 27 | E18: 33 | F18: 65 | G18: 103 | H18: 171 | I18: 498 | J18: 912 | K18: 1687 | L18: 2492 | M18: 2895 | N18: 2828 | O18: 1810 | P18: 790 | Q18: 271 | R18: 89 | S18: 19 | T18: 87 | U18: 48.76527985
A19: 09 21 | B19: 14506 | C19: 61 | D19: 25 | E19: 26 | F19: 52 | G19: 93 | H19: 183 | I19: 448 | J19: 878 | K19: 1572 | L19: 2534 | M19: 2903 | N19: 2834 | O19: 1700 | P19: 729 | Q19: 267 | R19: 80 | S19: 40 | T19: 81 | U19: 48.8
A20: 10 22 | B20: 14739 | C20: 51 | D20: 15 | E20: 36 | F20: 58 | G20: 88 | H20: 217 | I20: 399 | J20: 849 | K20: 1722 | L20: 2539 | M20: 2909 | N20: 2778 | O20: 1797 | P20: 813 | Q20: 277 | R20: 82 | S20: 30 | T20: 79 | U20: 48.81180082
A21: 11 23 | B21: 14491 | C21: 80 | D21: 27 | E21: 26 | F21: 68 | G21: 94 | H21: 172 | I21: 418 | J21: 894 | K21: 1712 | L21: 2346 | M21: 2903 | N21: 2781 | O21: 1774 | P21: 775 | Q21: 236 | R21: 72 | S21: 17 | T21: 96 | U21: 48.7586662
A22: 12 24 | B22: 14487 | C22: 67 | D22: 29 | E22: 36 | F22: 55 | G22: 96 | H22: 194 | I22: 476 | J22: 836 | K22: 1682 | L22: 2406 | M22: 2839 | N22: 2841 | O22: 1725 | P22: 751 | Q22: 266 | R22: 84 | S22: 32 | T22: 72 | U22: 48.77003122
A23: 13 25 | B23: 14591 | C23: 68 | D23: 28 | E23: 49 | F23: 72 | G23: 94 | H23: 207 | I23: 484 | J23: 934 | K23: 1627 | L23: 2453 | M23: 2907 | N23: 2831 | O23: 1649 | P23: 754 | Q23: 280 | R23: 78 | S23: 27 | T23: 49 | U23: 48.72115252
A24: 14 26 | B24: 14568 | C24: 100 | D24: 22 | E24: 47 | F24: 58 | G24: 131 | H24: 200 | I24: 455 | J24: 877 | K24: 1570 | L24: 2339 | M24: 2865 | N24: 2917 | O24: 1761 | P24: 798 | Q24: 269 | R24: 94 | S24: 28 | T24: 37 | U24: 48.75734636
A25: 15 27 | B25: 14589 | C25: 68 | D25: 25 | E25: 26 | F25: 58 | G25: 107 | H25: 178 | I25: 514 | J25: 936 | K25: 1604 | L25: 2364 | M25: 2858 | N25: 2860 | O25: 1808 | P25: 772 | Q25: 259 | R25: 78 | S25: 28 | T25: 46 | U25: 48.77233033
A26: 16 28 | B26: 14021 | C26: 65 | D26: 24 | E26: 37 | F26: 52 | G26: 95 | H26: 160 | I26: 439 | J26: 829 | K26: 1517 | L26: 2245 | M26: 2865 | N26: 2907 | O26: 1658 | P26: 730 | Q26: 244 | R26: 77 | S26: 25 | T26: 52 | U26: 48.80657169
A27: 17 29 | B27: 13821 | C27: 71 | D27: 18 | E27: 37 | F27: 61 | G27: 102 | H27: 190 | I27: 393 | J27: 758 | K27: 1479 | L27: 2196 | M27: 2693 | N27: 2815 | O27: 1739 | P27: 790 | Q27: 299 | R27: 89 | S27: 32 | T27: 59 | U27: 48.86440924
A28: 18 30 | B28: =SUM(C28:T28) -> 13248 | C28: ='[2]■21 出生時の身長別，年次別出生数・百分率・平均身長'!$C$5 -> 67 | D28: ='[2]■21 出生時の身長別，年次別出生数・百分率・平均身長'!$D$5 -> 19 | E28: ='[2]■21 出生時の身長別，年次別出生数・百分率・平均身長'!$E$5 -> 27 | F28: ='[2]■21 出生時の身長別，年次別出生数・百分率・平均身長'!$F$5 -> 52 | G28: ='[2]■21 出生時の身長別，年次別出生数・百分率・平均身長'!$G$5 -> 82 | H28: ='[2]■21 出生時の身長別，年次別出生数・百分率・平均身長'!$H$5 -> 152 | I28: ='[2]■21 出生時の身長別，年次別出生数・百分率・平均身長'!$I$5 -> 379 | J28: ='[2]■21 出生時の身長別，年次別出生数・百分率・平均身長'!$J$5 -> 690 | K28: ='[2]■21 出生時の身長別，年次別出生数・百分率・平均身長'!$K$5 -> 1438 | L28: ='[2]■21 出生時の身長別，年次別出生数・百分率・平均身長'!$L$5 -> 2165 | M28: ='[2]■21 出生時の身長別，年次別出生数・百分率・平均身長'!$M$5 -> 2584 | N28: ='[2]■21 出生時の身長別，年次別出生数・百分率・平均身長'!$N$5 -> 2653 | O28: ='[2]■21 出生時の身長別，年次別出生数・百分率・平均身長'!$O$5 -> 1679 | P28: ='[2]■21 出生時の身長別，年次別出生数・百分率・平均身長'!$P$5 -> 809 | Q28: ='[2]■21 出生時の身長別，年次別出生数・百分率・平均身長'!$Q$5 -> 271 | R28: ='[2]■21 出生時の身長別，年次別出生数・百分率・平均身長'!$R$5 -> 93 | S28: ='[2]■21 出生時の身長別，年次別出生数・百分率・平均身長'!$S$5 -> 35 | T28: ='[2]■21 出生時の身長別，年次別出生数・百分率・平均身長'!$T$5 -> 53 | U28: ='[2]■21 出生時の身長別，年次別出生数・百分率・平均身長'!$U$5 -> 48.89996211
B29: 百分率
A30: 1995 平成7 年 | B30: =SUM(C30:T30) -> 100 | C30: =C5/$B5*100 -> 0.5731188759 | D30: 0.1355765083 | E30: 0.2280150367 | F30: 0.4005669563 | G30: 0.5977691502 | H30: 1.047636655 | I30: 3.407900413 | J30: 6.446046712 | K30: 12.30664941 | L30: 17.41541875 | M30: 19.73254452 | N30: 18.17957725 | O30: 10.64891847 | P30: 5.145744746 | Q30: 1.725519196 | R30: 0.4991680532 | S30: 0.3882418192 | T30: 1.121587478
A31: 1996 平成 8年 | B31: 100 | C31: 0.4773853969 | D31: 0.183609768 | E31: 0.1958504192 | F31: 0.4223024665 | G31: 0.6548748393 | H31: 1.089417957 | I31: 3.470224616 | J31: 6.016280066 | K31: 11.9285146 | L31: 17.36948406 | M31: 19.64012485 | N31: 19.20558174 | O31: 11.31036171 | P31: 5.061509272 | Q31: 1.646367587 | R31: 0.5875512577 | S31: 0.2509333497 | T31: 0.4896260481
A32: 97 9 | B32: 100 | C32: 0.5166005166 | D32: 0.1638001638 | E32: 0.2709002709 | F32: 0.4221004221 | G32: 0.4599004599 | H32: 1.165501166 | I32: 3.093303093 | J32: 6.12990613 | K32: 11.33371133 | L32: 17.33761734 | M32: 19.22131922 | N32: 19.77571978 | O32: 11.63611164 | P32: 5.493605494 | Q32: 1.764001764 | R32: 0.5607005607 | S32: 0.2268002268 | T32: 0.4284004284
A33: 98 10 | B33: 100 | C33: 0.5196412001 | D33: 0.1360965048 | E33: 0.2536343953 | F33: 0.4206619239 | G33: 0.6433652954 | H33: 1.330034024 | I33: 3.204454067 | J33: 6.105784101 | K33: 11.9455614 | L33: 17.03680792 | M33: 19.68450356 | N33: 18.84936591 | O33: 11.48159604 | P33: 5.431487782 | Q33: 1.793999381 | R33: 0.5691308382 | S33: 0.1979585524 | T33: 0.3959171049
A34: 99 11 | B34: 100 | C34: 0.6706602422 | D34: 0.2344055216 | E34: 0.2930069019 | F34: 0.3581195468 | G34: 0.8139080609 | H34: 1.347831749 | I34: 2.871467639 | J34: 6.088032296 | K34: 11.22541998 | L34: 17.02695663 | M34: 20.25003256 | N34: 19.24078656 | O34: 11.46633676 | P34: 5.222034119 | Q34: 1.777575205 | R34: 0.5664800104 | S34: 0.2344055216 | T34: 0.3125406954
A35: 2000 平成12年 | B35: 100 | C35: 0.3978606835 | D35: 0.1239238195 | E35: 0.2869814767 | F35: 0.4174276024 | G35: 0.6457083225 | H35: 1.174015132 | I35: 3.169840856 | J35: 6.411427081 | K35: 11.42055831 | L35: 17.12757631 | M35: 19.58648578 | N35: 19.52126272 | O35: 11.84450822 | P35: 4.917818941 | Q35: 1.832768067 | R35: 0.5022175841 | S35: 0.2413253326 | T35: 0.3782937647
A36: 01 13 | B36: 100 | C36: 0.4440961338 | D36: 0.1828631139 | E36: 0.2873563218 | F36: 0.2938871473 | G36: 0.7445141066 | H36: 1.306165099 | I36: 3.128265413 | J36: 6.674503657 | K36: 11.73589342 | L36: 18.11650993 | M36: 19.89289446 | N36: 18.46264368 | O36: 10.94566353 | P36: 5.100574713 | Q36: 1.613113898 | R36: 0.6204284222 | S36: 0.1893939394 | T36: 0.2612330199
A37: 02 14 | B37: 100 | C37: 0.4301213327 | D37: 0.1861719201 | E37: 0.250369134 | F37: 0.3916030044 | G37: 0.6612313026 | H37: 1.213327342 | I37: 3.274057906 | J37: 6.175771971 | K37: 11.4078449 | L37: 17.6221352 | M37: 19.20780638 | N37: 19.76632214 | O37: 11.20241382 | P37: 5.212813764 | Q37: 1.829620594 | R37: 0.4301213327 | S37: 0.2054310843 | T37: 0.5328368749
A38: 03 15 | B38: 100 | C38: 0.4333622241 | D38: 0.1800120008 | E38: 0.1600106674 | F38: 0.380025335 | G38: 0.6067071138 | H38: 1.273418228 | I38: 3.373558237 | J38: 6.493766251 | K38: 11.88745916 | L38: 17.34782319 | M38: 19.79465298 | N38: 18.74124942 | O38: 10.66737783 | P38: 5.460364024 | Q38: 1.826788453 | R38: 0.5600373358 | S38: 0.1666777785 | T38: 0.6467097807
A39: 04 16 | B39: 100 | C39: 0.4000271205 | D39: 0.128822293 | E39: 0.1966234999 | F39: 0.4678283273 | G39: 0.6712319479 | H39: 1.464506068 | I39: 3.288358533 | J39: 6.461455014 | K39: 11.81775036 | L39: 17.61475354 | M39: 19.54708794 | N39: 18.61143128 | O39: 10.92277443 | P39: 4.990168825 | Q39: 1.87809343 | R39: 0.5424096549 | S39: 0.1830632585 | T39: 0.8136144823
A40: 2005 平成17年 | B40: 100 | C40: 0.4723632262 | D40: 0.1269035533 | E40: 0.2679075014 | F40: 0.3525098703 | G40: 0.6909193457 | H40: 1.064579808 | I40: 3.292442188 | J40: 6.429780034 | K40: 11.61167513 | L40: 17.32233503 | M40: 19.66300056 | N40: 19.41624365 | O40: 10.99830795 | P40: 5.104342922 | Q40: 1.762549351 | R40: 0.521714608 | S40: 0.1410039481 | T40: 0.7614213198
A41: 06 18 | B41: 100 | C41: 0.522742702 | D41: 0.2036659878 | E41: 0.3326544467 | F41: 0.4548540394 | G41: 0.8078750849 | H41: 1.350984386 | I41: 3.150033944 | J41: 6.245756959 | K41: 11.38492872 | L41: 17.37949762 | M41: 19.71486762 | N41: 18.90699253 | O41: 11.25594026 | P41: 5.003394433 | Q41: 1.758316361 | R41: 0.5159538357 | S41: 0.1900882553 | T41: 0.8214528174
A42: 07 19 | B42: 100 | C42: 0.4207476893 | D42: 0.131052559 | E42: 0.2069250931 | F42: 0.4069526831 | G42: 0.6966478135 | H42: 1.041522969 | I42: 3.241826459 | J42: 6.145675266 | K42: 10.85666989 | L42: 17.91971306 | M42: 19.74065388 | N42: 19.31300869 | O42: 11.3325976 | P42: 5.214512347 | Q42: 1.807145813 | R42: 0.5655952545 | S42: 0.1793350807 | T42: 0.7794178507
A43: 08 20 | B43: 100 | C43: 0.4580666891 | D43: 0.1818794207 | E43: 0.2222970697 | F43: 0.4378578646 | G43: 0.6938363085 | H43: 1.151902998 | I43: 3.35466487 | J43: 6.143482654 | K43: 11.36409566 | L43: 16.7867969 | M43: 19.50151566 | N43: 19.05018525 | O43: 12.19265746 | P43: 5.321657124 | Q43: 1.825530482 | R43: 0.5995284608 | S43: 0.127989222 | T43: 0.5860559111
A44: 09 21 | B44: 100 | C44: 0.4205156487 | D44: 0.172342479 | E44: 0.1792361781 | F44: 0.3584723563 | G44: 0.6411140218 | H44: 1.261546946 | I44: 3.088377223 | J44: 6.052667862 | K44: 10.83689508 | L44: 17.46863367 | M44: 20.01240866 | N44: 19.53674342 | O44: 11.71928857 | P44: 5.025506687 | Q44: 1.840617675 | R44: 0.5514959327 | S44: 0.2757479664 | T44: 0.5583896319
A45: 10 22 | B45: 100 | C45: 0.3460207612 | D45: 0.1017708121 | E45: 0.2442499491 | F45: 0.3935138069 | G45: 0.5970554312 | H45: 1.472284415 | I45: 2.707103603 | J45: 5.760227967 | K45: 11.68328923 | L45: 17.22640613 | M45: 19.73675283 | N45: 18.84795441 | O45: 12.19214329 | P45: 5.515978018 | Q45: 1.879367664 | R45: 0.5563471063 | S45: 0.2035416243 | T45: 0.5359929439
A46: 11 23 | B46: 100 | C46: 0.5520668001 | D46: 0.186322545 | E46: 0.17942171 | F46: 0.4692567801 | G46: 0.6486784901 | H46: 1.18694362 | I46: 2.88454903 | J46: 6.169346491 | K46: 11.81422952 | L46: 16.18935891 | M46: 20.03312401 | N46: 19.19122214 | O46: 12.24208129 | P46: 5.348147126 | Q46: 1.62859706 | R46: 0.4968601201 | S46: 0.117314195 | T46: 0.6624801601
A47: 12 24 | B47: 100 | C47: 0.462483606 | D47: 0.2001794713 | E47: 0.248498654 | F47: 0.3796507213 | G47: 0.6626630772 | H47: 1.339131635 | I47: 3.285704425 | J47: 5.770690964 | K47: 11.61040933 | L47: 16.60799337 | M47: 19.59687996 | N47: 19.61068544 | O47: 11.90722717 | P47: 5.183958031 | Q47: 1.836128943 | R47: 0.5798301926 | S47: 0.2208876924 | T47: 0.4969973079
A48: 13 25 | B48: 100 | C48: 0.46604071 | D48: 0.1918991159 | E48: 0.3358234528 | F48: 0.4934548694 | G48: 0.6442327462 | H48: 1.41868275 | I48: 3.317113289 | J48: 6.401206223 | K48: 11.15070934 | L48: 16.81173326 | M48: 19.92324035 | N48: 19.40237132 | O48: 11.30148722 | P48: 5.167569049 | Q48: 1.918991159 | R48: 0.5345761086 | S48: 0.185045576 | T48: 0.3358234528
A49: 14 26 | B49: 100 | C49: 0.6864360242 | D49: 0.1510159253 | E49: 0.3226249314 | F49: 0.398132894 | G49: 0.8992311917 | H49: 1.372872048 | I49: 3.12328391 | J49: 6.020043932 | K49: 10.77704558 | L49: 16.05573861 | M49: 19.66639209 | N49: 20.02333882 | O49: 12.08813839 | P49: 5.477759473 | Q49: 1.846512905 | R49: 0.6452498627 | S49: 0.1922020868 | T49: 0.2539813289
A50: 15 27 | B50: 100 | C50: 0.4661045994 | D50: 0.1713619851 | E50: 0.1782164645 | F50: 0.3975598053 | G50: 0.733429296 | H50: 1.220097334 | I50: 3.523202413 | J50: 6.415792721 | K50: 10.99458496 | L50: 16.20398931 | M50: 19.59010213 | N50: 19.60381109 | O50: 12.39289876 | P50: 5.291658099 | Q50: 1.775310165 | R50: 0.5346493934 | S50: 0.1919254233 | T50: 0.3153060525
A51: 16 28 | B51: 100 | C51: 0.4635903288 | D51: 0.1711718137 | E51: 0.2638898795 | F51: 0.370872263 | G51: 0.6775550959 | H51: 1.141145425 | I51: 3.131017759 | J51: 5.912559732 | K51: 10.81948506 | L51: 16.01169674 | M51: 20.43363526 | N51: 20.73318594 | O51: 11.82511946 | P51: 5.206476 | Q51: 1.740246773 | R51: 0.5491762356 | S51: 0.1783039726 | T51: 0.370872263
A52: 17 29 | B52: 100 | C52: 0.5137110195 | D52: 0.1302365965 | E52: 0.2677085594 | F52: 0.4413573548 | G52: 0.7380073801 | H52: 1.37471963 | I52: 2.843499023 | J52: 5.484407785 | K52: 10.70110701 | L52: 15.88886477 | M52: 19.48484191 | N52: 20.36755662 | O52: 12.58230229 | P52: 5.715939512 | Q52: 2.163374575 | R52: 0.6439476159 | S52: 0.2315317271 | T52: 0.4268866218
A53: 18 30 | B53: =SUM(C53:T53) -> 100 | C53: =C28/$B28*100 -> 0.505736715 | D53: 0.1434178744 | E53: 0.2038043478 | F53: 0.3925120773 | G53: 0.6189613527 | H53: 1.147342995 | I53: 2.860809179 | J53: 5.208333333 | K53: 10.8544686 | L53: 16.34208937 | M53: 19.50483092 | N53: 20.02566425 | O53: 12.67361111 | P53: 6.106582126 | Q53: 2.045591787 | R53: 0.7019927536 | S53: 0.2641908213 | T53: 0.4000603865

Sheet 22 単産-複産別，年次別出生数
A1: 22 単産-複産（複産の種類）別にみた年次別出生数
A3: 年次 | B3: 総 数 | C3: 単 産 | D3: 複 産
D4: 総 数 | E4: 双 子 | F4: 三つ児 | G4: 四つ児 | H4: 五つ児以上
A5: 1995 平成 7 年 | B5: =SUM(C5:D5) -> 16227 | C5: 16003 | D5: =SUM(E5:H5) -> 224 | E5: 218 | F5: 6 | G5: 0 | H5: 0
A6: 1996 平成 8年 | B6: 16339 | C6: 16076 | D6: 263 | E6: 251 | F6: 12 | G6: 0 | H6: 0
A7: 97 9 | B7: 15873 | C7: 15596 | D7: 277 | E7: 271 | F7: 6 | G7: 0 | H7: 0
A8: 98 10 | B8: 16165 | C8: 15896 | D8: 269 | E8: 266 | F8: 3 | G8: 0 | H8: 0
A9: 99 11 | B9: 15358 | C9: 15135 | D9: 223 | E9: 211 | F9: 12 | G9: 0 | H9: 0
A10: 2000 平成12年 | B10: 15332 | C10: 15102 | D10: 230 | E10: 222 | F10: 8 | G10: 0 | H10: 0
A11: 01 13 | B11: 15312 | C11: 15067 | D11: 245 | E11: 233 | F11: 12 | G11: 0 | H11: 0
A12: 02 14 | B12: 15577 | C12: 15306 | D12: 271 | E12: 265 | F12: 6 | G12: 0 | H12: 0
A13: 03 15 | B13: 14999 | C13: 14755 | D13: 244 | E13: 238 | F13: 6 | G13: 0 | H13: 0
A14: 04 16 | B14: 14749 | C14: 14468 | D14: 281 | E14: 259 | F14: 22 | G14: 0 | H14: 0
A15: 2005 平成17年 | B15: 14184 | C15: 13859 | D15: 325 | E15: 307 | F15: 18 | G15: 0 | H15: 0
A16: 06 18 | B16: 14730 | C16: 14379 | D16: 351 | E16: 345 | F16: 6 | G16: 0 | H16: 0
A17: 07 19 | B17: 14498 | C17: 14219 | D17: 279 | E17: 273 | F17: 6 | G17: 0 | H17: 0
A18: 08 20 | B18: 14845 | C18: 14582 | D18: 263 | E18: 263 | F18: 0 | G18: 0 | H18: 0
A19: 09 21 | B19: 14506 | C19: 14248 | D19: 258 | E19: 255 | F19: 3 | G19: 0 | H19: 0
A20: 10 22 | B20: 14739 | C20: 14485 | D20: 254 | E20: 254 | F20: 0 | G20: 0 | H20: 0
A21: 11 23 | B21: 14491 | C21: 14202 | D21: 289 | E21: 280 | F21: 9 | G21: 0 | H21: 0
A22: 12 24 | B22: 14487 | C22: 14188 | D22: 299 | E22: 292 | F22: 7 | G22: 0 | H22: 0
A23: 13 25 | B23: 14591 | C23: 14290 | D23: 301 | E23: 301 | F23: 0 | G23: 0 | H23: 0
A24: 14 26 | B24: 14568 | C24: 14254 | D24: 314 | E24: 308 | F24: 6 | G24: 0 | H24: 0
A25: 15 27 | B25: 14589 | C25: 14326 | D25: 263 | E25: 263 | F25: 0 | G25: 0 | H25: 0
A26: 16 28 | B26: 14021 | C26: 13779 | D26: 242 | E26: 239 | F26: 3 | G26: 0 | H26: 0
A27: 17 29 | B27: 13821 | C27: 13534 | D27: 287 | E27: 281 | F27: 6 | G27: 0 | H27: 0
A28: 18 30 | B28: =SUM(C28:D28) -> 13248 | C28: ='23 単産-複産別，区別出生数'!C$5 -> 12993 | D28: =SUM(E28:H28) -> 255 | E28: ='23 単産-複産別，区別出生数'!E$5 -> 255 | F28: ='23 単産-複産別，区別出生数'!F$5 -> 0 | G28: ='23 単産-複産別，区別出生数'!G$5 -> 0 | H28: ='23 単産-複産別，区別出生数'!H$5 -> 0

Sheet 23 単産-複産別，区別出生数
A1: 23 単産-複産（複産の種類）別にみた区別出生数
H2: ='3 月・性別，区別出生数・出生率'!$O$2 -> 平成30年
A3: 区 | B3: 総 数 | C3: 単 産 | D3: 複 産
D4: 総 数 | E4: 双 子 | F4: 三つ児 | G4: 四つ児 | H4: 五つ児以上
A5: 総数 | B5: =SUM(C5:D5) -> 13248 | C5: =SUM(C6:C15) -> 12993 | D5: =SUM(E5:H5) -> 255 | E5: =SUM(E6:E15) -> 255 | F5: =SUM(F6:F15) -> 0 | G5: =SUM(G6:G15) -> 0 | H5: =SUM(H6:H15) -> 0
A6: 中央 | B6: =SUM(C6:D6) -> 1744 | C6: 1706 | D6: =SUM(E6:H6) -> 38 | E6: 38 | F6: 0 | G6: 0 | H6: 0
A7: 北 | B7: 1847 | C7: 1808 | D7: 39 | E7: 39 | F7: 0 | G7: 0 | H7: 0
A8: 東 | B8: 1978 | C8: 1946 | D8: 32 | E8: 32 | F8: 0 | G8: 0 | H8: 0
A9: 白石 | B9: 1711 | C9: 1676 | D9: 35 | E9: 35 | F9: 0 | G9: 0 | H9: 0
A10: 厚別 | B10: 661 | C10: 647 | D10: 14 | E10: 14 | F10: 0 | G10: 0 | H10: 0
A11: 豊平 | B11: 1682 | C11: 1658 | D11: 24 | E11: 24 | F11: 0 | G11: 0 | H11: 0
A12: 清田 | B12: 644 | C12: 634 | D12: 10 | E12: 10 | F12: 0 | G12: 0 | H12: 0
A13: 南 | B13: 642 | C13: 635 | D13: 7 | E13: 7 | F13: 0 | G13: 0 | H13: 0
A14: 西 | B14: 1530 | C14: 1490 | D14: 40 | E14: 40 | F14: 0 | G14: 0 | H14: 0
A15: 手稲 | B15: 809 | C15: 793 | D15: 16 | E15: 16 | F15: 0 | G15: 0 | H15: 0

Sheet 24 出生時の体重別，年次別複産出生数・平均体重
A1: 24 出生時の体重別にみた年次別複産出生数及び平均体重
A3: 年次 | B3: 総 数 | C3: 0.5kｇ未満 | D3: 0.5㎏以上 1.0㎏未満 | E3: 1.0～1.5kｇ | F3: 1.5～2.0kｇ | G3: 2.0～2.5kｇ | H3: 2.5～3.0kｇ | I3: 3.0～3.5kｇ | J3: 3.5～4.0kｇ | K3: 4.0～4.5kｇ | L3: 4.5～5.0kｇ | M3: 5.0kｇ以上 | N3: 不詳 | O3: （再掲） 2.5㎏未満 | P3: 出生時の 平均体重(kｇ)
A4: 85 60 | B4: =SUM(C4:N4) -> 277 | C4: 0 | D4: 3 | E4: 8 | F4: 23 | G4: 109 | H4: 109 | I4: 24 | J4: 1 | K4: 0 | L4: 0 | M4: 0 | N4: 0 | O4: =SUM(C4:G4) -> 143 | P4: 2.46
A5: 1986 昭和61年 | B5: =SUM(C5:N5) -> 261 | C5: 0 | D5: 7 | E5: 12 | F5: 45 | G5: 79 | H5: 83 | I5: 30 | J5: 5 | K5: 0 | L5: 0 | M5: 0 | N5: 0 | O5: =SUM(C5:G5) -> 143 | P5: 2.38
A6: 1987 昭和62年 | B6: =SUM(C6:N6) -> 270 | C6: 0 | D6: 5 | E6: 8 | F6: 34 | G6: 109 | H6: 91 | I6: 22 | J6: 1 | K6: 0 | L6: 0 | M6: 0 | N6: 0 | O6: =SUM(C6:G6) -> 156 | P6: 2.37
A7: 1988 昭和63年 | B7: 248 | C7: 1 | D7: 1 | E7: 12 | F7: 28 | G7: 93 | H7: 91 | I7: 19 | J7: 3 | K7: 0 | L7: 0 | M7: 0 | N7: 0 | O7: 135 | P7: 2.42
A8: 89 平成元年 | B8: 240 | C8: 0 | D8: 3 | E8: 11 | F8: 39 | G8: 88 | H8: 83 | I8: 16 | J8: 0 | K8: 0 | L8: 0 | M8: 0 | N8: 0 | O8: 141 | P8: 2.36
A9: 90 2 | B9: 298 | C9: 0 | D9: 13 | E9: 13 | F9: 47 | G9: 116 | H9: 91 | I9: 16 | J9: 1 | K9: 0 | L9: 0 | M9: 0 | N9: 1 | O9: 189 | P9: 2.27
A10: 91 3 | B10: 277 | C10: 0 | D10: 7 | E10: 16 | F10: 38 | G10: 101 | H10: 98 | I10: 17 | J10: 0 | K10: 0 | L10: 0 | M10: 0 | N10: 0 | O10: 162 | P10: 2.33
A11: 92 4 | B11: 259 | C11: 1 | D11: 1 | E11: 12 | F11: 38 | G11: 98 | H11: 96 | I11: 12 | J11: 1 | K11: 0 | L11: 0 | M11: 0 | N11: 0 | O11: 150 | P11: 2.35
A12: 1993 平成5年 | B12: 251 | C12: 0 | D12: 6 | E12: 9 | F12: 43 | G12: 108 | H12: 81 | I12: 4 | J12: 0 | K12: 0 | L12: 0 | M12: 0 | N12: 0 | O12: 166 | P12: 2.26
A13: 94 6 | B13: 289 | C13: 0 | D13: 5 | E13: 13 | F13: 42 | G13: 132 | H13: 85 | I13: 11 | J13: 1 | K13: 0 | L13: 0 | M13: 0 | N13: 0 | O13: 192 | P13: 2.3
A14: 95 7 | B14: 224 | C14: 1 | D14: 9 | E14: 6 | F14: 43 | G14: 94 | H14: 62 | I14: 9 | J14: 0 | K14: 0 | L14: 0 | M14: 0 | N14: 0 | O14: 153 | P14: 2.23
A15: 96 8 | B15: 263 | C15: 0 | D15: 5 | E15: 21 | F15: 32 | G15: 133 | H15: 64 | I15: 8 | J15: 0 | K15: 0 | L15: 0 | M15: 0 | N15: 0 | O15: 191 | P15: 2.23
A16: 97 9 | B16: 277 | C16: 2 | D16: 7 | E16: 19 | F16: 56 | G16: 111 | H16: 77 | I16: 5 | J16: 0 | K16: 0 | L16: 0 | M16: 0 | N16: 0 | O16: 195 | P16: 2.17
A17: 1998 平成10年 | B17: 269 | C17: 1 | D17: 4 | E17: 10 | F17: 49 | G17: 135 | H17: 61 | I17: 8 | J17: 1 | K17: 0 | L17: 0 | M17: 0 | N17: 0 | O17: 199 | P17: 2.21
A18: 99 11 | B18: 223 | C18: 0 | D18: 4 | E18: 24 | F18: 49 | G18: 99 | H18: 45 | I18: 2 | J18: 0 | K18: 0 | L18: 0 | M18: 0 | N18: 0 | O18: 176 | P18: 2.12
A19: 2000 12 | B19: 230 | C19: 0 | D19: 4 | E19: 19 | F19: 42 | G19: 119 | H19: 41 | I19: 5 | J19: 0 | K19: 0 | L19: 0 | M19: 0 | N19: 0 | O19: 184 | P19: 2.1587
A20: 01 13 | B20: 245 | C20: 0 | D20: 8 | E20: 14 | F20: 59 | G20: 103 | H20: 52 | I20: 9 | J20: 0 | K20: 0 | L20: 0 | M20: 0 | N20: 0 | O20: 184 | P20: 2.172546939
A21: 02 14 | B21: 271 | C21: 0 | D21: 6 | E21: 13 | F21: 60 | G21: 120 | H21: 65 | I21: 6 | J21: 1 | K21: 0 | L21: 0 | M21: 0 | N21: 0 | O21: 199 | P21: 2.204487085
A22: 03 15 | B22: 244 | C22: 0 | D22: 7 | E22: 12 | F22: 32 | G22: 125 | H22: 65 | I22: 3 | J22: 0 | K22: 0 | L22: 0 | M22: 0 | N22: 0 | O22: 176 | P22: 2.22545082
A23: 04 16 | B23: 281 | C23: 0 | D23: 9 | E23: 18 | F23: 56 | G23: 148 | H23: 45 | I23: 4 | J23: 1 | K23: 0 | L23: 0 | M23: 0 | N23: 0 | O23: 231 | P23: 2.147491103
A24: 05 17 | B24: 325 | C24: 0 | D24: 3 | E24: 26 | F24: 57 | G24: 159 | H24: 73 | I24: 7 | J24: 0 | K24: 0 | L24: 0 | M24: 0 | N24: 0 | O24: 245 | P24: 2.193378462
A25: 06 18 | B25: 351 | C25: 0 | D25: 7 | E25: 26 | F25: 78 | G25: 163 | H25: 70 | I25: 7 | J25: 0 | K25: 0 | L25: 0 | M25: 0 | N25: 0 | O25: 274 | P25: 2.145071225
A26: 07 19 | B26: 279 | C26: 0 | D26: 4 | E26: 10 | F26: 63 | G26: 138 | H26: 59 | I26: 4 | J26: 0 | K26: 0 | L26: 0 | M26: 0 | N26: 1 | O26: 215 | P26: 2.188453237
A27: 08 20 | B27: 263 | C27: 0 | D27: 6 | E27: 8 | F27: 53 | G27: 143 | H27: 51 | I27: 2 | J27: 0 | K27: 0 | L27: 0 | M27: 0 | N27: 0 | O27: 210 | P27: 2.190254753
A28: 09 21 | B28: 258 | C28: 0 | D28: 5 | E28: 11 | F28: 48 | G28: 126 | H28: 65 | I28: 2 | J28: 1 | K28: 0 | L28: 0 | M28: 0 | N28: 0 | O28: 190 | P28: 2.23
A29: 10 22 | B29: 254 | C29: 1 | D29: 1 | E29: 9 | F29: 46 | G29: 147 | H29: 46 | I29: 4 | J29: 0 | K29: 0 | L29: 0 | M29: 0 | N29: 0 | O29: 204 | P29: 2.780029412
A30: 11 23 | B30: 289 | C30: 0 | D30: 10 | E30: 27 | F30: 55 | G30: 138 | H30: 53 | I30: 6 | J30: 0 | K30: 0 | L30: 0 | M30: 0 | N30: 0 | O30: 230 | P30: 2.122138408
A31: 12 24 | B31: 299 | C31: 0 | D31: 9 | E31: 11 | F31: 57 | G31: 151 | H31: 63 | I31: 7 | J31: 1 | K31: 0 | L31: 0 | M31: 0 | N31: 0 | O31: 228 | P31: 2.205103679
A32: 13 25 | B32: 301 | C32: 0 | D32: 8 | E32: 14 | F32: 64 | G32: 152 | H32: 60 | I32: 2 | J32: 1 | K32: 0 | L32: 0 | M32: 0 | N32: 0 | O32: 238 | P32: 2.177707641
A33: 14 26 | B33: 314 | C33: 0 | D33: 9 | E33: 19 | F33: 59 | G33: 154 | H33: 70 | I33: 3 | J33: 0 | K33: 0 | L33: 0 | M33: 0 | N33: 0 | O33: 241 | P33: 2.170796178
A34: 15 27 | B34: 263 | C34: 0 | D34: 5 | E34: 16 | F34: 46 | G34: 143 | H34: 52 | I34: 1 | J34: 0 | K34: 0 | L34: 0 | M34: 0 | N34: 0 | O34: 210 | P34: 2.195452471
A35: 16 28 | B35: 242 | C35: 0 | D35: 4 | E35: 15 | F35: 49 | G35: 120 | H35: 52 | I35: 2 | J35: 0 | K35: 0 | L35: 0 | M35: 0 | N35: 0 | O35: 188 | P35: 2.175380165
A36: 17 29 | B36: 287 | C36: 1 | D36: 7 | E36: 16 | F36: 40 | G36: 154 | H36: 66 | I36: 3 | J36: 0 | K36: 0 | L36: 0 | M36: 0 | N36: 0 | O36: 218 | P36: 2.200923345
A37: 18 30 | B37: =SUM(C37:N37) -> 255 | C37: ='25 出生時の体重別，単産-複産別出生数・平均体重'!D$6 -> 1 | D37: ='25 出生時の体重別，単産-複産別出生数・平均体重'!E$6 -> 5 | E37: ='25 出生時の体重別，単産-複産別出生数・平均体重'!F$6 -> 9 | F37: ='25 出生時の体重別，単産-複産別出生数・平均体重'!G$6 -> 47 | G37: ='25 出生時の体重別，単産-複産別出生数・平均体重'!H$6 -> 139 | H37: ='25 出生時の体重別，単産-複産別出生数・平均体重'!I$6 -> 50 | I37: ='25 出生時の体重別，単産-複産別出生数・平均体重'!J$6 -> 4 | J37: ='25 出生時の体重別，単産-複産別出生数・平均体重'!K$6 -> 0 | K37: ='25 出生時の体重別，単産-複産別出生数・平均体重'!L$6 -> 0 | L37: ='25 出生時の体重別，単産-複産別出生数・平均体重'!M$6 -> 0 | M37: ='25 出生時の体重別，単産-複産別出生数・平均体重'!N$6 -> 0 | N37: ='25 出生時の体重別，単産-複産別出生数・平均体重'!O$6 -> 0 | O37: =SUM(C37:G37) -> 201 | P37: ='25 出生時の体重別，単産-複産別出生数・平均体重'!Q$6 -> 2.206721569

Sheet 25 出生時の体重別，単産-複産別出生数・平均体重
A1: 25 出生時の体重別にみた単産-複産（複産の種類）別出生数及び平均体重
Q2: ='3 月・性別，区別出生数・出生率'!$O$2 -> 平成30年
A3: 単産-複産 | C3: 総数 | D3: 0.5kｇ未満 | E3: 0.5㎏以上 1.0㎏未満 | F3: 1.0～1.5kｇ | G3: 1.5～2.0kｇ | H3: 2.0～2.5kｇ | I3: 2.5～3.0kｇ | J3: 3.0～3.5kｇ | K3: 3.5～4.0kｇ | L3: 4.0～4.5kｇ | M3: 4.5～5.0kｇ | N3: 5.0kｇ以上 | O3: 不詳 | P3: （再掲） 2.5㎏未満 | Q3: 出生時の 平均体重(kｇ)
A4: 総 数 | C4: =SUM(C5:C6) -> 13248 | D4: =SUM(D5:D6) -> 7 | E4: 27 | F4: 52 | G4: 152 | H4: 944 | I4: 4998 | J4: 5574 | K4: 1382 | L4: 106 | M4: 2 | N4: 1 | O4: 3 | P4: =SUM(D4:H4) -> 1182 | Q4: 3.017284711
A5: 単 産 | C5: =SUM(D5:O5) -> 12993 | D5: 6 | E5: 22 | F5: 43 | G5: 105 | H5: 805 | I5: 4948 | J5: 5570 | K5: 1382 | L5: 106 | M5: 2 | N5: 1 | O5: 3 | P5: 981 | Q5: 3.033196459
A6: 複 産 | C6: 255 | D6: =SUM(D7:D10) -> 1 | E6: =SUM(E7:E10) -> 5 | F6: 9 | G6: 47 | H6: 139 | I6: 50 | J6: 4 | K6: 0 | L6: 0 | M6: 0 | N6: 0 | O6: =SUM(O7:O10) -> 0 | P6: =SUM(D6:H6) -> 201 | Q6: 2.206721569
A7: 双 子 | C7: 255 | D7: 1 | E7: 5 | F7: 9 | G7: 47 | H7: 139 | I7: 50 | J7: 4 | K7: 0 | L7: 0 | M7: 0 | N7: 0 | O7: 0 | P7: 201 | Q7: 2.206721569
A8: 三 つ 児 | C8: 0 | D8: 0 | E8: 0 | F8: 0 | G8: 0 | H8: 0 | I8: 0 | J8: 0 | K8: 0 | L8: 0 | M8: 0 | N8: 0 | O8: 0 | P8: 0 | Q8: 0
A9: 四 つ 児 | C9: 0 | D9: 0 | E9: 0 | F9: 0 | G9: 0 | H9: 0 | I9: 0 | J9: 0 | K9: 0 | L9: 0 | M9: 0 | N9: 0 | O9: 0 | P9: 0 | Q9: 0
A10: 五つ児以上 | C10: 0 | D10: 0 | E10: 0 | F10: 0 | G10: 0 | H10: 0 | I10: 0 | J10: 0 | K10: 0 | L10: 0 | M10: 0 | N10: 0 | O10: 0 | P10: 0 | Q10: 0

Sheet 26 妊娠期間・性別，体重別出生数・平均体重
A1: 26 妊娠期間・性別にみた出生時の体重別出生数及び平均体重
Z2: ='3 月・性別，区別出生数・出生率'!$O$2 -> 平成30年
A3: 出生時の体重 | B3: 総数 | C3: 22週 未満 | D3: 22週 | E3: 23週 | F3: 24週 | G3: 25週 | H3: 26週 | I3: 27週 | J3: 28週 | K3: 29週 | L3: 30週 | M3: 31週 | N3: 32週 | O3: 33週 | P3: 34週 | Q3: 35週 | R3: 36週 | S3: 37週 | T3: 38週 | U3: 39週 | V3: 40週 | W3: 41週 | X3: 42週 | Y3: 43週～ | Z3: 不詳
B4: 総数
A5: 総 数 | B5: =SUM(B20,B35) -> 13248 | C5: =SUM(C20,C35) -> 0 | D5: 1 | E5: 3 | F5: 5 | G5: 7 | H5: 6 | I5: 12 | J5: 3 | K5: 9 | L5: 13 | M5: 17 | N5: 27 | O5: 41 | P5: 87 | Q5: 128 | R5: 426 | S5: 1553 | T5: 3099 | U5: 3633 | V5: 3159 | W5: 1001 | X5: 11 | Y5: 0 | Z5: 7
A6: 0.5㎏未満 | B6: 7 | C6: =SUM(C21,C36) -> 0 | D6: 1 | E6: 2 | F6: 2 | G6: 1 | H6: 0 | I6: 0 | J6: 1 | K6: 0 | L6: 0 | M6: 0 | N6: 0 | O6: 0 | P6: 0 | Q6: 0 | R6: 0 | S6: 0 | T6: 0 | U6: 0 | V6: 0 | W6: 0 | X6: 0 | Y6: 0 | Z6: 0
A7: 0.5㎏以上1.0㎏未満 | B7: 27 | C7: 0 | D7: 0 | E7: 1 | F7: 3 | G7: 5 | H7: 4 | I7: 8 | J7: 0 | K7: 1 | L7: 2 | M7: 1 | N7: 1 | O7: 0 | P7: 0 | Q7: 1 | R7: 0 | S7: 0 | T7: 0 | U7: 0 | V7: 0 | W7: 0 | X7: 0 | Y7: 0 | Z7: 0
A8: 1.0～1.5㎏ | B8: 52 | C8: 0 | D8: 0 | E8: 0 | F8: 0 | G8: 1 | H8: 2 | I8: 4 | J8: 2 | K8: 6 | L8: 8 | M8: 4 | N8: 8 | O8: 8 | P8: 5 | Q8: 2 | R8: 1 | S8: 0 | T8: 1 | U8: 0 | V8: 0 | W8: 0 | X8: 0 | Y8: 0 | Z8: 0
A9: 1.5～2.0㎏ | B9: 152 | C9: 0 | D9: 0 | E9: 0 | F9: 0 | G9: 0 | H9: 0 | I9: 0 | J9: 0 | K9: 0 | L9: 3 | M9: 12 | N9: 13 | O9: 25 | P9: 25 | Q9: 17 | R9: 31 | S9: 18 | T9: 7 | U9: 1 | V9: 0 | W9: 0 | X9: 0 | Y9: 0 | Z9: 0
A10: 2.0～2.5㎏ | B10: 944 | C10: 0 | D10: 0 | E10: 0 | F10: 0 | G10: 0 | H10: 0 | I10: 0 | J10: 0 | K10: 0 | L10: 0 | M10: 0 | N10: 4 | O10: 8 | P10: 46 | Q10: 73 | R10: 174 | S10: 281 | T10: 209 | U10: 100 | V10: 45 | W10: 4 | X10: 0 | Y10: 0 | Z10: 0
A11: 2.5～3.0㎏ | B11: 4998 | C11: 0 | D11: 0 | E11: 0 | F11: 0 | G11: 0 | H11: 0 | I11: 0 | J11: 0 | K11: 1 | L11: 0 | M11: 0 | N11: 1 | O11: 0 | P11: 11 | Q11: 34 | R11: 185 | S11: 872 | T11: 1509 | U11: 1347 | V11: 862 | W11: 172 | X11: 1 | Y11: 0 | Z11: 3
A12: 3.0～3.5㎏ | B12: 5574 | C12: 0 | D12: 0 | E12: 0 | F12: 0 | G12: 0 | H12: 0 | I12: 0 | J12: 0 | K12: 1 | L12: 0 | M12: 0 | N12: 0 | O12: 0 | P12: 0 | Q12: 1 | R12: 31 | S12: 351 | T12: 1219 | U12: 1761 | V12: 1672 | W12: 532 | X12: 5 | Y12: 0 | Z12: 1
A13: 3.5～4.0㎏ | B13: 1382 | C13: 0 | D13: 0 | E13: 0 | F13: 0 | G13: 0 | H13: 0 | I13: 0 | J13: 0 | K13: 0 | L13: 0 | M13: 0 | N13: 0 | O13: 0 | P13: 0 | Q13: 0 | R13: 3 | S13: 31 | T13: 146 | U13: 398 | V13: 543 | W13: 257 | X13: 3 | Y13: 0 | Z13: 1
A14: 4.0～4.5㎏ | B14: 106 | C14: 0 | D14: 0 | E14: 0 | F14: 0 | G14: 0 | H14: 0 | I14: 0 | J14: 0 | K14: 0 | L14: 0 | M14: 0 | N14: 0 | O14: 0 | P14: 0 | Q14: 0 | R14: 0 | S14: 0 | T14: 7 | U14: 25 | V14: 36 | W14: 36 | X14: 2 | Y14: 0 | Z14: 0
A15: 4.5～5.0㎏ | B15: 2 | C15: 0 | D15: 0 | E15: 0 | F15: 0 | G15: 0 | H15: 0 | I15: 0 | J15: 0 | K15: 0 | L15: 0 | M15: 0 | N15: 0 | O15: 0 | P15: 0 | Q15: 0 | R15: 0 | S15: 0 | T15: 1 | U15: 0 | V15: 1 | W15: 0 | X15: 0 | Y15: 0 | Z15: 0
A16: 5.0㎏以上 | B16: 1 | C16: 0 | D16: 0 | E16: 0 | F16: 0 | G16: 0 | H16: 0 | I16: =SUM(I31,I46) -> 0 | J16: 0 | K16: 0 | L16: 0 | M16: 0 | N16: 0 | O16: 0 | P16: 0 | Q16: 0 | R16: 0 | S16: 0 | T16: 0 | U16: 1 | V16: 0 | W16: 0 | X16: 0 | Y16: 0 | Z16: 0
A17: 不詳 | B17: 3 | C17: 0 | D17: 0 | E17: 0 | F17: 0 | G17: 0 | H17: 0 | I17: 0 | J17: 0 | K17: 0 | L17: 0 | M17: 0 | N17: 0 | O17: 0 | P17: 0 | Q17: 0 | R17: 1 | S17: 0 | T17: 0 | U17: 0 | V17: 0 | W17: 0 | X17: 0 | Y17: 0 | Z17: 2
A18: 平均体重(㎏) | B18: 3.017284711 | D18: 0.416 | E18: 0.5 | F18: 0.5016 | G18: 0.7124285714 | H18: 0.9143333333 | I18: 0.9745833333 | J18: 0.9986666667 | K18: 1.526666667 | L18: 1.290153846 | M18: 1.565176471 | N18: 1.643851852 | O18: 1.771097561 | P18: 2.10391954 | Q18: 2.303304687 | R18: 2.520931765 | S18: 2.777895686 | T18: 2.961060665 | U18: 3.097820809 | V18: 3.196657487 | W18: 3.311581419 | X18: 3.456363636 | Y18: 0 | Z18: 3.0066
B19: 男
A20: 総 数 | B20: =SUM(C20:Z20) -> 6744 | C20: =SUM(C21:C32) -> 0 | D20: 0 | E20: 2 | F20: 4 | G20: 3 | H20: 3 | I20: 6 | J20: 1 | K20: 5 | L20: 7 | M20: 9 | N20: 17 | O20: 19 | P20: 49 | Q20: 66 | R20: 221 | S20: 841 | T20: 1646 | U20: 1838 | V20: 1533 | W20: 464 | X20: 5 | Y20: 0 | Z20: 5
A21: 0.5㎏未満 | B21: =SUM(C21:Z21) -> 3 | D21: 0 | E21: 1 | F21: 2 | G21: 0 | H21: 0 | I21: 0 | J21: 0 | K21: 0 | L21: 0 | M21: 0 | N21: 0 | O21: 0 | P21: 0 | Q21: 0 | R21: 0 | S21: 0 | T21: 0 | U21: 0 | V21: 0 | W21: 0 | X21: 0 | Y21: 0 | Z21: 0
A22: 0.5㎏以上1.0㎏未満 | B22: 15 | D22: 0 | E22: 1 | F22: 2 | G22: 2 | H22: 1 | I22: 4 | J22: 0 | K22: 1 | L22: 2 | M22: 0 | N22: 1 | O22: 0 | P22: 0 | Q22: 1 | R22: 0 | S22: 0 | T22: 0 | U22: 0 | V22: 0 | W22: 0 | X22: 0 | Y22: 0 | Z22: 0
A23: 1.0～1.5㎏ | B23: 23 | D23: 0 | E23: 0 | F23: 0 | G23: 1 | H23: 2 | I23: 2 | J23: 1 | K23: 3 | L23: 2 | M23: 1 | N23: 4 | O23: 2 | P23: 3 | Q23: 1 | R23: 1 | S23: 0 | T23: 0 | U23: 0 | V23: 0 | W23: 0 | X23: 0 | Y23: 0 | Z23: 0
A24: 1.5～2.0㎏ | B24: 84 | D24: 0 | E24: 0 | F24: 0 | G24: 0 | H24: 0 | I24: 0 | J24: 0 | K24: 0 | L24: 3 | M24: 8 | N24: 9 | O24: 11 | P24: 13 | Q24: 8 | R24: 16 | S24: 10 | T24: 6 | U24: 0 | V24: 0 | W24: 0 | X24: 0 | Y24: 0 | Z24: 0
A25: 2.0～2.5㎏ | B25: 405 | D25: 0 | E25: 0 | F25: 0 | G25: 0 | H25: 0 | I25: 0 | J25: 0 | K25: 0 | L25: 0 | M25: 0 | N25: 2 | O25: 6 | P25: 23 | Q25: 32 | R25: 82 | S25: 128 | T25: 79 | U25: 31 | V25: 21 | W25: 1 | X25: 0 | Y25: 0 | Z25: 0
A26: 2.5～3.0㎏ | B26: 2318 | D26: 0 | E26: 0 | F26: 0 | G26: 0 | H26: 0 | I26: 0 | J26: 0 | K26: 0 | L26: 0 | M26: 0 | N26: 1 | O26: 0 | P26: 10 | Q26: 24 | R26: 103 | S26: 472 | T26: 713 | U26: 585 | V26: 339 | W26: 68 | X26: 1 | Y26: 0 | Z26: 2
A27: 3.0～3.5㎏ | B27: 2992 | D27: 0 | E27: 0 | F27: 0 | G27: 0 | H27: 0 | I27: 0 | J27: 0 | K27: 1 | L27: 0 | M27: 0 | N27: 0 | O27: 0 | P27: 0 | Q27: 0 | R27: 17 | S27: 209 | T27: 743 | U27: 957 | V27: 830 | W27: 232 | X27: 2 | Y27: 0 | Z27: 1
A28: 3.5～4.0㎏ | B28: 833 | D28: 0 | E28: 0 | F28: 0 | G28: 0 | H28: 0 | I28: 0 | J28: 0 | K28: 0 | L28: 0 | M28: 0 | N28: 0 | O28: 0 | P28: 0 | Q28: 0 | R28: 1 | S28: 22 | T28: 100 | U28: 249 | V28: 319 | W28: 139 | X28: 2 | Y28: 0 | Z28: 1
A29: 4.0～4.5㎏ | B29: 67 | D29: 0 | E29: 0 | F29: 0 | G29: 0 | H29: 0 | I29: 0 | J29: 0 | K29: 0 | L29: 0 | M29: 0 | N29: 0 | O29: 0 | P29: 0 | Q29: 0 | R29: 0 | S29: 0 | T29: 5 | U29: 15 | V29: 23 | W29: 24 | X29: 0 | Y29: 0 | Z29: 0
A30: 4.5～5.0㎏ | B30: 1 | D30: 0 | E30: 0 | F30: 0 | G30: 0 | H30: 0 | I30: 0 | J30: 0 | K30: 0 | L30: 0 | M30: 0 | N30: 0 | O30: 0 | P30: 0 | Q30: 0 | R30: 0 | S30: 0 | T30: 0 | U30: 0 | V30: 1 | W30: 0 | X30: 0 | Y30: 0 | Z30: 0
A31: 5.0㎏以上 | B31: 1 | D31: 0 | E31: 0 | F31: 0 | G31: 0 | H31: 0 | I31: 0 | J31: 0 | K31: 0 | L31: 0 | M31: 0 | N31: 0 | O31: 0 | P31: 0 | Q31: 0 | R31: 0 | S31: 0 | T31: 0 | U31: 1 | V31: 0 | W31: 0 | X31: 0 | Y31: 0 | Z31: 0
A32: 不詳 | B32: 2 | D32: 0 | E32: 0 | F32: 0 | G32: 0 | H32: 0 | I32: 0 | J32: 0 | K32: 0 | L32: 0 | M32: 0 | N32: 0 | O32: 0 | P32: 0 | Q32: 0 | R32: 1 | S32: 0 | T32: 0 | U32: 0 | V32: 0 | W32: 0 | X32: 0 | Y32: 0 | Z32: 1
A33: 平均体重(㎏) | B33: 3.055806289 | D33: 0 | E33: 0.502 | F33: 0.478 | G33: 0.8656666667 | H33: 1.047666667 | I33: 0.9545 | J33: 1.328 | K33: 1.4632 | L33: 1.252428571 | M33: 1.624444444 | N33: 1.654941176 | O33: 1.898631579 | P33: 2.138877551 | Q33: 2.340560606 | R33: 2.5493 | S33: 2.811432818 | T33: 3.008877886 | U33: 3.151435256 | V33: 3.243643183 | W33: 3.363713362 | X33: 3.3188 | Y33: 0 | Z33: 3.067
B34: 女
A35: 総 数 | B35: =SUM(C35:Z35) -> 6504 | C35: =SUM(C36:C47) -> 0 | D35: =SUM(D36:D47) -> 1 | E35: 1 | F35: 1 | G35: 4 | H35: 3 | I35: 6 | J35: 2 | K35: 4 | L35: 6 | M35: 8 | N35: 10 | O35: 22 | P35: 38 | Q35: 62 | R35: 205 | S35: 712 | T35: 1453 | U35: 1795 | V35: 1626 | W35: 537 | X35: 6 | Y35: 0 | Z35: 2
A36: 0.5㎏未満 | B36: =SUM(C36:Z36) -> 4 | D36: 1 | E36: 1 | F36: 0 | G36: 1 | H36: 0 | I36: 0 | J36: 1 | K36: 0 | L36: 0 | M36: 0 | N36: 0 | O36: 0 | P36: 0 | Q36: 0 | R36: 0 | S36: 0 | T36: 0 | U36: 0 | V36: 0 | W36: 0 | X36: 0 | Y36: 0 | Z36: 0
A37: 0.5㎏以上1.0㎏未満 | B37: 12 | D37: 0 | E37: 0 | F37: 1 | G37: 3 | H37: 3 | I37: 4 | J37: 0 | K37: 0 | L37: 0 | M37: 1 | N37: 0 | O37: 0 | P37: 0 | Q37: 0 | R37: 0 | S37: 0 | T37: 0 | U37: 0 | V37: 0 | W37: 0 | X37: 0 | Y37: 0 | Z37: 0
A38: 1.0～1.5㎏ | B38: 29 | D38: 0 | E38: 0 | F38: 0 | G38: 0 | H38: 0 | I38: 2 | J38: 1 | K38: 3 | L38: 6 | M38: 3 | N38: 4 | O38: 6 | P38: 2 | Q38: 1 | R38: 0 | S38: 0 | T38: 1 | U38: 0 | V38: 0 | W38: 0 | X38: 0 | Y38: 0 | Z38: 0
A39: 1.5～2.0㎏ | B39: 68 | D39: 0 | E39: 0 | F39: 0 | G39: 0 | H39: 0 | I39: 0 | J39: 0 | K39: 0 | L39: 0 | M39: 4 | N39: 4 | O39: 14 | P39: 12 | Q39: 9 | R39: 15 | S39: 8 | T39: 1 | U39: 1 | V39: 0 | W39: 0 | X39: 0 | Y39: 0 | Z39: 0
A40: 2.0～2.5㎏ | B40: 539 | D40: 0 | E40: 0 | F40: 0 | G40: 0 | H40: 0 | I40: 0 | J40: 0 | K40: 0 | L40: 0 | M40: 0 | N40: 2 | O40: 2 | P40: 23 | Q40: 41 | R40: 92 | S40: 153 | T40: 130 | U40: 69 | V40: 24 | W40: 3 | X40: 0 | Y40: 0 | Z40: 0
A41: 2.5～3.0㎏ | B41: 2680 | D41: 0 | E41: 0 | F41: 0 | G41: 0 | H41: 0 | I41: 0 | J41: 0 | K41: 1 | L41: 0 | M41: 0 | N41: 0 | O41: 0 | P41: 1 | Q41: 10 | R41: 82 | S41: 400 | T41: 796 | U41: 762 | V41: 523 | W41: 104 | X41: 0 | Y41: 0 | Z41: 1
A42: 3.0～3.5㎏ | B42: 2582 | D42: 0 | E42: 0 | F42: 0 | G42: 0 | H42: 0 | I42: 0 | J42: 0 | K42: 0 | L42: 0 | M42: 0 | N42: 0 | O42: 0 | P42: 0 | Q42: 1 | R42: 14 | S42: 142 | T42: 476 | U42: 804 | V42: 842 | W42: 300 | X42: 3 | Y42: 0 | Z42: 0
A43: 3.5～4.0㎏ | B43: 549 | D43: 0 | E43: 0 | F43: 0 | G43: 0 | H43: 0 | I43: 0 | J43: 0 | K43: 0 | L43: 0 | M43: 0 | N43: 0 | O43: 0 | P43: 0 | Q43: 0 | R43: 2 | S43: 9 | T43: 46 | U43: 149 | V43: 224 | W43: 118 | X43: 1 | Y43: 0 | Z43: 0
A44: 4.0～4.5㎏ | B44: 39 | D44: 0 | E44: 0 | F44: 0 | G44: 0 | H44: 0 | I44: 0 | J44: 0 | K44: 0 | L44: 0 | M44: 0 | N44: 0 | O44: 0 | P44: 0 | Q44: 0 | R44: 0 | S44: 0 | T44: 2 | U44: 10 | V44: 13 | W44: 12 | X44: 2 | Y44: 0 | Z44: 0
A45: 4.5～5.0㎏ | B45: 1 | D45: 0 | E45: 0 | F45: 0 | G45: 0 | H45: 0 | I45: 0 | J45: 0 | K45: 0 | L45: 0 | M45: 0 | N45: 0 | O45: 0 | P45: 0 | Q45: 0 | R45: 0 | S45: 0 | T45: 1 | U45: 0 | V45: 0 | W45: 0 | X45: 0 | Y45: 0 | Z45: 0
A46: 5.0㎏以上 | B46: 0 | D46: 0 | E46: 0 | F46: 0 | G46: 0 | H46: 0 | I46: 0 | J46: 0 | K46: 0 | L46: 0 | M46: 0 | N46: 0 | O46: 0 | P46: 0 | Q46: 0 | R46: 0 | S46: 0 | T46: 0 | U46: 0 | V46: 0 | W46: 0 | X46: 0 | Y46: 0 | Z46: 0
A47: 不詳 | B47: 1 | D47: 0 | E47: 0 | F47: 0 | G47: 0 | H47: 0 | I47: 0 | J47: 0 | K47: 0 | L47: 0 | M47: 0 | N47: 0 | O47: 0 | P47: 0 | Q47: 0 | R47: 0 | S47: 0 | T47: 0 | U47: 0 | V47: 0 | W47: 0 | X47: 0 | Y47: 0 | Z47: 1
A48: 平均体重(㎏) | B48: 2.977347378 | D48: 0.416 | E48: 0.496 | F48: 0.596 | G48: 0.5975 | H48: 0.781 | I48: 0.9946666667 | J48: 0.834 | K48: 1.606 | L48: 1.334166667 | M48: 1.4985 | N48: 1.625 | O48: 1.660954545 | P48: 2.058842105 | Q48: 2.263645161 | R48: 2.490487805 | S48: 2.738282303 | T48: 2.906891948 | U48: 3.042922006 | V48: 3.152359164 | W48: 3.266536313 | X48: 3.571 | Y48: 0 | Z48: 2.765

Sheet 27 母の年齢・性別，出生順位別出生数
A1: 27 母の年齢（各歳）・性別にみた出生順位別出生数
AS2: ='3 月・性別，区別出生数・出生率'!$O$2 -> 平成30年
A3: 出生順位 | B3: 総数 | C3: 14歳以下 | D3: 15 歳 | E3: 16 歳 | F3: 17 歳 | G3: 18 歳 | H3: 19 歳 | I3: 20 歳 | J3: 21 歳 | K3: 22 歳 | L3: 23 歳 | M3: 24 歳 | N3: 25 歳 | O3: 26 歳 | P3: 27 歳 | Q3: 28 歳 | R3: 29 歳 | S3: 30 歳 | T3: 31 歳 | U3: 32 歳 | V3: 33 歳 | W3: 34 歳 | X3: 35 歳 | Y3: 36 歳 | Z3: 37 歳 | AA3: 38 歳 | AB3: 39 歳 | AC3: 40 歳 | AD3: 41 歳 | AE3: 42 歳 | AF3: 43 歳 | AG3: 44 歳 | AH3: 45 歳 | AI3: 46 歳 | AJ3: 47 歳 | AK3: 48 歳 | AL3: 49 歳 | AM3: 50 歳 | AN3: 51 歳 | AO3: 52 歳 | AP3: 53 歳 | AQ3: 54 歳 | AR3: 55歳～ | AS3: 不詳
B4: 総数
A5: 総 数 | B5: =SUM(B13,B21) -> 13248 | C5: =SUM(C13,C21) -> 3 | D5: 0 | E5: 7 | F5: 13 | G5: 24 | H5: 58 | I5: 125 | J5: 177 | K5: 229 | L5: 277 | M5: 317 | N5: 391 | O5: 516 | P5: 654 | Q5: 808 | R5: 877 | S5: 926 | T5: 1003 | U5: 926 | V5: 956 | W5: 972 | X5: 844 | Y5: 768 | Z5: 655 | AA5: 529 | AB5: 434 | AC5: 312 | AD5: 214 | AE5: 116 | AF5: 60 | AG5: 37 | AH5: 11 | AI5: 8 | AJ5: 1 | AK5: 0 | AL5: 0 | AM5: 0 | AN5: 0 | AO5: 0 | AP5: 0 | AQ5: 0 | AR5: 0 | AS5: 0
A6: 第 1 子 | B6: =SUM(B14,B22) -> 6691 | C6: 3 | D6: 0 | E6: 7 | F6: 13 | G6: 22 | H6: 53 | I6: 104 | J6: 137 | K6: 168 | L6: 177 | M6: 215 | N6: 256 | O6: 355 | P6: 440 | Q6: 497 | R6: 538 | S6: 509 | T6: 523 | U6: 437 | V6: 378 | W6: 389 | X6: 343 | Y6: 279 | Z6: 230 | AA6: 184 | AB6: 159 | AC6: 110 | AD6: 72 | AE6: 39 | AF6: 25 | AG6: 19 | AH6: 5 | AI6: 5 | AJ6: 0 | AK6: 0 | AL6: 0 | AM6: 0 | AN6: 0 | AO6: 0 | AP6: 0 | AQ6: 0 | AR6: 0 | AS6: 0
A7: 第 2 子 | B7: =SUM(B15,B23) -> 4753 | C7: 0 | D7: 0 | E7: 0 | F7: 0 | G7: 2 | H7: 4 | I7: 21 | J7: 38 | K7: 56 | L7: 82 | M7: 86 | N7: 104 | O7: =SUM(O15,O23) -> 124 | P7: 160 | Q7: 259 | R7: 274 | S7: 328 | T7: 367 | U7: 347 | V7: 407 | W7: 410 | X7: 361 | Y7: 314 | Z7: 277 | AA7: 237 | AB7: 175 | AC7: 131 | AD7: 90 | AE7: 55 | AF7: 26 | AG7: 12 | AH7: 3 | AI7: 2 | AJ7: 1 | AK7: 0 | AL7: 0 | AM7: 0 | AN7: 0 | AO7: 0 | AP7: 0 | AQ7: 0 | AR7: 0 | AS7: 0
A8: 第 3 子 | B8: =SUM(B16,B24) -> 1413 | C8: 0 | D8: 0 | E8: 0 | F8: 0 | G8: 0 | H8: 1 | I8: 0 | J8: 2 | K8: 5 | L8: 17 | M8: 14 | N8: 28 | O8: 33 | P8: 40 | Q8: 42 | R8: 53 | S8: 70 | T8: 97 | U8: 118 | V8: 127 | W8: 135 | X8: 105 | Y8: 139 | Z8: 118 | AA8: 84 | AB8: 75 | AC8: 46 | AD8: 35 | AE8: 17 | AF8: 5 | AG8: 4 | AH8: 3 | AI8: 0 | AJ8: 0 | AK8: 0 | AL8: 0 | AM8: 0 | AN8: 0 | AO8: 0 | AP8: 0 | AQ8: 0 | AR8: 0 | AS8: 0
A9: 第 4 子 | B9: =SUM(B17,B25) -> 287 | C9: 0 | D9: 0 | E9: 0 | F9: 0 | G9: 0 | H9: 0 | I9: 0 | J9: 0 | K9: 0 | L9: 1 | M9: 2 | N9: 2 | O9: 3 | P9: 11 | Q9: 9 | R9: 10 | S9: 14 | T9: 12 | U9: 17 | V9: 31 | W9: 27 | X9: 26 | Y9: 30 | Z9: 17 | AA9: 20 | AB9: 18 | AC9: 17 | AD9: 11 | AE9: 4 | AF9: 4 | AG9: 1 | AH9: 0 | AI9: 0 | AJ9: 0 | AK9: 0 | AL9: 0 | AM9: 0 | AN9: 0 | AO9: 0 | AP9: 0 | AQ9: 0 | AR9: 0 | AS9: 0
A10: 第 5 子 ～ | B10: =SUM(B18,B26) -> 52 | C10: 0 | D10: 0 | E10: 0 | F10: 0 | G10: 0 | H10: 0 | I10: 0 | J10: 0 | K10: 0 | L10: 0 | M10: 0 | N10: 1 | O10: 1 | P10: 3 | Q10: 1 | R10: 2 | S10: 5 | T10: 4 | U10: 7 | V10: 13 | W10: 11 | X10: 9 | Y10: 6 | Z10: 13 | AA10: 4 | AB10: 7 | AC10: 8 | AD10: 6 | AE10: 1 | AF10: 0 | AG10: 1 | AH10: 0 | AI10: 1 | AJ10: 0 | AK10: 0 | AL10: 0 | AM10: 0 | AN10: 0 | AO10: 0 | AP10: 0 | AQ10: 0 | AR10: 0 | AS10: 0
A11: 不 詳 | B11: =SUM(B19,B27) -> 0 | C11: 0 | D11: 0 | E11: 0 | F11: 0 | G11: 0 | H11: 0 | I11: 0 | J11: 0 | K11: 0 | L11: 0 | M11: 0 | N11: 0 | O11: 0 | P11: 0 | Q11: 0 | R11: 0 | S11: 0 | T11: 0 | U11: 0 | V11: 0 | W11: 0 | X11: 0 | Y11: 0 | Z11: 0 | AA11: 0 | AB11: 0 | AC11: 0 | AD11: 0 | AE11: 0 | AF11: 0 | AG11: 0 | AH11: 0 | AI11: 0 | AJ11: 0 | AK11: 0 | AL11: 0 | AM11: 0 | AN11: 0 | AO11: 0 | AP11: 0 | AQ11: 0 | AR11: 0 | AS11: 0
B12: 男
A13: 総 数 | B13: =SUM(C13:AS13) -> 6744 | C13: =SUM(C14:C19) -> 0 | D13: 0 | E13: 3 | F13: 11 | G13: 12 | H13: 34 | I13: 66 | J13: 92 | K13: 105 | L13: 142 | M13: 157 | N13: 205 | O13: 242 | P13: 317 | Q13: 406 | R13: 449 | S13: 489 | T13: 496 | U13: 500 | V13: 464 | W13: 498 | X13: 434 | Y13: 388 | Z13: 331 | AA13: 279 | AB13: 234 | AC13: 158 | AD13: 117 | AE13: 52 | AF13: 23 | AG13: 28 | AH13: 6 | AI13: 5 | AJ13: 1 | AK13: 0 | AL13: 0 | AM13: 0 | AN13: 0 | AO13: 0 | AP13: 0 | AQ13: 0 | AR13: 0 | AS13: 0
A14: 第 1 子 | B14: =SUM(C14:AS14) -> 3415 | C14: 0 | D14: 0 | E14: 3 | F14: 11 | G14: 11 | H14: 30 | I14: 54 | J14: 72 | K14: 81 | L14: 85 | M14: 104 | N14: 135 | O14: 166 | P14: 213 | Q14: 246 | R14: 279 | S14: 261 | T14: 260 | U14: 246 | V14: 181 | W14: 200 | X14: 183 | Y14: 142 | Z14: 119 | AA14: 99 | AB14: 82 | AC14: 61 | AD14: 48 | AE14: 13 | AF14: 11 | AG14: 14 | AH14: 2 | AI14: 3 | AJ14: 0 | AK14: 0 | AL14: 0 | AM14: 0 | AN14: 0 | AO14: 0 | AP14: 0 | AQ14: 0 | AR14: 0 | AS14: 0
A15: 第 2 子 | B15: 2398 | C15: 0 | D15: 0 | E15: 0 | F15: 0 | G15: 1 | H15: 3 | I15: 12 | J15: 19 | K15: 22 | L15: 46 | M15: 43 | N15: 58 | O15: 54 | P15: 80 | Q15: 134 | R15: 135 | S15: 174 | T15: 179 | U15: 177 | V15: 212 | W15: 211 | X15: 188 | Y15: 149 | Z15: 135 | AA15: 127 | AB15: 95 | AC15: 59 | AD15: 42 | AE15: 22 | AF15: 7 | AG15: 10 | AH15: 2 | AI15: 1 | AJ15: 1 | AK15: 0 | AL15: 0 | AM15: 0 | AN15: 0 | AO15: 0 | AP15: 0 | AQ15: 0 | AR15: 0 | AS15: 0
A16: 第 3 子 | B16: 739 | C16: 0 | D16: 0 | E16: 0 | F16: 0 | G16: 0 | H16: 1 | I16: 0 | J16: 1 | K16: 2 | L16: 10 | M16: 9 | N16: 12 | O16: 19 | P16: 19 | Q16: 22 | R16: 30 | S16: 43 | T16: 50 | U16: 65 | V16: 54 | W16: 69 | X16: 49 | Y16: 80 | Z16: 63 | AA16: 37 | AB16: 43 | AC16: 23 | AD16: 19 | AE16: 13 | AF16: 2 | AG16: 2 | AH16: 2 | AI16: 0 | AJ16: 0 | AK16: 0 | AL16: 0 | AM16: 0 | AN16: 0 | AO16: 0 | AP16: 0 | AQ16: 0 | AR16: 0 | AS16: 0
A17: 第 4 子 | B17: 140 | C17: 0 | D17: 0 | E17: 0 | F17: 0 | G17: 0 | H17: 0 | I17: 0 | J17: 0 | K17: 0 | L17: 1 | M17: 1 | N17: 0 | O17: 2 | P17: 5 | Q17: 3 | R17: 4 | S17: 8 | T17: 5 | U17: 9 | V17: 10 | W17: 13 | X17: 10 | Y17: 14 | Z17: 7 | AA17: 15 | AB17: 10 | AC17: 12 | AD17: 4 | AE17: 3 | AF17: 3 | AG17: 1 | AH17: 0 | AI17: 0 | AJ17: 0 | AK17: 0 | AL17: 0 | AM17: 0 | AN17: 0 | AO17: 0 | AP17: 0 | AQ17: 0 | AR17: 0 | AS17: 0
A18: 第 5 子 ～ | B18: 0 | C18: 0 | D18: 0 | E18: 0 | F18: 0 | G18: 0 | H18: 0 | I18: 0 | J18: 0 | K18: 0 | L18: 0 | M18: 0 | N18: 0 | O18: 1 | P18: 0 | Q18: 1 | R18: 1 | S18: 3 | T18: 2 | U18: 3 | V18: 7 | W18: 5 | X18: 4 | Y18: 3 | Z18: 7 | AA18: 1 | AB18: 4 | AC18: 3 | AD18: 4 | AE18: 1 | AF18: 0 | AG18: 1 | AH18: 0 | AI18: 1 | AJ18: 0 | AK18: 0 | AL18: 0 | AM18: 0 | AN18: 0 | AO18: 0 | AP18: 0 | AQ18: 0 | AR18: 0 | AS18: 0
A19: 不 詳 | B19: 0 | C19: 0 | D19: 0 | E19: 0 | F19: 0 | G19: 0 | H19: 0 | I19: 0 | J19: 0 | K19: 0 | L19: 0 | M19: 0 | N19: 0 | O19: 0 | P19: 0 | Q19: 0 | R19: 0 | S19: 0 | T19: 0 | U19: 0 | V19: 0 | W19: 0 | X19: 0 | Y19: 0 | Z19: 0 | AA19: 0 | AB19: 0 | AC19: 0 | AD19: 0 | AE19: 0 | AF19: 0 | AG19: 0 | AH19: 0 | AI19: 0 | AJ19: 0 | AK19: 0 | AL19: 0 | AM19: 0 | AN19: 0 | AO19: 0 | AP19: 0 | AQ19: 0 | AR19: 0 | AS19: 0
B20: 女
A21: 総 数 | B21: =SUM(C21:AS21) -> 6504 | C21: =SUM(C22:C27) -> 3 | D21: 0 | E21: 4 | F21: 2 | G21: 12 | H21: 24 | I21: 59 | J21: 85 | K21: 124 | L21: 135 | M21: 160 | N21: 186 | O21: 274 | P21: 337 | Q21: 402 | R21: 428 | S21: 437 | T21: 507 | U21: 426 | V21: 492 | W21: 474 | X21: 410 | Y21: 380 | Z21: 324 | AA21: 250 | AB21: 200 | AC21: 154 | AD21: 97 | AE21: 64 | AF21: 37 | AG21: 9 | AH21: 5 | AI21: 3 | AJ21: 0 | AK21: 0 | AL21: 0 | AM21: 0 | AN21: 0 | AO21: 0 | AP21: 0 | AQ21: 0 | AR21: 0 | AS21: 0
A22: 第 1 子 | B22: =SUM(C22:AS22) -> 3276 | C22: 3 | D22: 0 | E22: 4 | F22: 2 | G22: 11 | H22: 23 | I22: 50 | J22: 65 | K22: 87 | L22: 92 | M22: 111 | N22: 121 | O22: 189 | P22: 227 | Q22: 251 | R22: 259 | S22: 248 | T22: 263 | U22: 191 | V22: 197 | W22: 189 | X22: 160 | Y22: 137 | Z22: 111 | AA22: 85 | AB22: 77 | AC22: 49 | AD22: 24 | AE22: 26 | AF22: 14 | AG22: 5 | AH22: 3 | AI22: 2 | AJ22: 0 | AK22: 0 | AL22: 0 | AM22: 0 | AN22: 0 | AO22: 0 | AP22: 0 | AQ22: 0 | AR22: 0 | AS22: 0
A23: 第 2 子 | B23: 2355 | C23: 0 | D23: 0 | E23: 0 | F23: 0 | G23: 1 | H23: 1 | I23: 9 | J23: 19 | K23: 34 | L23: 36 | M23: 43 | N23: 46 | O23: 70 | P23: 80 | Q23: 125 | R23: 139 | S23: 154 | T23: 188 | U23: 170 | V23: 195 | W23: 199 | X23: 173 | Y23: 165 | Z23: 142 | AA23: 110 | AB23: 80 | AC23: 72 | AD23: 48 | AE23: 33 | AF23: 19 | AG23: 2 | AH23: 1 | AI23: 1 | AJ23: 0 | AK23: 0 | AL23: 0 | AM23: 0 | AN23: 0 | AO23: 0 | AP23: 0 | AQ23: 0 | AR23: 0 | AS23: 0
A24: 第 3 子 | B24: 674 | C24: 0 | D24: 0 | E24: 0 | F24: 0 | G24: 0 | H24: 0 | I24: 0 | J24: 1 | K24: 3 | L24: 7 | M24: 5 | N24: 16 | O24: 14 | P24: 21 | Q24: 20 | R24: 23 | S24: 27 | T24: 47 | U24: 53 | V24: 73 | W24: 66 | X24: 56 | Y24: 59 | Z24: 55 | AA24: 47 | AB24: 32 | AC24: 23 | AD24: 16 | AE24: 4 | AF24: 3 | AG24: 2 | AH24: 1 | AI24: 0 | AJ24: 0 | AK24: 0 | AL24: 0 | AM24: 0 | AN24: 0 | AO24: 0 | AP24: 0 | AQ24: 0 | AR24: 0 | AS24: 0
A25: 第 4 子 | B25: 147 | C25: 0 | D25: 0 | E25: 0 | F25: 0 | G25: 0 | H25: 0 | I25: 0 | J25: 0 | K25: 0 | L25: 0 | M25: 1 | N25: 2 | O25: 1 | P25: 6 | Q25: 6 | R25: 6 | S25: 6 | T25: 7 | U25: 8 | V25: 21 | W25: 14 | X25: 16 | Y25: 16 | Z25: 10 | AA25: 5 | AB25: 8 | AC25: 5 | AD25: 7 | AE25: 1 | AF25: 1 | AG25: 0 | AH25: 0 | AI25: 0 | AJ25: 0 | AK25: 0 | AL25: 0 | AM25: 0 | AN25: 0 | AO25: 0 | AP25: 0 | AQ25: 0 | AR25: 0 | AS25: 0
A26: 第 5 子 ～ | B26: 52 | C26: 0 | D26: 0 | E26: 0 | F26: 0 | G26: 0 | H26: 0 | I26: 0 | J26: 0 | K26: 0 | L26: 0 | M26: 0 | N26: 1 | O26: 0 | P26: 3 | Q26: 0 | R26: 1 | S26: 2 | T26: 2 | U26: 4 | V26: 6 | W26: 6 | X26: 5 | Y26: 3 | Z26: 6 | AA26: 3 | AB26: 3 | AC26: 5 | AD26: 2 | AE26: 0 | AF26: 0 | AG26: 0 | AH26: 0 | AI26: 0 | AJ26: 0 | AK26: 0 | AL26: 0 | AM26: 0 | AN26: 0 | AO26: 0 | AP26: 0 | AQ26: 0 | AR26: 0 | AS26: 0
A27: 不 詳 | B27: 0 | C27: 0 | D27: 0 | E27: 0 | F27: 0 | G27: 0 | H27: 0 | I27: 0 | J27: 0 | K27: 0 | L27: 0 | M27: 0 | N27: 0 | O27: 0 | P27: 0 | Q27: 0 | R27: 0 | S27: 0 | T27: 0 | U27: 0 | V27: 0 | W27: 0 | X27: 0 | Y27: 0 | Z27: 0 | AA27: 0 | AB27: 0 | AC27: 0 | AD27: 0 | AE27: 0 | AF27: 0 | AG27: 0 | AH27: 0 | AI27: 0 | AJ27: 0 | AK27: 0 | AL27: 0 | AM27: 0 | AN27: 0 | AO27: 0 | AP27: 0 | AQ27: 0 | AR27: 0 | AS27: 0
B48: 0

Sheet 区・母の年齢階級，非嫡出子出生数
A1: ＊ 嫡出子-嫡出子でない子・母の年齢（５歳階級）･性別にみた区別出生数及び割合
A3: 嫡出子 | N3: 嫡出子でない子
A4: 区・性 | C4: 総数 | D4: ～14歳 | E4: 15～19 | F4: 20～24 | G4: 25～29 | H4: 30～34 | I4: 35～39 | J4: 40～44 | K4: 45～ | L4: 不詳 | N4: 区・性 | P4: 総数 | Q4: ～14歳 | R4: 15～19 | S4: 20～24 | T4: 25～29 | U4: 30～34 | V4: 35～39 | W4: 40～44 | X4: 45～ | Y4: 不詳
C5: 実数 | P5: 実数
A6: 総 数 | C6: =SUM(C9,C12,C15,C18,C21,C24,C27,C30,C33,C36) -> 0 | D6: 0 | E6: 0 | F6: 0 | G6: 0 | H6: 0 | I6: 0 | J6: 0 | K6: 0 | L6: 0 | N6: 総 数 | P6: =SUM(P9,P12,P15,P18,P21,P24,P27,P30,P33,P36) -> 0 | Q6: 0 | R6: 0 | S6: 0 | T6: 0 | U6: 0 | V6: 0 | W6: 0 | X6: 0 | Y6: 0
B7: 男 | C7: =SUM(C10,C13,C16,C19,C22,C25,C28,C31,C34,C37) -> 0 | D7: 0 | E7: 0 | F7: 0 | G7: 0 | H7: 0 | I7: 0 | J7: 0 | K7: 0 | L7: 0 | O7: 男 | P7: =SUM(P10,P13,P16,P19,P22,P25,P28,P31,P34,P37) -> 0 | Q7: 0 | R7: 0 | S7: 0 | T7: 0 | U7: 0 | V7: 0 | W7: 0 | X7: 0 | Y7: 0 | AA7: データの個数 : 客体区分 | AC7: 嫡否区分 | AD7: 母の年齢区分
B8: 女 | C8: =SUM(C11,C14,C17,C20,C23,C26,C29,C32,C35,C38) -> 0 | D8: 0 | E8: 0 | F8: 0 | G8: 0 | H8: 0 | I8: 0 | J8: 0 | K8: 0 | L8: 0 | O8: 女 | P8: =SUM(P11,P14,P17,P20,P23,P26,P29,P32,P35,P38) -> 0 | Q8: 0 | R8: 0 | S8: 0 | T8: 0 | U8: 0 | V8: 0 | W8: 0 | X8: 0 | Y8: 0 | AC8: 嫡出子 | AJ8: 嫡出子 計 | AK8: 嫡出でない子 | AR8: 嫡出でない子 計 | AS8: 総計
A9: 中 央 | C9: =SUM(D9:L9) -> 0 | D9: =SUM(D10:D11) -> 0 | E9: 0 | F9: 0 | G9: 0 | H9: 0 | I9: 0 | J9: 0 | K9: 0 | L9: 0 | N9: 中 央 | P9: =SUM(Q9:Y9) -> 0 | Q9: =SUM(Q10:Q11) -> 0 | R9: 0 | S9: 0 | T9: 0 | U9: 0 | V9: 0 | W9: 0 | X9: 0 | Y9: 0 | AA9: 区コード | AB9: 性別区分 | AC9: 15～19 | AD9: 20～24 | AE9: 25～29 | AF9: 30～34 | AG9: 35～39 | AH9: 40～44 | AI9: 45～49 | AK9: 15～19 | AL9: 20～24 | AM9: 25～29 | AN9: 30～34 | AO9: 35～39 | AP9: 40～44 | AQ9: 45～49
B10: 男 | C10: 0 | O10: 男 | P10: 0 | AA10: 10 中央区 | AB10: 1男 | AC10: 8 | AD10: 69 | AE10: 205 | AF10: 257 | AG10: 94 | AH10: 14 | AI10: 0 | AJ10: 647 | AK10: 0 | AL10: 6 | AM10: 5 | AN10: 10 | AO10: 6 | AP10: 0 | AQ10: 0 | AR10: 27 | AS10: 674
B11: 女 | C11: 0 | O11: 女 | P11: 0 | AB11: 2女 | AC11: 10 | AD11: 82 | AE11: 228 | AF11: 241 | AG11: 105 | AH11: 9 | AI11: 1 | AJ11: 676 | AK11: 1 | AL11: 8 | AM11: 8 | AN11: 5 | AO11: 7 | AP11: 0 | AQ11: 1 | AR11: 30 | AS11: 706
A12: 北 | C12: 0 | D12: =SUM(D13:D14) -> 0 | E12: 0 | F12: 0 | G12: 0 | H12: 0 | I12: 0 | J12: 0 | K12: 0 | L12: 0 | N12: 北 | P12: 0 | AA12: 10 中央区 計 | AC12: 18 | AD12: 151 | AE12: 433 | AF12: 498 | AG12: 199 | AH12: 23 | AI12: 1 | AJ12: 1323 | AK12: 1 | AL12: 14 | AM12: 13 | AN12: 15 | AO12: 13 | AP12: 0 | AQ12: 1 | AR12: 57 | AS12: 1380
B13: 男 | C13: 0 | O13: 男 | P13: 0 | AA13: 20 北区 | AB13: 1男 | AC13: 16 | AD13: 157 | AE13: 360 | AF13: 360 | AG13: 110 | AH13: 10 | AI13: 0 | AJ13: 1013 | AK13: 2 | AL13: 5 | AM13: 6 | AN13: 7 | AO13: 3 | AP13: 1 | AQ13: 0 | AR13: 24 | AS13: 1037
B14: 女 | C14: 0 | O14: 女 | P14: 0 | AB14: 2女 | AC14: 17 | AD14: 127 | AE14: 338 | AF14: 303 | AG14: 126 | AH14: 14 | AI14: 0 | AJ14: 925 | AK14: 6 | AL14: 1 | AM14: 5 | AN14: 3 | AO14: 3 | AP14: 2 | AQ14: 0 | AR14: 20 | AS14: 945
A15: 東 | C15: 0 | D15: =SUM(D16:D17) -> 0 | E15: 0 | F15: 0 | G15: 0 | H15: 0 | I15: 0 | J15: 0 | K15: 0 | L15: 0 | N15: 東 | P15: 0 | Q15: =SUM(Q16:Q17) -> 0 | R15: 0 | S15: 0 | T15: 0 | U15: 0 | V15: 0 | W15: 0 | X15: 0 | Y15: 0 | AA15: 20 北区 計 | AC15: 33 | AD15: 284 | AE15: 698 | AF15: 663 | AG15: 236 | AH15: 24 | AI15: 0 | AJ15: 1938 | AK15: 8 | AL15: 6 | AM15: 11 | AN15: 10 | AO15: 6 | AP15: 3 | AQ15: 0 | AR15: 44 | AS15: 1982
B16: 男 | C16: 0 | O16: 男 | P16: 0 | AA16: 30 東区 | AB16: 1男 | AC16: 17 | AD16: 176 | AE16: 496 | AF16: 395 | AG16: 128 | AH16: 9 | AI16: 0 | AJ16: 1221 | AK16: 0 | AL16: 2 | AM16: 10 | AN16: 6 | AO16: 7 | AP16: 1 | AQ16: 0 | AR16: 26 | AS16: 1247
B17: 女 | C17: 0 | O17: 女 | P17: 0 | AB17: 2女 | AC17: 16 | AD17: 152 | AE17: 487 | AF17: 399 | AG17: 141 | AH17: 14 | AI17: 0 | AJ17: 1209 | AK17: 8 | AL17: 6 | AM17: 10 | AN17: 9 | AO17: 5 | AP17: 0 | AQ17: 0 | AR17: 38 | AS17: 1247
A18: 白 石 | C18: 0 | D18: =SUM(D19:D20) -> 0 | E18: 0 | F18: 0 | G18: 0 | H18: 0 | I18: 0 | J18: 0 | K18: 0 | L18: 0 | N18: 白 石 | P18: 0 | Q18: =SUM(Q19:Q20) -> 0 | R18: 0 | S18: 0 | T18: 0 | U18: 0 | V18: 0 | W18: 0 | X18: 0 | Y18: 0 | AA18: 30 東区 計 | AC18: 33 | AD18: 328 | AE18: 983 | AF18: 794 | AG18: 269 | AH18: 23 | AI18: 0 | AJ18: 2430 | AK18: 8 | AL18: 8 | AM18: 20 | AN18: 15 | AO18: 12 | AP18: 1 | AQ18: 0 | AR18: 64 | AS18: 2494
B19: 男 | C19: 0 | O19: 男 | P19: 0 | AA19: 40 白石区 | AB19: 1男 | AC19: 15 | AD19: 164 | AE19: 386 | AF19: 322 | AG19: 94 | AH19: 11 | AI19: 1 | AJ19: 993 | AK19: 3 | AL19: 6 | AM19: 9 | AN19: 7 | AO19: 2 | AP19: 1 | AQ19: 0 | AR19: 28 | AS19: 1021
B20: 女 | C20: 0 | O20: 女 | P20: 0 | AB20: 2女 | AC20: 17 | AD20: 148 | AE20: 378 | AF20: 302 | AG20: 85 | AH20: 15 | AI20: 0 | AJ20: 945 | AK20: 2 | AL20: 7 | AM20: 13 | AN20: 5 | AO20: 4 | AP20: 0 | AQ20: 0 | AR20: 31 | AS20: 976
A21: 厚 別 | C21: 0 | D21: =SUM(D22:D23) -> 0 | E21: 0 | F21: 0 | G21: 0 | H21: 0 | I21: 0 | J21: 0 | K21: 0 | L21: 0 | N21: 厚 別 | P21: 0 | Q21: =SUM(Q22:Q23) -> 0 | R21: 0 | S21: 0 | T21: 0 | U21: 0 | V21: 0 | W21: 0 | X21: 0 | Y21: 0 | AA21: 40 白石区 計 | AC21: 32 | AD21: 312 | AE21: 764 | AF21: 624 | AG21: 179 | AH21: 26 | AI21: 1 | AJ21: 1938 | AK21: 5 | AL21: 13 | AM21: 22 | AN21: 12 | AO21: 6 | AP21: 1 | AQ21: 0 | AR21: 59 | AS21: 1997
B22: 男 | C22: 0 | O22: 男 | P22: 0 | AA22: 45 厚別区 | AB22: 1男 | AC22: 3 | AD22: 64 | AE22: 181 | AF22: 162 | AG22: 58 | AH22: 7 | AI22: 0 | AJ22: 475 | AK22: 2 | AL22: 3 | AM22: 3 | AN22: 2 | AO22: 1 | AP22: 1 | AQ22: 0 | AR22: 12 | AS22: 487
B23: 女 | C23: 0 | O23: 女 | P23: 0 | AB23: 2女 | AC23: 2 | AD23: 67 | AE23: 204 | AF23: 181 | AG23: 67 | AH23: 12 | AI23: 0 | AJ23: 533 | AK23: 2 | AL23: 3 | AM23: 1 | AN23: 7 | AO23: 1 | AP23: 0 | AQ23: 0 | AR23: 14 | AS23: 547
A24: 豊 平 | C24: 0 | D24: =SUM(D25:D26) -> 0 | E24: 0 | F24: 0 | G24: 0 | H24: 0 | I24: 0 | J24: 0 | K24: 0 | L24: 0 | N24: 豊 平 | P24: 0 | Q24: =SUM(Q25:Q26) -> 0 | R24: 0 | S24: 0 | T24: 0 | U24: 0 | V24: 0 | W24: 0 | X24: 0 | Y24: 0 | AA24: 45 厚別区 計 | AC24: 5 | AD24: 131 | AE24: 385 | AF24: 343 | AG24: 125 | AH24: 19 | AI24: 0 | AJ24: 1008 | AK24: 4 | AL24: 6 | AM24: 4 | AN24: 9 | AO24: 2 | AP24: 1 | AQ24: 0 | AR24: 26 | AS24: 1034
B25: 男 | C25: 0 | O25: 男 | P25: 0 | AA25: 50 豊平区 | AB25: 1男 | AC25: 14 | AD25: 143 | AE25: 331 | AF25: 292 | AG25: 106 | AH25: 13 | AI25: 0 | AJ25: 899 | AK25: 2 | AL25: 4 | AM25: 5 | AN25: 7 | AO25: 5 | AP25: 1 | AQ25: 0 | AR25: 24 | AS25: 923
B26: 女 | C26: 0 | O26: 女 | P26: 0 | AB26: 2女 | AC26: 8 | AD26: 101 | AE26: 317 | AF26: 283 | AG26: 105 | AH26: 12 | AI26: 0 | AJ26: 826 | AK26: 4 | AL26: 4 | AM26: 5 | AN26: 4 | AO26: 6 | AP26: 1 | AQ26: 0 | AR26: 24 | AS26: 850
A27: 清 田 | C27: 0 | D27: =SUM(D28:D29) -> 0 | E27: 0 | F27: 0 | G27: 0 | H27: 0 | I27: 0 | J27: 0 | K27: 0 | L27: 0 | N27: 清 田 | P27: 0 | Q27: =SUM(Q28:Q29) -> 0 | R27: 0 | S27: 0 | T27: 0 | U27: 0 | V27: 0 | W27: 0 | X27: 0 | Y27: 0 | AA27: 50 豊平区 計 | AC27: 22 | AD27: 244 | AE27: 648 | AF27: 575 | AG27: 211 | AH27: 25 | AI27: 0 | AJ27: 1725 | AK27: 6 | AL27: 8 | AM27: 10 | AN27: 11 | AO27: 11 | AP27: 2 | AQ27: 0 | AR27: 48 | AS27: 1773
B28: 男 | C28: 0 | O28: 男 | P28: 0 | AA28: 55 清田区 | AB28: 1男 | AC28: 3 | AD28: 54 | AE28: 142 | AF28: 135 | AG28: 70 | AH28: 6 | AI28: 0 | AJ28: 410 | AK28: 1 | AL28: 2 | AM28: 0 | AN28: 1 | AO28: 0 | AP28: 0 | AQ28: 0 | AR28: 4 | AS28: 414
B29: 女 | C29: 0 | O29: 女 | P29: 0 | AB29: 2女 | AC29: 7 | AD29: 52 | AE29: 142 | AF29: 140 | AG29: 63 | AH29: 4 | AI29: 0 | AJ29: 408 | AK29: 0 | AL29: 0 | AM29: 2 | AN29: 0 | AO29: 0 | AP29: 0 | AQ29: 0 | AR29: 2 | AS29: 410
A30: 南 | C30: 0 | D30: =SUM(D31:D32) -> 0 | E30: 0 | F30: 0 | G30: 0 | H30: 0 | I30: 0 | J30: 0 | K30: 0 | L30: 0 | N30: 南 | P30: 0 | Q30: =SUM(Q31:Q32) -> 0 | R30: 0 | S30: 0 | T30: 0 | U30: 0 | V30: 0 | W30: 0 | X30: 0 | Y30: 0 | AA30: 55 清田区 計 | AC30: 10 | AD30: 106 | AE30: 284 | AF30: 275 | AG30: 133 | AH30: 10 | AI30: 0 | AJ30: 818 | AK30: 1 | AL30: 2 | AM30: 2 | AN30: 1 | AO30: 0 | AP30: 0 | AQ30: 0 | AR30: 6 | AS30: 824
B31: 男 | C31: 0 | O31: 男 | P31: 0 | AA31: 60 南区 | AB31: 1男 | AC31: 8 | AD31: 85 | AE31: 182 | AF31: 186 | AG31: 79 | AH31: 9 | AI31: 0 | AJ31: 549 | AK31: 1 | AL31: 2 | AM31: 3 | AN31: 3 | AO31: 1 | AP31: 0 | AQ31: 1 | AR31: 11 | AS31: 560
B32: 女 | C32: 0 | O32: 女 | P32: 0 | AB32: 2女 | AC32: 5 | AD32: 74 | AE32: 180 | AF32: 178 | AG32: 66 | AH32: 9 | AI32: 1 | AJ32: 513 | AK32: 2 | AL32: 2 | AM32: 2 | AN32: 4 | AO32: 2 | AP32: 0 | AQ32: 0 | AR32: 12 | AS32: 525
A33: 西 | C33: 0 | D33: =SUM(D34:D35) -> 0 | E33: 0 | F33: 0 | G33: 0 | H33: 0 | I33: 0 | J33: 0 | K33: 0 | L33: 0 | N33: 西 | P33: 0 | Q33: =SUM(Q34:Q35) -> 0 | R33: 0 | S33: 0 | T33: 0 | U33: 0 | V33: 0 | W33: 0 | X33: 0 | Y33: 0 | AA33: 60 南区 計 | AC33: 13 | AD33: 159 | AE33: 362 | AF33: 364 | AG33: 145 | AH33: 18 | AI33: 1 | AJ33: 1062 | AK33: 3 | AL33: 4 | AM33: 5 | AN33: 7 | AO33: 3 | AP33: 0 | AQ33: 1 | AR33: 23 | AS33: 1085
B34: 男 | C34: 0 | O34: 男 | P34: 0 | AA34: 70 西区 | AB34: 1男 | AC34: 11 | AD34: 116 | AE34: 360 | AF34: 304 | AG34: 98 | AH34: 12 | AI34: 0 | AJ34: 901 | AK34: 2 | AL34: 2 | AM34: 2 | AN34: 2 | AO34: 4 | AP34: 1 | AQ34: 0 | AR34: 13 | AS34: 914
B35: 女 | C35: 0 | O35: 女 | P35: 0 | AB35: 2女 | AC35: 10 | AD35: 99 | AE35: 317 | AF35: 299 | AG35: 118 | AH35: 13 | AI35: 1 | AJ35: 857 | AK35: 3 | AL35: 5 | AM35: 3 | AN35: 4 | AO35: 1 | AP35: 2 | AQ35: 0 | AR35: 18 | AS35: 875
A36: 手 稲 | C36: 0 | D36: =SUM(D37:D38) -> 0 | E36: 0 | F36: 0 | G36: 0 | H36: 0 | I36: 0 | J36: 0 | K36: 0 | L36: 0 | N36: 手 稲 | P36: 0 | Q36: =SUM(Q37:Q38) -> 0 | R36: 0 | S36: 0 | T36: 0 | U36: 0 | V36: 0 | W36: 0 | X36: 0 | Y36: 0 | AA36: 70 西区 計 | AC36: 21 | AD36: 215 | AE36: 677 | AF36: 603 | AG36: 216 | AH36: 25 | AI36: 1 | AJ36: 1758 | AK36: 5 | AL36: 7 | AM36: 5 | AN36: 6 | AO36: 5 | AP36: 3 | AQ36: 0 | AR36: 31 | AS36: 1789
B37: 男 | C37: 0 | O37: 男 | P37: 0 | AA37: 75 手稲区 | AB37: 1男 | AC37: 7 | AD37: 74 | AE37: 177 | AF37: 154 | AG37: 51 | AH37: 9 | AI37: 0 | AJ37: 472 | AK37: 0 | AL37: 3 | AM37: 3 | AN37: 2 | AO37: 0 | AP37: 0 | AQ37: 1 | AR37: 9 | AS37: 481
B38: 女 | C38: 0 | O38: 女 | P38: 0 | AB38: 2女 | AC38: 10 | AD38: 67 | AE38: 169 | AF38: 147 | AG38: 69 | AH38: 5 | AI38: 0 | AJ38: 467 | AK38: 1 | AL38: 2 | AM38: 0 | AN38: 1 | AO38: 2 | AP38: 0 | AQ38: 0 | AR38: 6 | AS38: 473
C39: 出 生 数 に 対 す る 割 合 （％) | P39: 出 生 数 に 対 す る 割 合 （％) | AA39: 75 手稲区 計 | AC39: 17 | AD39: 141 | AE39: 346 | AF39: 301 | AG39: 120 | AH39: 14 | AI39: 0 | AJ39: 939 | AK39: 1 | AL39: 5 | AM39: 3 | AN39: 3 | AO39: 2 | AP39: 0 | AQ39: 1 | AR39: 15 | AS39: 954
A40: 総数 | C40: =SUM(D40:L40) ->  | D40: =D6/$C6*100 ->  | E40: =E6/$C6*100 ->  | N40: 総数 | P40: =SUM(Q40:Y40) ->  | Q40: =Q6/$P6*100 ->  | AA40: 総計 | AC40: 204 | AD40: 2071 | AE40: 5580 | AF40: 5040 | AG40: 1833 | AH40: 207 | AI40: 4 | AJ40: 14939 | AK40: 42 | AL40: 73 | AM40: 95 | AN40: 89 | AO40: 60 | AP40: 11 | AQ40: 3 | AR40: 373 | AS40: 15312
A41: 中央 | C41: =SUM(D41:L41) ->  | D41: =D7/$C7*100 ->  | N41: 中央 | P41: =SUM(Q41:Y41) ->  | Q41: =Q7/$P7*100 -> 
A42: 北 | N42: 北 | Q42: =Q8/$P8*100 -> 
A43: 東 | N43: 東 | Q43: =Q9/$P9*100 -> 
A44: 白石 | N44: 白石 | Q44: =Q10/$P10*100 -> 
A45: 厚別 | N45: 厚別 | Q45: =Q11/$P11*100 -> 
A46: 豊平 | N46: 豊平 | Q46: =Q12/$P12*100 -> 
A47: 清田 | N47: 清田 | Q47: =Q13/$P13*100 -> 
A48: 南 | N48: 南 | Q48: =Q14/$P14*100 -> 
A49: 西 | N49: 西 | Q49: =Q15/$P15*100 -> 
A50: 手稲 | N50: 手稲 | Q50: =Q16/$P16*100 -> 

Sheet 区別合計特殊出生率
A1: 区別合計特殊出生率
A3: 区 | B3: 合計特殊 出生率 | E3: =[1]人口!B9 -> (国調年)日本人推計人口 (国調年以外)国調ベース人口 | F3: =[1]人口!C9 -> １月 | G3: =[1]人口!D9 -> ２月 | H3: =[1]人口!E9 -> ３月 | I3: =[1]人口!F9 -> ４月 | J3: =[1]人口!G9 -> ５月 | K3: =[1]人口!H9 -> ６月 | L3: =[1]人口!I9 -> ７月 | M3: =[1]人口!J9 -> ８月 | N3: =[1]人口!K9 -> ９月 | O3: =[1]人口!L9 -> １０月 | P3: =[1]人口!M9 -> １１月 | Q3: =[1]人口!N9 -> １２月 | S3: 区 | T3: 総数 | U3: 15～19 | V3: 20～24 | W3: 25～29 | X3: 30～34 | Y3: 35～39 | Z3: 40～44 | AA3: 45～49
A4: 総数 | B4: =T4 -> 1.137415445 | E4: =[1]人口!B10 -> 1965940 | F4: =[1]人口!C10 -> 1963626 | G4: =[1]人口!D10 -> 1962987 | H4: =[1]人口!E10 -> 1962570 | I4: =[1]人口!F10 -> 1961225 | J4: =[1]人口!G10 -> 1965343 | K4: =[1]人口!H10 -> 1965889 | L4: =[1]人口!I10 -> 1965784 | M4: =[1]人口!J10 -> 1966073 | N4: =[1]人口!K10 -> 1966174 | O4: =[1]人口!L10 -> 1965940 | P4: =[1]人口!M10 -> 1966523 | Q4: =[1]人口!N10 -> 1966717 | S4: 総数 | T4: =SUM(U4:AA4) -> 1.137415445 | U4: =U17/U30*5 -> 0.01261689179 | V4: =V17/V30*5 -> 0.1147350386 | W4: 0.3089604234 | X4: 0.4042632317 | Y4: 0.2468550815 | Z4: 0.04872677401 | AA4: 0.001258004051
A5: 中央 | B5: =T5 -> 1.034397787 | E5: =[1]人口!B11 -> 242916 | F5: =[1]人口!C11 -> 241575 | G5: =[1]人口!D11 -> 241561 | H5: =[1]人口!E11 -> 241542 | I5: =[1]人口!F11 -> 241468 | J5: =[1]人口!G11 -> 242331 | K5: =[1]人口!H11 -> 242596 | L5: =[1]人口!I11 -> 242683 | M5: =[1]人口!J11 -> 242922 | N5: =[1]人口!K11 -> 243054 | O5: =[1]人口!L11 -> 242916 | P5: =[1]人口!M11 -> 243105 | Q5: =[1]人口!N11 -> 243091 | S5: 中央 | T5: =SUM(U5:AA5) -> 1.034397787 | U5: 0.01025524157 | V5: 0.09037440826 | W5: 0.2370342864 | X5: 0.3633034026 | Y5: 0.2605917956 | Z5: 0.07192807193 | AA5: 0.0009105809506
A6: 北 | B6: 1.13844071 | E6: =[1]人口!B12 -> 288114 | F6: =[1]人口!C12 -> 287867 | G6: =[1]人口!D12 -> 287919 | H6: =[1]人口!E12 -> 287868 | I6: =[1]人口!F12 -> 287097 | J6: =[1]人口!G12 -> 287651 | K6: =[1]人口!H12 -> 287724 | L6: =[1]人口!I12 -> 287717 | M6: =[1]人口!J12 -> 287907 | N6: =[1]人口!K12 -> 287874 | O6: =[1]人口!L12 -> 288114 | P6: =[1]人口!M12 -> 288179 | Q6: =[1]人口!N12 -> 288345 | S6: 北 | T6: 1.13844071 | U6: 0.01015625 | V6: 0.1071572988 | W6: 0.3235169192 | X6: 0.3978244928 | Y6: 0.2514792899 | Z6: 0.0474211905 | AA6: 0.0008852691218
A7: 東 | B7: 1.218403282 | E7: =[1]人口!B13 -> 264183 | F7: =[1]人口!C13 -> 264382 | G7: =[1]人口!D13 -> 264221 | H7: =[1]人口!E13 -> 263958 | I7: =[1]人口!F13 -> 263845 | J7: =[1]人口!G13 -> 264250 | K7: =[1]人口!H13 -> 264337 | L7: =[1]人口!I13 -> 264281 | M7: =[1]人口!J13 -> 264234 | N7: =[1]人口!K13 -> 264188 | O7: =[1]人口!L13 -> 264183 | P7: =[1]人口!M13 -> 264125 | Q7: =[1]人口!N13 -> 264116 | S7: 東 | T7: 1.218403282 | U7: 0.02485730068 | V7: 0.1313990582 | W7: 0.343441002 | X7: 0.4331847211 | Y7: 0.2350450548 | Z7: 0.04858614323 | AA7: 0.00189000189
A8: 白石 | B8: 1.237666519 | E8: =[1]人口!B14 -> 211496 | F8: =[1]人口!C14 -> 210754 | G8: =[1]人口!D14 -> 210709 | H8: =[1]人口!E14 -> 210721 | I8: =[1]人口!F14 -> 210690 | J8: =[1]人口!G14 -> 211051 | K8: =[1]人口!H14 -> 211180 | L8: =[1]人口!I14 -> 211220 | M8: =[1]人口!J14 -> 211381 | N8: =[1]人口!K14 -> 211492 | O8: =[1]人口!L14 -> 211496 | P8: =[1]人口!M14 -> 211681 | Q8: =[1]人口!N14 -> 211724 | S8: 白石 | T8: 1.237666519 | U8: 0.01252191335 | V8: 0.1666063021 | W8: 0.3354169843 | X8: 0.4253567508 | Y8: 0.2530971094 | Z8: 0.04410911201 | AA8: 0.000558347292
A9: 厚別 | B9: 1.046389276 | E9: =[1]人口!B15 -> 126230 | F9: =[1]人口!C15 -> 126355 | G9: =[1]人口!D15 -> 126268 | H9: =[1]人口!E15 -> 126294 | I9: =[1]人口!F15 -> 126225 | J9: =[1]人口!G15 -> 126393 | K9: =[1]人口!H15 -> 126389 | L9: =[1]人口!I15 -> 126306 | M9: =[1]人口!J15 -> 126270 | N9: =[1]人口!K15 -> 126239 | O9: =[1]人口!L15 -> 126230 | P9: =[1]人口!M15 -> 126211 | Q9: =[1]人口!N15 -> 126160 | S9: 厚別 | T9: 1.046389276 | U9: 0.01035554021 | V9: 0.0745279894 | W9: 0.2675276753 | X9: 0.3982586262 | Y9: 0.248015873 | Z9: 0.04770357222 | AA9: 0
A10: 豊平 | B10: 1.105063051 | E10: =[1]人口!B16 -> 222042 | F10: =[1]人口!C16 -> 221277 | G10: =[1]人口!D16 -> 221270 | H10: =[1]人口!E16 -> 221107 | I10: =[1]人口!F16 -> 221381 | J10: =[1]人口!G16 -> 221868 | K10: =[1]人口!H16 -> 221917 | L10: =[1]人口!I16 -> 221945 | M10: =[1]人口!J16 -> 221923 | N10: =[1]人口!K16 -> 221940 | O10: =[1]人口!L16 -> 222042 | P10: =[1]人口!M16 -> 222086 | Q10: =[1]人口!N16 -> 222270 | S10: 豊平 | T10: 1.105063051 | U10: 0.02122641509 | V10: 0.119165023 | W10: 0.3037755916 | X10: 0.3986837109 | Y10: 0.2170695609 | Z10: 0.04459749351 | AA10: 0.0005452562704
A11: 清田 | B11: 1.191998278 | E11: =[1]人口!B17 -> 115272 | F11: =[1]人口!C17 -> 115672 | G11: =[1]人口!D17 -> 115655 | H11: =[1]人口!E17 -> 115666 | I11: =[1]人口!F17 -> 115471 | J11: =[1]人口!G17 -> 115415 | K11: =[1]人口!H17 -> 115344 | L11: =[1]人口!I17 -> 115338 | M11: =[1]人口!J17 -> 115362 | N11: =[1]人口!K17 -> 115314 | O11: =[1]人口!L17 -> 115272 | P11: =[1]人口!M17 -> 115250 | Q11: =[1]人口!N17 -> 115185 | S11: 清田 | T11: 1.191998278 | U11: 0.005265005265 | V11: 0.1158065827 | W11: 0.3341523342 | X11: 0.4091778203 | Y11: 0.2782608696 | Z11: 0.04595804855 | AA11: 0.003377617654
A12: 南 | B12: 1.025941213 | E12: =[1]人口!B18 -> 137851 | F12: =[1]人口!C18 -> 138865 | G12: =[1]人口!D18 -> 138522 | H12: =[1]人口!E18 -> 138417 | I12: =[1]人口!F18 -> 138078 | J12: =[1]人口!G18 -> 138868 | K12: =[1]人口!H18 -> 138775 | L12: =[1]人口!I18 -> 138763 | M12: =[1]人口!J18 -> 138309 | N12: =[1]人口!K18 -> 138205 | O12: =[1]人口!L18 -> 137851 | P12: =[1]人口!M18 -> 137848 | Q12: =[1]人口!N18 -> 137766 | S12: 南 | T12: 1.025941213 | U12: 0.008799718409 | V12: 0.08240834174 | W12: 0.3027980069 | X12: 0.3769650305 | Y12: 0.2121048365 | Z12: 0.04077933847 | AA12: 0.002085940759
A13: 西 | B13: 1.192775918 | E13: =[1]人口!B19 -> 215942 | F13: =[1]人口!C19 -> 214956 | G13: =[1]人口!D19 -> 214993 | H13: =[1]人口!E19 -> 215070 | I13: =[1]人口!F19 -> 215208 | J13: =[1]人口!G19 -> 215645 | K13: =[1]人口!H19 -> 215744 | L13: =[1]人口!I19 -> 215732 | M13: =[1]人口!J19 -> 215856 | N13: =[1]人口!K19 -> 215926 | O13: =[1]人口!L19 -> 215942 | P13: =[1]人口!M19 -> 216124 | Q13: =[1]人口!N19 -> 216116 | S13: 西 | T13: 1.192775918 | U13: 0.007045561296 | V13: 0.1097114994 | W13: 0.3355286579 | X13: 0.4202388242 | Y13: 0.2757745726 | Z13: 0.04278513656 | AA13: 0.001691665727
A14: 手稲 | B14: 1.139633785 | E14: =[1]人口!B20 -> 141894 | F14: =[1]人口!C20 -> 141923 | G14: =[1]人口!D20 -> 141869 | H14: =[1]人口!E20 -> 141927 | I14: =[1]人口!F20 -> 141762 | J14: =[1]人口!G20 -> 141871 | K14: =[1]人口!H20 -> 141883 | L14: =[1]人口!I20 -> 141799 | M14: =[1]人口!J20 -> 141909 | N14: =[1]人口!K20 -> 141942 | O14: =[1]人口!L20 -> 141894 | P14: =[1]人口!M20 -> 141914 | Q14: =[1]人口!N20 -> 141944 | S14: 手稲 | T14: 1.139633785 | U14: 0.008 | V14: 0.1285807292 | W14: 0.3126135951 | X14: 0.4141607436 | Y14: 0.2327704245 | Z14: 0.04157218443 | AA14: 0.001936108422
E15: =[1]人口!B21 -> 365 | F15: =[1]人口!C21 -> 31 | G15: =[1]人口!D21 -> 28 | H15: =[1]人口!E21 -> 31 | I15: =[1]人口!F21 -> 30 | J15: =[1]人口!G21 -> 31 | K15: =[1]人口!H21 -> 30 | L15: =[1]人口!I21 -> 31 | M15: =[1]人口!J21 -> 31 | N15: =[1]人口!K21 -> 30 | O15: =[1]人口!L21 -> 31 | P15: =[1]人口!M21 -> 30 | Q15: =[1]人口!N21 -> 31
S16: ='7 母の年齢階級・性別，区別出生数・百分率'!A3 -> 区・性 | T16: ='7 母の年齢階級・性別，区別出生数・百分率'!C3 -> 総数 | U16: ='7 母の年齢階級・性別，区別出生数・百分率'!E3 -> 15～19 | V16: ='7 母の年齢階級・性別，区別出生数・百分率'!F3 -> 20～24 | W16: ='7 母の年齢階級・性別，区別出生数・百分率'!G3 -> 25～29 | X16: ='7 母の年齢階級・性別，区別出生数・百分率'!H3 -> 30～34 | Y16: ='7 母の年齢階級・性別，区別出生数・百分率'!I3 -> 35～39 | Z16: ='7 母の年齢階級・性別，区別出生数・百分率'!J3 -> 40～44 | AA16: ='7 母の年齢階級・性別，区別出生数・百分率'!K3 -> 45～49
S17: ='7 母の年齢階級・性別，区別出生数・百分率'!A5 -> 総数 | T17: ='7 母の年齢階級・性別，区別出生数・百分率'!C5 -> 13248 | U17: ='7 母の年齢階級・性別，区別出生数・百分率'!E5 -> 102 | V17: ='7 母の年齢階級・性別，区別出生数・百分率'!F5 -> 1125 | W17: ='7 母の年齢階級・性別，区別出生数・百分率'!G5 -> 3246 | X17: ='7 母の年齢階級・性別，区別出生数・百分率'!H5 -> 4783 | Y17: ='7 母の年齢階級・性別，区別出生数・百分率'!I5 -> 3230 | Z17: ='7 母の年齢階級・性別，区別出生数・百分率'!J5 -> 739 | AA17: ='7 母の年齢階級・性別，区別出生数・百分率'!K5 -> 20
S18: ='7 母の年齢階級・性別，区別出生数・百分率'!A8 -> 中央 | T18: ='7 母の年齢階級・性別，区別出生数・百分率'!C8 -> 1744 | U18: ='7 母の年齢階級・性別，区別出生数・百分率'!E8 -> 9 | V18: ='7 母の年齢階級・性別，区別出生数・百分率'!F8 -> 126 | W18: ='7 母の年齢階級・性別，区別出生数・百分率'!G8 -> 383 | X18: ='7 母の年齢階級・性別，区別出生数・百分率'!H8 -> 615 | Y18: ='7 母の年齢階級・性別，区別出生数・百分率'!I8 -> 465 | Z18: ='7 母の年齢階級・性別，区別出生数・百分率'!J8 -> 144 | AA18: ='7 母の年齢階級・性別，区別出生数・百分率'!K8 -> 2
S19: ='7 母の年齢階級・性別，区別出生数・百分率'!A11 -> 北 | T19: ='7 母の年齢階級・性別，区別出生数・百分率'!C11 -> 1847 | U19: ='7 母の年齢階級・性別，区別出生数・百分率'!E11 -> 13 | V19: ='7 母の年齢階級・性別，区別出生数・百分率'!F11 -> 159 | W19: ='7 母の年齢階級・性別，区別出生数・百分率'!G11 -> 457 | X19: ='7 母の年齢階級・性別，区別出生数・百分率'!H11 -> 651 | Y19: ='7 母の年齢階級・性別，区別出生数・百分率'!I11 -> 459 | Z19: ='7 母の年齢階級・性別，区別出生数・百分率'!J11 -> 105 | AA19: ='7 母の年齢階級・性別，区別出生数・百分率'!K11 -> 2
S20: ='7 母の年齢階級・性別，区別出生数・百分率'!A14 -> 東 | T20: ='7 母の年齢階級・性別，区別出生数・百分率'!C14 -> 1978 | U20: ='7 母の年齢階級・性別，区別出生数・百分率'!E14 -> 27 | V20: ='7 母の年齢階級・性別，区別出生数・百分率'!F14 -> 173 | W20: ='7 母の年齢階級・性別，区別出生数・百分率'!G14 -> 521 | X20: ='7 母の年齢階級・性別，区別出生数・百分率'!H14 -> 719 | Y20: ='7 母の年齢階級・性別，区別出生数・百分率'!I14 -> 433 | Z20: ='7 母の年齢階級・性別，区別出生数・百分率'!J14 -> 100 | AA20: ='7 母の年齢階級・性別，区別出生数・百分率'!K14 -> 4
S21: ='7 母の年齢階級・性別，区別出生数・百分率'!A17 -> 白石 | T21: ='7 母の年齢階級・性別，区別出生数・百分率'!C17 -> 1711 | U21: ='7 母の年齢階級・性別，区別出生数・百分率'!E17 -> 10 | V21: ='7 母の年齢階級・性別，区別出生数・百分率'!F17 -> 184 | W21: ='7 母の年齢階級・性別，区別出生数・百分率'!G17 -> 440 | X21: ='7 母の年齢階級・性別，区別出生数・百分率'!H17 -> 620 | Y21: ='7 母の年齢階級・性別，区別出生数・百分率'!I17 -> 380 | Z21: ='7 母の年齢階級・性別，区別出生数・百分率'!J17 -> 76 | AA21: ='7 母の年齢階級・性別，区別出生数・百分率'!K17 -> 1
S22: ='7 母の年齢階級・性別，区別出生数・百分率'!A20 -> 厚別 | T22: ='7 母の年齢階級・性別，区別出生数・百分率'!C20 -> 661 | U22: ='7 母の年齢階級・性別，区別出生数・百分率'!E20 -> 6 | V22: ='7 母の年齢階級・性別，区別出生数・百分率'!F20 -> 45 | W22: ='7 母の年齢階級・性別，区別出生数・百分率'!G20 -> 145 | X22: ='7 母の年齢階級・性別，区別出生数・百分率'!H20 -> 247 | Y22: ='7 母の年齢階級・性別，区別出生数・百分率'!I20 -> 175 | Z22: ='7 母の年齢階級・性別，区別出生数・百分率'!J20 -> 43 | AA22: ='7 母の年齢階級・性別，区別出生数・百分率'!K20 -> 0
S23: ='7 母の年齢階級・性別，区別出生数・百分率'!A23 -> 豊平 | T23: ='7 母の年齢階級・性別，区別出生数・百分率'!C23 -> 1682 | U23: ='7 母の年齢階級・性別，区別出生数・百分率'!E23 -> 18 | V23: ='7 母の年齢階級・性別，区別出生数・百分率'!F23 -> 145 | W23: ='7 母の年齢階級・性別，区別出生数・百分率'!G23 -> 457 | X23: ='7 母の年齢階級・性別，区別出生数・百分率'!H23 -> 630 | Y23: ='7 母の年齢階級・性別，区別出生数・百分率'!I23 -> 352 | Z23: ='7 母の年齢階級・性別，区別出生数・百分率'!J23 -> 79 | AA23: ='7 母の年齢階級・性別，区別出生数・百分率'!K23 -> 1
S24: ='7 母の年齢階級・性別，区別出生数・百分率'!A26 -> 清田 | T24: ='7 母の年齢階級・性別，区別出生数・百分率'!C26 -> 644 | U24: ='7 母の年齢階級・性別，区別出生数・百分率'!E26 -> 3 | V24: ='7 母の年齢階級・性別，区別出生数・百分率'!F26 -> 57 | W24: ='7 母の年齢階級・性別，区別出生数・百分率'!G26 -> 136 | X24: ='7 母の年齢階級・性別，区別出生数・百分率'!H26 -> 214 | Y24: ='7 母の年齢階級・性別，区別出生数・百分率'!I26 -> 192 | Z24: ='7 母の年齢階級・性別，区別出生数・百分率'!J26 -> 39 | AA24: ='7 母の年齢階級・性別，区別出生数・百分率'!K26 -> 3
S25: ='7 母の年齢階級・性別，区別出生数・百分率'!A29 -> 南 | T25: ='7 母の年齢階級・性別，区別出生数・百分率'!C29 -> 642 | U25: ='7 母の年齢階級・性別，区別出生数・百分率'!E29 -> 5 | V25: ='7 母の年齢階級・性別，区別出生数・百分率'!F29 -> 49 | W25: ='7 母の年齢階級・性別，区別出生数・百分率'!G29 -> 158 | X25: ='7 母の年齢階級・性別，区別出生数・百分率'!H29 -> 235 | Y25: ='7 母の年齢階級・性別，区別出生数・百分率'!I29 -> 157 | Z25: ='7 母の年齢階級・性別，区別出生数・百分率'!J29 -> 36 | AA25: ='7 母の年齢階級・性別，区別出生数・百分率'!K29 -> 2
S26: ='7 母の年齢階級・性別，区別出生数・百分率'!A32 -> 西 | T26: ='7 母の年齢階級・性別，区別出生数・百分率'!C32 -> 1530 | U26: ='7 母の年齢階級・性別，区別出生数・百分率'!E32 -> 6 | V26: ='7 母の年齢階級・性別，区別出生数・百分率'!F32 -> 108 | W26: ='7 母の年齢階級・性別，区別出生数・百分率'!G32 -> 377 | X26: ='7 母の年齢階級・性別，区別出生数・百分率'!H32 -> 549 | Y26: ='7 母の年齢階級・性別，区別出生数・百分率'!I32 -> 413 | Z26: ='7 母の年齢階級・性別，区別出生数・百分率'!J32 -> 73 | AA26: ='7 母の年齢階級・性別，区別出生数・百分率'!K32 -> 3
S27: ='7 母の年齢階級・性別，区別出生数・百分率'!A35 -> 手稲 | T27: ='7 母の年齢階級・性別，区別出生数・百分率'!C35 -> 809 | U27: ='7 母の年齢階級・性別，区別出生数・百分率'!E35 -> 5 | V27: ='7 母の年齢階級・性別，区別出生数・百分率'!F35 -> 79 | W27: ='7 母の年齢階級・性別，区別出生数・百分率'!G35 -> 172 | X27: ='7 母の年齢階級・性別，区別出生数・百分率'!H35 -> 303 | Y27: ='7 母の年齢階級・性別，区別出生数・百分率'!I35 -> 204 | Z27: ='7 母の年齢階級・性別，区別出生数・百分率'!J35 -> 44 | AA27: ='7 母の年齢階級・性別，区別出生数・百分率'!K35 -> 2
S29: =[1]女子人口!A12 -> 区 | T29: =[1]女子人口!B12 -> 15～49歳 | U29: =[1]女子人口!C12 -> 15～19歳 | V29: =[1]女子人口!D12 -> 20～24 | W29: =[1]女子人口!E12 -> 25～29 | X29: =[1]女子人口!F12 -> 30～34 | Y29: =[1]女子人口!G12 -> 35～39 | Z29: =[1]女子人口!H12 -> 40～44 | AA29: =[1]女子人口!I12 -> 45～49
S30: =[1]女子人口!A13 -> 総数 | T30: =[1]女子人口!B13 -> 421881 | U30: =[1]女子人口!C13 -> 40422 | V30: =[1]女子人口!D13 -> 49026 | W30: =[1]女子人口!E13 -> 52531 | X30: =[1]女子人口!F13 -> 59157 | Y30: =[1]女子人口!G13 -> 65423 | Z30: =[1]女子人口!H13 -> 75831 | AA30: =[1]女子人口!I13 -> 79491
S31: =[1]女子人口!A14 -> 中央区 | T31: =[1]女子人口!B14 -> 57816 | U31: =[1]女子人口!C14 -> 4388 | V31: =[1]女子人口!D14 -> 6971 | W31: =[1]女子人口!E14 -> 8079 | X31: =[1]女子人口!F14 -> 8464 | Y31: =[1]女子人口!G14 -> 8922 | Z31: =[1]女子人口!H14 -> 10010 | AA31: =[1]女子人口!I14 -> 10982
S32: =[1]女子人口!A15 -> 北区 | T32: =[1]女子人口!B15 -> 60557 | U32: =[1]女子人口!C15 -> 6400 | V32: =[1]女子人口!D15 -> 7419 | W32: =[1]女子人口!E15 -> 7063 | X32: =[1]女子人口!F15 -> 8182 | Y32: =[1]女子人口!G15 -> 9126 | Z32: =[1]女子人口!H15 -> 11071 | AA32: =[1]女子人口!I15 -> 11296
S33: =[1]女子人口!A16 -> 東区 | T33: =[1]女子人口!B16 -> 57982 | U33: =[1]女子人口!C16 -> 5431 | V33: =[1]女子人口!D16 -> 6583 | W33: =[1]女子人口!E16 -> 7585 | X33: =[1]女子人口!F16 -> 8299 | Y33: =[1]女子人口!G16 -> 9211 | Z33: =[1]女子人口!H16 -> 10291 | AA33: =[1]女子人口!I16 -> 10582
S34: =[1]女子人口!A17 -> 白石区 | T34: =[1]女子人口!B17 -> 48439 | U34: =[1]女子人口!C17 -> 3993 | V34: =[1]女子人口!D17 -> 5522 | W34: =[1]女子人口!E17 -> 6559 | X34: =[1]女子人口!F17 -> 7288 | Y34: =[1]女子人口!G17 -> 7507 | Z34: =[1]女子人口!H17 -> 8615 | AA34: =[1]女子人口!I17 -> 8955
S35: =[1]女子人口!A18 -> 厚別区 | T35: =[1]女子人口!B18 -> 25001 | U35: =[1]女子人口!C18 -> 2897 | V35: =[1]女子人口!D18 -> 3019 | W35: =[1]女子人口!E18 -> 2710 | X35: =[1]女子人口!F18 -> 3101 | Y35: =[1]女子人口!G18 -> 3528 | Z35: =[1]女子人口!H18 -> 4507 | AA35: =[1]女子人口!I18 -> 5239
S36: =[1]女子人口!A19 -> 豊平区 | T36: =[1]女子人口!B19 -> 51882 | U36: =[1]女子人口!C19 -> 4240 | V36: =[1]女子人口!D19 -> 6084 | W36: =[1]女子人口!E19 -> 7522 | X36: =[1]女子人口!F19 -> 7901 | Y36: =[1]女子人口!G19 -> 8108 | Z36: =[1]女子人口!H19 -> 8857 | AA36: =[1]女子人口!I19 -> 9170
S37: =[1]女子人口!A20 -> 清田区 | T37: =[1]女子人口!B20 -> 22094 | U37: =[1]女子人口!C20 -> 2849 | V37: =[1]女子人口!D20 -> 2461 | W37: =[1]女子人口!E20 -> 2035 | X37: =[1]女子人口!F20 -> 2615 | Y37: =[1]女子人口!G20 -> 3450 | Z37: =[1]女子人口!H20 -> 4243 | AA37: =[1]女子人口!I20 -> 4441
S38: =[1]女子人口!A21 -> 南区 | T38: =[1]女子人口!B21 -> 24449 | U38: =[1]女子人口!C21 -> 2841 | V38: =[1]女子人口!D21 -> 2973 | W38: =[1]女子人口!E21 -> 2609 | X38: =[1]女子人口!F21 -> 3117 | Y38: =[1]女子人口!G21 -> 3701 | Z38: =[1]女子人口!H21 -> 4414 | AA38: =[1]女子人口!I21 -> 4794
S39: =[1]女子人口!A22 -> 西区 | T39: =[1]女子人口!B22 -> 46216 | U39: =[1]女子人口!C22 -> 4258 | V39: =[1]女子人口!D22 -> 4922 | W39: =[1]女子人口!E22 -> 5618 | X39: =[1]女子人口!F22 -> 6532 | Y39: =[1]女子人口!G22 -> 7488 | Z39: =[1]女子人口!H22 -> 8531 | AA39: =[1]女子人口!I22 -> 8867
S40: =[1]女子人口!A23 -> 手稲区 | T40: =[1]女子人口!B23 -> 27445 | U40: =[1]女子人口!C23 -> 3125 | V40: =[1]女子人口!D23 -> 3072 | W40: =[1]女子人口!E23 -> 2751 | X40: =[1]女子人口!F23 -> 3658 | Y40: =[1]女子人口!G23 -> 4382 | Z40: =[1]女子人口!H23 -> 5292 | AA40: =[1]女子人口!I23 -> 5165
